Workbook

Sheet Resumo
A1: Ministério da Integração e do Desenvolvimento Regional
A2: Companhia de Desenvolvimento dos Vales do São Francisco e do Parnaíba
A4: PLANILHA RESUMO
A5: OBRA: | B5: Execução de manutenção e recuperação nas barragens de Mirorós, Estreito, Cova da Mandioca, Ceraíma e Poço do Magro, localizadas no estado da Bahia. | E5: BDI (serv.): | F5: ='BDI serv'!D23 -> 0.2312 | G5: Bancos de dados:
A6: LOCAL: | B6: Barragens da Bahia | E6: BDI (forn.): | F6: ='BDI forn'!D23 -> 0.1089 | G6: ABR/26 - SINAPI/BA
A7: DATA BASE: | B7: 2026-06-01 | C7: Encargos sociais - Horistas: | F7: ='Encargos Sociais'!E49 -> 1.1773 | G7: MAR/26 - ORSE
A8: PRAZO: | B8: 90 dias | C8: Encargos sociais - Mensalista: | F8: ='Encargos Sociais'!F49 -> 0.7285 | G8: JAN/2026 - SICRO
E9: Desconto: | F9: 0 | G9: JAN/2026 - SETOP
A11: ITEM | B11: DESCRIÇÃO | C11: UNID. | D11: QUANT. | E11: CUSTO UNITÁRIO | F11: PREÇO UNITÁRIO | G11: PREÇO TOTAL
A13: 1 | B13: BARRAGENS BAHIA | G13: =SUM(G14:G18) -> 787847.47
A14: 1.1 | B14: =MIRORÓS!B9 -> Mirorós | C14: unid. | D14: 1 | E14: =MIRORÓS!I42 -> 236127.96 | F14: =MIRORÓS!I44 -> 280151.03 | G14: =TRUNC(D14*F14,2) -> 280151.03
A15: 1.2 | B15: =ESTREITO!B9 -> Estreito | C15: unid. | D15: 1 | E15: =ESTREITO!I32 -> 119940.37 | F15: =ESTREITO!I34 -> 147625.34 | G15: 147625.34
A16: 1.3 | B16: ='COVA DA MANDIOCA'!B9 -> Cova da Mandioca | C16: unid. | D16: 1 | E16: ='COVA DA MANDIOCA'!I32 -> 24888.6 | F16: ='COVA DA MANDIOCA'!I34 -> 30636.06 | G16: 30636.06
A17: 1.4 | B17: =CERAÍMA!B9 -> Ceraíma | C17: unid. | D17: 1 | E17: =CERAÍMA!I34 -> 149935.14 | F17: =CERAÍMA!I36 -> 184556.6 | G17: 184556.6
A18: 1.5 | B18: ='POÇO DO MAGRO'!B9 -> Poço do Magro | C18: unid. | D18: 1 | E18: ='POÇO DO MAGRO'!I33 -> 117704.27 | F18: ='POÇO DO MAGRO'!I35 -> 144878.44 | G18: 144878.44
B20: TOTAL (Custo): | G20: =SUMPRODUCT(D13:D19,E13:E19) -> 648596.34
B21: BDI e Encargos Sociais: | G21: =G22-G20 -> 139251.13
B22: TOTAL GERAL COM BDI: | G22: =SUMPRODUCT(D13:D19,F13:F19) -> 787847.47

Sheet MIRORÓS
A1: Ministério da Integração e do Desenvolvimento Regional
A2: Companhia de Desenvolvimento dos Vales do São Francisco e do Parnaíba
A4: PLANILHA ORÇAMENTÁRIA - ORÇAMENTO NÃO DESONERADO
A5: OBRA: | B5: =Resumo!B5 -> Execução de manutenção e recuperação nas barragens de Mirorós, Estreito, Cova da Mandioca, Ceraíma e Poço do Magro, localizadas no estado da Bahia. | G5: BDI (serv.): | H5: ='BDI serv'!D23 -> 0.2312 | I5: Bancos de dados:
A6: LOCAL: | B6: GENTIO DO OURO - BA | G6: BDI (forn.): | H6: ='BDI forn'!D23 -> 0.1089 | I6: =Resumo!G6 -> ABR/26 - SINAPI/BA
A7: DATA BASE: | B7: =Resumo!B7 -> 2026-06-01 | E7: Encargos sociais - Horistas: | H7: ='Encargos Sociais'!E49 -> 1.1773 | I7: =Resumo!G7 -> MAR/26 - ORSE
A8: PRAZO: | B8: 60 dias | E8: Encargos sociais - Mensalista: | H8: ='Encargos Sociais'!F49 -> 0.7285 | I8: =Resumo!G8 -> JAN/2026 - SICRO
B9: Mirorós | G9: Desconto: | H9: =Resumo!F9 -> 0 | I9: =Resumo!G9 -> JAN/2026 - SETOP
A11: ITEM | B11: REFERÊNCIA | D11: DESCRIÇÃO | E11: UNID. | F11: QUANT. | G11: CUSTO UNITÁRIO | H11: PREÇO UNITÁRIO | I11: PREÇO TOTAL
B12: FONTE | C12: CÓDIGO
A13: 1 | D13: ADMINISTRAÇÃO DA OBRA | I13: =SUM(I14) -> 9728.4 | J13: =I13/I44 -> 0.034725555
A14: 1.1 | D14: Administração da Obra | I14: =SUM(I15:I15) -> 9728.4
A15: 1.1.1 | B15: PRÓPRIA | C15: CPU.01 | D15: =(VLOOKUP(C15,CPU!B1:C87,2,0)) -> Administração Local 01 | E15: =(VLOOKUP(C15,CPU!B2:D$206,3,0)) -> Global | F15: 1 | G15: =TRUNC((1-$H$9)*(SUMIFS(CPU!$G:$G,CPU!$A:$A,MIRORÓS!$C15,CPU!$H:$H,"ss")+SUMIFS(CPU!$G:$G,CPU!$A:$A,MIRORÓS!$C15,CPU!$H:$H,"mdo")+SUMIF('Comp SINAPI BA 04-2026 Onerado'!B:B,MIRORÓS!C15,'Comp SINAPI BA 04-2026 Onerado'!E:E)+SUMIF('Ins SINAPI BA 04-2026 Onerado'!B:B,MIRORÓS!C15,'Ins SINAPI BA 04-2026 Onerado'!F:F)),2) -> 7901.56 | H15: =TRUNC(G15*(1+$H$5),2) -> 9728.4 | I15: =TRUNC(F15*H15,2) -> 9728.4 | L15: 8024.97 | M15: =(L15-G15)/L15 -> 0.01537825064
A17: 2 | D17: SERVIÇOS PRELIMINARES | I17: =SUM(I18,I20) -> 1747.3
A18: 2.1 | D18: Mobilização ou desmobilização | I18: =SUM(I19) -> 637.78
A19: 2.1.1 | B19: PRÓPRIA | C19: CPU.02 | D19: =(VLOOKUP(C19,CPU!B5:C91,2,0)) -> Mobilização ou desmobilização (Equipe e Equipamentos) | E19: =(VLOOKUP(C19,CPU!B2:D$206,3,0)) -> un | F19: 2 | G19: =TRUNC((1-$H$9)*(SUMIFS(CPU!$G:$G,CPU!$A:$A,MIRORÓS!$C19,CPU!$H:$H,"ss")+SUMIFS(CPU!$G:$G,CPU!$A:$A,MIRORÓS!$C19,CPU!$H:$H,"mdo")+SUMIF('Comp SINAPI BA 04-2026 Onerado'!B:B,MIRORÓS!C19,'Comp SINAPI BA 04-2026 Onerado'!E:E)+SUMIF('Ins SINAPI BA 04-2026 Onerado'!B:B,MIRORÓS!C19,'Ins SINAPI BA 04-2026 Onerado'!F:F)),2) -> 259.01 | H19: =TRUNC(G19*(1+$H$5),2) -> 318.89 | I19: =TRUNC(F19*H19,2) -> 637.78 | L19: 216.35 | M19: =(L19-G19)/L19 -> -0.1971804946
A20: 2.2 | D20: Instalação de Placa de obra | I20: =SUM(I21:I21) -> 1109.52
A21: 2.2.1 | B21: SINAPI | C21: 103689 | D21: =IF(J21="ca",VLOOKUP(C21,'Comp SINAPI BA 04-2026 Onerado'!$B$11:$C$9500,2,0),VLOOKUP(C21,'Ins SINAPI BA 04-2026 Onerado'!$B$10:$C$9500,2,0)) -> FORNECIMENTO E INSTALAÇÃO DE PLACA DE OBRA COM CHAPA GALVANIZADA E ESTRUTURA DE MADEIRA. AF_03/2022_PS | E21: =IF(J21="ca",VLOOKUP(C21,'Comp SINAPI BA 04-2026 Onerado'!$B$11:$D$9500,3,0),VLOOKUP(C21,'Ins SINAPI BA 04-2026 Onerado'!$B$11:$D$9500,3,0)) -> M2 | F21: 2 | G21: =TRUNC((1-$H$9)*(SUMIFS(CPU!$G:$G,CPU!$A:$A,MIRORÓS!$C21,CPU!$H:$H,"ss")+SUMIFS(CPU!$G:$G,CPU!$A:$A,MIRORÓS!$C21,CPU!$H:$H,"mdo")+SUMIF('Comp SINAPI BA 04-2026 Onerado'!B:B,MIRORÓS!C21,'Comp SINAPI BA 04-2026 Onerado'!E:E)+SUMIF('Ins SINAPI BA 04-2026 Onerado'!B:B,MIRORÓS!C21,'Ins SINAPI BA 04-2026 Onerado'!F:F)),2) -> 450.59 | H21: =TRUNC(G21*(1+$H$5),2) -> 554.76 | I21: =TRUNC(F21*H21,2) -> 1109.52 | J21: ca | L21: 416.42 | M21: -0.08205657749
A23: 3 | D23: SERVIÇOS GERAIS | I23: =SUM(I24,I27) -> 128060.8
A24: 3.1 | D24: Remoção da vegetação | I24: =SUM(I25:I26) -> 107051.6
A25: 3.1.1 | B25: PRÓPRIA | C25: CPU.04 | D25: =(VLOOKUP(C25,CPU!B13:C99,2,0)) -> Limpeza de vegetação | E25: =(VLOOKUP(C25,CPU!B2:D$206,3,0)) -> m2 | F25: 41000 | G25: =TRUNC((1-$H$9)*(SUMIFS(CPU!$G:$G,CPU!$A:$A,MIRORÓS!$C25,CPU!$H:$H,"ss")+SUMIFS(CPU!$G:$G,CPU!$A:$A,MIRORÓS!$C25,CPU!$H:$H,"mdo")+SUMIF('Comp SINAPI BA 04-2026 Onerado'!B:B,MIRORÓS!C25,'Comp SINAPI BA 04-2026 Onerado'!E:E)+SUMIF('Ins SINAPI BA 04-2026 Onerado'!B:B,MIRORÓS!C25,'Ins SINAPI BA 04-2026 Onerado'!F:F)),2) -> 1.95 | H25: =TRUNC(G25*(1+$H$5),2) -> 2.4 | I25: =TRUNC(F25*H25,2) -> 98400 | L25: 1.81 | M25: -0.0773480663
A26: 3.1.2 | B26: PRÓPRIA | C26: CPU.05 | D26: =(VLOOKUP(C26,CPU!B14:C100,2,0)) -> Corte de tronco e remoção de raiz | E26: =(VLOOKUP(C26,CPU!B3:D$206,3,0)) -> un | F26: 20 | G26: =TRUNC((1-$H$9)*(SUMIFS(CPU!$G:$G,CPU!$A:$A,MIRORÓS!$C26,CPU!$H:$H,"ss")+SUMIFS(CPU!$G:$G,CPU!$A:$A,MIRORÓS!$C26,CPU!$H:$H,"mdo")+SUMIF('Comp SINAPI BA 04-2026 Onerado'!B:B,MIRORÓS!C26,'Comp SINAPI BA 04-2026 Onerado'!E:E)+SUMIF('Ins SINAPI BA 04-2026 Onerado'!B:B,MIRORÓS!C26,'Ins SINAPI BA 04-2026 Onerado'!F:F)),2) -> 351.35 | H26: =TRUNC(G26*(1+$H$5),2) -> 432.58 | I26: =TRUNC(F26*H26,2) -> 8651.6 | L26: 333.12 | M26: -0.05472502402
A27: 3.2 | D27: Fornecimento de cilindro para válvula dispersora | I27: =SUM(I28:I28) -> 21009.2
A28: 3.2.1 | B28: PRÓPRIA | C28: COTAÇÃO | D28: Cilindro para válvula dispersora - conforme projeto | E28: =(VLOOKUP(C28,CPU!B39:D226,3,0)) -> un | F28: 2 | G28: =TRUNC((1-$H$9)*Cotaçao_Cilindro1!L37) -> 9473 | H28: =TRUNC(G28*(1+$H$6),2) -> 10504.6 | I28: =TRUNC(F28*H28,2) -> 21009.2 | K28: BDI fornecimento | L28: 9634 | M28: 0.01671164625
A30: 4 | D30: =UPPER("Fornecimento de grupo gerador à diesel E construção de abrigo") -> FORNECIMENTO DE GRUPO GERADOR À DIESEL E CONSTRUÇÃO DE ABRIGO | I30: =SUM(I31) -> 124720.73
A31: 4.1 | D31: Fornecimento de grupo gerador e construção de abrigo | I31: =SUM(I32:I34) -> 124720.73
A32: 4.1.1 | B32: SBC | C32: 62032 | D32: Fornecimento de grupo gerador à diesel, potência de 50 kVA, trifásico cabinado | E32: un | F32: 1 | G32: =TRUNC((1-$H$9)*67195.2) -> 67195 | H32: =IF(J32="serv",(TRUNC(G32*(1+$H$5),2)),(TRUNC(G32*(1+$H$6),2))) -> 74512.53 | I32: =TRUNC(F32*H32,2) -> 74512.53 | J32: for | K32: BDI fornecimento
A33: 4.1.2 | B33: PRÓPRIA | C33: CPU.09 | D33: Construção do abrigo e Instalação do Gerador | E33: =(VLOOKUP(C33,CPU!B11:D$206,3,0)) -> un | F33: 1 | G33: =TRUNC((1-$H$9)*(SUMIFS(CPU!$G:$G,CPU!$A:$A,MIRORÓS!$C33,CPU!$H:$H,"ss")+SUMIFS(CPU!$G:$G,CPU!$A:$A,MIRORÓS!$C33,CPU!$H:$H,"mdo")+SUMIF('Comp SINAPI BA 04-2026 Onerado'!B:B,MIRORÓS!C33,'Comp SINAPI BA 04-2026 Onerado'!E:E)+SUMIF('Ins SINAPI BA 04-2026 Onerado'!B:B,MIRORÓS!C33,'Ins SINAPI BA 04-2026 Onerado'!F:F)),2) -> 35239.59 | H33: =TRUNC(G33*(1+$H$5),2) -> 43386.98 | I33: =TRUNC(F33*H33,2) -> 43386.98 | K33: =I33/I31 -> 0.347873044
A34: 4.1.3 | B34: PRÓPRIA | C34: CPU.10 | D34: Implantação de sistema de proteção contra descargas atmosféricas e incêndio | E34: UN | F34: 1 | G34: =TRUNC((1-$H$9)*(SUMIFS(CPU!$G:$G,CPU!$A:$A,MIRORÓS!$C34,CPU!$H:$H,"ss")+SUMIFS(CPU!$G:$G,CPU!$A:$A,MIRORÓS!$C34,CPU!$H:$H,"mdo")+SUMIF('Comp SINAPI BA 04-2026 Onerado'!B:B,MIRORÓS!C34,'Comp SINAPI BA 04-2026 Onerado'!E:E)+SUMIF('Ins SINAPI BA 04-2026 Onerado'!B:B,MIRORÓS!C34,'Ins SINAPI BA 04-2026 Onerado'!F:F)),2) -> 5540.31 | H34: =TRUNC(G34*(1+$H$5),2) -> 6821.22 | I34: =TRUNC(F34*H34,2) -> 6821.22
K35: =1-K33 -> 0.652126956
A36: 5 | D36: SERVIÇOS COMPLEMENTARES | I36: =SUM(I37,I39) -> 15893.8
A37: 5.1 | D37: Instalação de placas de aviso | I37: =SUM(I38) -> 11095.2
A38: 5.1.1 | B38: SINAPI | C38: 103689 | D38: =IF(J38="ca",VLOOKUP(C38,'Comp SINAPI BA 04-2026 Onerado'!$B$11:$C$9500,2,0),VLOOKUP(C38,'Ins SINAPI BA 04-2026 Onerado'!$B$10:$C$9500,2,0)) -> FORNECIMENTO E INSTALAÇÃO DE PLACA DE OBRA COM CHAPA GALVANIZADA E ESTRUTURA DE MADEIRA. AF_03/2022_PS | E38: =IF(J38="ca",VLOOKUP(C38,'Comp SINAPI BA 04-2026 Onerado'!$B$11:$D$9500,3,0),VLOOKUP(C38,'Ins SINAPI BA 04-2026 Onerado'!$B$11:$D$9500,3,0)) -> M2 | F38: 20 | G38: =TRUNC((1-$H$9)*(SUMIFS(CPU!$G:$G,CPU!$A:$A,MIRORÓS!$C38,CPU!$H:$H,"ss")+SUMIFS(CPU!$G:$G,CPU!$A:$A,MIRORÓS!$C38,CPU!$H:$H,"mdo")+SUMIF('Comp SINAPI BA 04-2026 Onerado'!B:B,MIRORÓS!C38,'Comp SINAPI BA 04-2026 Onerado'!E:E)+SUMIF('Ins SINAPI BA 04-2026 Onerado'!B:B,MIRORÓS!C38,'Ins SINAPI BA 04-2026 Onerado'!F:F)),2) -> 450.59 | H38: =TRUNC(G38*(1+$H$5),2) -> 554.76 | I38: =TRUNC(F38*H38,2) -> 11095.2 | J38: ca | L38: 416.42 | M38: -0.08205657749
A39: 4.2 | D39: Régua Linimétrica Padrão “ANA”, Aço Carbono - 2 X 70 X 1000 mm (Fornecimento e Instalação) | I39: =SUM(I40) -> 4798.6
A40: 4.2.1 | B40: PRÓPRIA | C40: CPU.07 | D40: =(VLOOKUP(C40,CPU!B38:C126,2,0)) -> Régua Linimétrica Padrão “ANA”, Aço Carbono - 2 X 70 X 1000 mm (Fornecimento e Instalação) | E40: =(VLOOKUP(C40,CPU!B38:D223,3,0)) -> un | F40: 10 | G40: =TRUNC((1-$H$9)*(SUMIFS(CPU!$G:$G,CPU!$A:$A,MIRORÓS!$C40,CPU!$H:$H,"ss")+SUMIFS(CPU!$G:$G,CPU!$A:$A,MIRORÓS!$C40,CPU!$H:$H,"mdo")+SUMIF('Comp SINAPI BA 04-2026 Onerado'!B:B,MIRORÓS!C40,'Comp SINAPI BA 04-2026 Onerado'!E:E)+SUMIF('Ins SINAPI BA 04-2026 Onerado'!B:B,MIRORÓS!C40,'Ins SINAPI BA 04-2026 Onerado'!F:F)),2) -> 389.75 | H40: =TRUNC(G40*(1+$H$5),2) -> 479.86 | I40: =TRUNC(F40*H40,2) -> 4798.6 | L40: 380.12 | M40: -0.02533410502
D42: TOTAL (Custo): | I42: =TRUNC(SUMPRODUCT(F14:F41,G14:G41),2) -> 236127.96
D43: BDI e Encargos Sociais: | I43: =I44-I42 -> 44023.07
D44: TOTAL GERAL COM BDI: | I44: =SUM(I13,I17,I23,I30,I36) -> 280151.03 | L44: =TRUNC(SUMPRODUCT(F14:F41,H14:H41),2) -> 280151.03

Sheet ESTREITO
A1: Ministério da Integração e do Desenvolvimento Regional
A2: Companhia de Desenvolvimento dos Vales do São Francisco e do Parnaíba
A4: PLANILHA ORÇAMENTÁRIA - ORÇAMENTO NÃO DESONERADO
A5: OBRA: | B5: =Resumo!B5 -> Execução de manutenção e recuperação nas barragens de Mirorós, Estreito, Cova da Mandioca, Ceraíma e Poço do Magro, localizadas no estado da Bahia. | G5: BDI (serv.): | H5: ='BDI serv'!D23 -> 0.2312 | I5: Bancos de dados:
A6: LOCAL: | B6: URANDI - BA | G6: BDI (forn.): | H6: ='BDI forn'!D23 -> 0.1089 | I6: =Resumo!G6 -> ABR/26 - SINAPI/BA
A7: DATA BASE: | B7: =Resumo!B7 -> 2026-06-01 | E7: Encargos sociais - Horistas: | H7: ='Encargos Sociais'!E49 -> 1.1773 | I7: =Resumo!G7 -> MAR/26 - ORSE
A8: PRAZO: | B8: 30 dias | E8: Encargos sociais - Mensalista: | H8: ='Encargos Sociais'!F49 -> 0.7285 | I8: =Resumo!G8 -> JAN/2026 - SICRO
B9: Estreito | G9: Desconto: | H9: =Resumo!$F$9 -> 0 | I9: =Resumo!G9 -> JAN/2026 - SETOP
A11: ITEM | B11: REFERÊNCIA | D11: DESCRIÇÃO | E11: UNID. | F11: QUANT. | G11: CUSTO UNITÁRIO | H11: PREÇO UNITÁRIO | I11: PREÇO TOTAL
B12: FONTE | C12: CÓDIGO
A13: 1 | D13: ADMINISTRAÇÃO DA OBRA | I13: =SUM(I14) -> 9728.4 | J13: =I13/I34 -> 0.06589925551
A14: 1.1 | D14: Administração da Obra | I14: =SUM(I15:I15) -> 9728.4
A15: 1.1.1 | B15: PRÓPRIA | C15: CPU.01 | D15: =(VLOOKUP(C15,CPU!B1:C87,2,0)) -> Administração Local 01 | E15: =(VLOOKUP(C15,CPU!B2:D$206,3,0)) -> Global | F15: 1 | G15: =TRUNC((1-$H$9)*(SUMIFS(CPU!$G:$G,CPU!$A:$A,ESTREITO!$C15,CPU!$H:$H,"ss")+SUMIFS(CPU!$G:$G,CPU!$A:$A,ESTREITO!$C15,CPU!$H:$H,"mdo")+SUMIF('Comp SINAPI BA 04-2026 Onerado'!B:B,ESTREITO!C15,'Comp SINAPI BA 04-2026 Onerado'!E:E)+SUMIF('Ins SINAPI BA 04-2026 Onerado'!B:B,ESTREITO!C15,'Ins SINAPI BA 04-2026 Onerado'!F:F)),2) -> 7901.56 | H15: =TRUNC(G15*(1+$H$5),2) -> 9728.4 | I15: =TRUNC(F15*H15,2) -> 9728.4
A17: 2 | D17: SERVIÇOS PRELIMINARES | I17: =SUM(I18,I20) -> 1747.3
A18: 2.1 | D18: Mobilização e desmobilização | I18: =SUM(I19) -> 637.78
A19: 2.1.1 | B19: PRÓPRIA | C19: CPU.02 | D19: =(VLOOKUP(C19,CPU!B5:C91,2,0)) -> Mobilização ou desmobilização (Equipe e Equipamentos) | E19: =(VLOOKUP(C19,CPU!B2:D$206,3,0)) -> un | F19: 2 | G19: =TRUNC((1-$H$9)*(SUMIFS(CPU!$G:$G,CPU!$A:$A,ESTREITO!$C19,CPU!$H:$H,"ss")+SUMIFS(CPU!$G:$G,CPU!$A:$A,ESTREITO!$C19,CPU!$H:$H,"mdo")+SUMIF('Comp SINAPI BA 04-2026 Onerado'!B:B,ESTREITO!C19,'Comp SINAPI BA 04-2026 Onerado'!E:E)+SUMIF('Ins SINAPI BA 04-2026 Onerado'!B:B,ESTREITO!C19,'Ins SINAPI BA 04-2026 Onerado'!F:F)),2) -> 259.01 | H19: =TRUNC(G19*(1+$H$5),2) -> 318.89 | I19: =TRUNC(F19*H19,2) -> 637.78
A20: 2.2 | D20: Instalação de Placa de obra | I20: =SUM(I21:I21) -> 1109.52
A21: 2.2.1 | B21: SINAPI | C21: 103689 | D21: =IF(J21="ca",VLOOKUP(C21,'Comp SINAPI BA 04-2026 Onerado'!$B$11:$C$9500,2,0),VLOOKUP(C21,'Ins SINAPI BA 04-2026 Onerado'!$B$10:$C$9500,2,0)) -> FORNECIMENTO E INSTALAÇÃO DE PLACA DE OBRA COM CHAPA GALVANIZADA E ESTRUTURA DE MADEIRA. AF_03/2022_PS | E21: =IF(J21="ca",VLOOKUP(C21,'Comp SINAPI BA 04-2026 Onerado'!$B$11:$D$9500,3,0),VLOOKUP(C21,'Ins SINAPI BA 04-2026 Onerado'!$B$11:$D$9500,3,0)) -> M2 | F21: 2 | G21: =TRUNC((1-$H$9)*(SUMIFS(CPU!$G:$G,CPU!$A:$A,ESTREITO!$C21,CPU!$H:$H,"ss")+SUMIFS(CPU!$G:$G,CPU!$A:$A,ESTREITO!$C21,CPU!$H:$H,"mdo")+SUMIF('Comp SINAPI BA 04-2026 Onerado'!B:B,ESTREITO!C21,'Comp SINAPI BA 04-2026 Onerado'!E:E)+SUMIF('Ins SINAPI BA 04-2026 Onerado'!B:B,ESTREITO!C21,'Ins SINAPI BA 04-2026 Onerado'!F:F)),2) -> 450.59 | H21: =TRUNC(G21*(1+$H$5),2) -> 554.76 | I21: =TRUNC(F21*H21,2) -> 1109.52 | J21: ca
A23: 3 | D23: SERVIÇOS GERAIS | I23: =SUM(I24) -> 129132
A24: 3.1 | D24: Remoção da vegetação | I24: =SUM(I25:I25) -> 129132
A25: 3.1.1 | B25: PRÓPRIA | C25: CPU.04 | D25: =(VLOOKUP(C25,CPU!B13:C99,2,0)) -> Limpeza de vegetação | E25: =(VLOOKUP(C25,CPU!B2:D$206,3,0)) -> m2 | F25: 53805 | G25: =TRUNC((1-$H$9)*(SUMIFS(CPU!$G:$G,CPU!$A:$A,ESTREITO!$C25,CPU!$H:$H,"ss")+SUMIFS(CPU!$G:$G,CPU!$A:$A,ESTREITO!$C25,CPU!$H:$H,"mdo")+SUMIF('Comp SINAPI BA 04-2026 Onerado'!B:B,ESTREITO!C25,'Comp SINAPI BA 04-2026 Onerado'!E:E)+SUMIF('Ins SINAPI BA 04-2026 Onerado'!B:B,ESTREITO!C25,'Ins SINAPI BA 04-2026 Onerado'!F:F)),2) -> 1.95 | H25: =TRUNC(G25*(1+$H$5),2) -> 2.4 | I25: =TRUNC(F25*H25,2) -> 129132
A27: 4 | D27: SERVIÇOS COMPLEMENTARES | I27: =SUM(I28) -> 7017.64
A28: 4.1 | D28: Instalação de placas de aviso | I28: =SUM(I29:I30) -> 7017.64
A29: 4.1.1 | B29: SINAPI | C29: 103689 | D29: =IF(J29="ca",VLOOKUP(C29,'Comp SINAPI BA 04-2026 Onerado'!$B$11:$C$9500,2,0),VLOOKUP(C29,'Ins SINAPI BA 04-2026 Onerado'!$B$10:$C$9500,2,0)) -> FORNECIMENTO E INSTALAÇÃO DE PLACA DE OBRA COM CHAPA GALVANIZADA E ESTRUTURA DE MADEIRA. AF_03/2022_PS | E29: =IF(J29="ca",VLOOKUP(C29,'Comp SINAPI BA 04-2026 Onerado'!$B$11:$D$9500,3,0),VLOOKUP(C29,'Ins SINAPI BA 04-2026 Onerado'!$B$11:$D$9500,3,0)) -> M2 | F29: 4 | G29: =TRUNC((1-$H$9)*(SUMIFS(CPU!$G:$G,CPU!$A:$A,ESTREITO!$C29,CPU!$H:$H,"ss")+SUMIFS(CPU!$G:$G,CPU!$A:$A,ESTREITO!$C29,CPU!$H:$H,"mdo")+SUMIF('Comp SINAPI BA 04-2026 Onerado'!B:B,ESTREITO!C29,'Comp SINAPI BA 04-2026 Onerado'!E:E)+SUMIF('Ins SINAPI BA 04-2026 Onerado'!B:B,ESTREITO!C29,'Ins SINAPI BA 04-2026 Onerado'!F:F)),2) -> 450.59 | H29: =TRUNC(G29*(1+$H$5),2) -> 554.76 | I29: =TRUNC(F29*H29,2) -> 2219.04 | J29: ca
A30: 4.1.2 | B30: PRÓPRIA | C30: CPU.07 | D30: =(VLOOKUP(C30,CPU!B38:C126,2,0)) -> Régua Linimétrica Padrão “ANA”, Aço Carbono - 2 X 70 X 1000 mm (Fornecimento e Instalação) | E30: =(VLOOKUP(C30,CPU!B38:D223,3,0)) -> un | F30: 10 | G30: =TRUNC((1-$H$9)*(SUMIFS(CPU!$G:$G,CPU!$A:$A,ESTREITO!$C30,CPU!$H:$H,"ss")+SUMIFS(CPU!$G:$G,CPU!$A:$A,ESTREITO!$C30,CPU!$H:$H,"mdo")+SUMIF('Comp SINAPI BA 04-2026 Onerado'!B:B,ESTREITO!C30,'Comp SINAPI BA 04-2026 Onerado'!E:E)+SUMIF('Ins SINAPI BA 04-2026 Onerado'!B:B,ESTREITO!C30,'Ins SINAPI BA 04-2026 Onerado'!F:F)),2) -> 389.75 | H30: =TRUNC(G30*(1+$H$5),2) -> 479.86 | I30: =TRUNC(F30*H30,2) -> 4798.6
D32: TOTAL (Custo): | I32: =TRUNC(SUMPRODUCT(F14:F31,G14:G31),2) -> 119940.37
D33: BDI e Encargos Sociais: | I33: =I34-I32 -> 27684.97
D34: TOTAL GERAL COM BDI: | I34: =SUM(I13,I17,I23,I27) -> 147625.34 | L34: =TRUNC(SUMPRODUCT(F14:F31,H14:H31),2) -> 147625.34

Sheet COVA DA MANDIOCA
A1: Ministério da Integração e do Desenvolvimento Regional
A2: Companhia de Desenvolvimento dos Vales do São Francisco e do Parnaíba
A4: PLANILHA ORÇAMENTÁRIA - ORÇAMENTO NÃO DESONERADO
A5: OBRA: | B5: =Resumo!B5 -> Execução de manutenção e recuperação nas barragens de Mirorós, Estreito, Cova da Mandioca, Ceraíma e Poço do Magro, localizadas no estado da Bahia. | G5: BDI (serv.): | H5: ='BDI serv'!D23 -> 0.2312 | I5: Bancos de dados:
A6: LOCAL: | B6: URANDI - BA | G6: BDI (forn.): | H6: ='BDI forn'!D23 -> 0.1089 | I6: =Resumo!G6 -> ABR/26 - SINAPI/BA
A7: DATA BASE: | B7: =Resumo!B7 -> 2026-06-01 | E7: Encargos sociais - Horistas: | H7: ='Encargos Sociais'!E49 -> 1.1773 | I7: =Resumo!G7 -> MAR/26 - ORSE
A8: PRAZO: | B8: 30 dias | E8: Encargos sociais - Mensalista: | H8: ='Encargos Sociais'!F49 -> 0.7285 | I8: =Resumo!G8 -> JAN/2026 - SICRO
B9: Cova da Mandioca | G9: Desconto: | H9: =Resumo!$F$9 -> 0 | I9: =Resumo!G9 -> JAN/2026 - SETOP
A11: ITEM | B11: REFERÊNCIA | D11: DESCRIÇÃO | E11: UNID. | F11: QUANT. | G11: CUSTO UNITÁRIO | H11: PREÇO UNITÁRIO | I11: PREÇO TOTAL
B12: FONTE | C12: CÓDIGO
A13: 1 | D13: ADMINISTRAÇÃO DA OBRA | I13: =SUM(I14) -> 2637.52
A14: 1.1 | D14: Administração da Obra | I14: =SUM(I15:I15) -> 2637.52
A15: 1.1.1 | B15: PRÓPRIA | C15: CPU.08 | D15: =(VLOOKUP(C15,CPU!B1:C87,2,0)) -> Administração Local 02 | E15: =(VLOOKUP(C15,CPU!B$2:D$206,3,0)) -> Global | F15: 1 | G15: =TRUNC((1-$H$9)*(SUMIFS(CPU!$G:$G,CPU!$A:$A,'COVA DA MANDIOCA'!$C15,CPU!$H:$H,"ss")+SUMIFS(CPU!$G:$G,CPU!$A:$A,'COVA DA MANDIOCA'!$C15,CPU!$H:$H,"mdo")+SUMIF('Comp SINAPI BA 04-2026 Onerado'!B:B,'COVA DA MANDIOCA'!C15,'Comp SINAPI BA 04-2026 Onerado'!E:E)+SUMIF('Ins SINAPI BA 04-2026 Onerado'!B:B,'COVA DA MANDIOCA'!C15,'Ins SINAPI BA 04-2026 Onerado'!F:F)),2) -> 2142.24 | H15: =TRUNC(G15*(1+$H$5),2) -> 2637.52 | I15: =TRUNC(F15*H15,2) -> 2637.52 | J15: =I15/I34 -> 0.08609201053
A17: 2 | D17: SERVIÇOS PRELIMINARES | I17: =SUM(I18,I20) -> 1747.3
A18: 2.1 | D18: Mobilização e desmobilização | I18: =SUM(I19) -> 637.78
A19: 2.1.1 | B19: PRÓPRIA | C19: CPU.02 | D19: =(VLOOKUP(C19,CPU!B5:C91,2,0)) -> Mobilização ou desmobilização (Equipe e Equipamentos) | E19: =(VLOOKUP(C19,CPU!B2:D$206,3,0)) -> un | F19: 2 | G19: =TRUNC((1-$H$9)*(SUMIFS(CPU!$G:$G,CPU!$A:$A,'COVA DA MANDIOCA'!$C19,CPU!$H:$H,"ss")+SUMIFS(CPU!$G:$G,CPU!$A:$A,'COVA DA MANDIOCA'!$C19,CPU!$H:$H,"mdo")+SUMIF('Comp SINAPI BA 04-2026 Onerado'!B:B,'COVA DA MANDIOCA'!C19,'Comp SINAPI BA 04-2026 Onerado'!E:E)+SUMIF('Ins SINAPI BA 04-2026 Onerado'!B:B,'COVA DA MANDIOCA'!C19,'Ins SINAPI BA 04-2026 Onerado'!F:F)),2) -> 259.01 | H19: =TRUNC(G19*(1+$H$5),2) -> 318.89 | I19: =TRUNC(F19*H19,2) -> 637.78
A20: 2.2 | D20: Instalação de Placa de obra | I20: =SUM(I21:I21) -> 1109.52
A21: 2.2.1 | B21: SINAPI | C21: 103689 | D21: =IF(J21="ca",VLOOKUP(C21,'Comp SINAPI BA 04-2026 Onerado'!$B$11:$C$9500,2,0),VLOOKUP(C21,'Ins SINAPI BA 04-2026 Onerado'!$B$10:$C$9500,2,0)) -> FORNECIMENTO E INSTALAÇÃO DE PLACA DE OBRA COM CHAPA GALVANIZADA E ESTRUTURA DE MADEIRA. AF_03/2022_PS | E21: =IF(J21="ca",VLOOKUP(C21,'Comp SINAPI BA 04-2026 Onerado'!$B$11:$D$9500,3,0),VLOOKUP(C21,'Ins SINAPI BA 04-2026 Onerado'!$B$11:$D$9500,3,0)) -> M2 | F21: 2 | G21: =TRUNC((1-$H$9)*(SUMIFS(CPU!$G:$G,CPU!$A:$A,'COVA DA MANDIOCA'!$C21,CPU!$H:$H,"ss")+SUMIFS(CPU!$G:$G,CPU!$A:$A,'COVA DA MANDIOCA'!$C21,CPU!$H:$H,"mdo")+SUMIF('Comp SINAPI BA 04-2026 Onerado'!B:B,'COVA DA MANDIOCA'!C21,'Comp SINAPI BA 04-2026 Onerado'!E:E)+SUMIF('Ins SINAPI BA 04-2026 Onerado'!B:B,'COVA DA MANDIOCA'!C21,'Ins SINAPI BA 04-2026 Onerado'!F:F)),2) -> 450.59 | H21: =TRUNC(G21*(1+$H$5),2) -> 554.76 | I21: =TRUNC(F21*H21,2) -> 1109.52 | J21: ca
A23: 3 | D23: SERVIÇOS GERAIS | I23: =SUM(I24) -> 19233.6
A24: 3.1 | D24: Remoção da vegetação | I24: =SUM(I25:I25) -> 19233.6
A25: 3.1.1 | B25: PRÓPRIA | C25: CPU.04 | D25: =(VLOOKUP(C25,CPU!B13:C99,2,0)) -> Limpeza de vegetação | E25: =(VLOOKUP(C25,CPU!B$2:D$206,3,0)) -> m2 | F25: 8014 | G25: =TRUNC((1-$H$9)*(SUMIFS(CPU!$G:$G,CPU!$A:$A,'COVA DA MANDIOCA'!$C25,CPU!$H:$H,"ss")+SUMIFS(CPU!$G:$G,CPU!$A:$A,'COVA DA MANDIOCA'!$C25,CPU!$H:$H,"mdo")+SUMIF('Comp SINAPI BA 04-2026 Onerado'!B:B,'COVA DA MANDIOCA'!C25,'Comp SINAPI BA 04-2026 Onerado'!E:E)+SUMIF('Ins SINAPI BA 04-2026 Onerado'!B:B,'COVA DA MANDIOCA'!C25,'Ins SINAPI BA 04-2026 Onerado'!F:F)),2) -> 1.95 | H25: =TRUNC(G25*(1+$H$5),2) -> 2.4 | I25: =TRUNC(F25*H25,2) -> 19233.6
A27: 4 | D27: SERVIÇOS COMPLEMENTARES | I27: =SUM(I28) -> 7017.64
A28: 4.1 | D28: Instalação de placas de aviso | I28: =SUM(I29:I30) -> 7017.64
A29: 4.1.1 | B29: SINAPI | C29: 103689 | D29: =IF(J29="ca",VLOOKUP(C29,'Comp SINAPI BA 04-2026 Onerado'!$B$11:$C$9500,2,0),VLOOKUP(C29,'Ins SINAPI BA 04-2026 Onerado'!$B$10:$C$9500,2,0)) -> FORNECIMENTO E INSTALAÇÃO DE PLACA DE OBRA COM CHAPA GALVANIZADA E ESTRUTURA DE MADEIRA. AF_03/2022_PS | E29: =IF(J29="ca",VLOOKUP(C29,'Comp SINAPI BA 04-2026 Onerado'!$B$11:$D$9500,3,0),VLOOKUP(C29,'Ins SINAPI BA 04-2026 Onerado'!$B$11:$D$9500,3,0)) -> M2 | F29: 4 | G29: =TRUNC((1-$H$9)*(SUMIFS(CPU!$G:$G,CPU!$A:$A,'COVA DA MANDIOCA'!$C29,CPU!$H:$H,"ss")+SUMIFS(CPU!$G:$G,CPU!$A:$A,'COVA DA MANDIOCA'!$C29,CPU!$H:$H,"mdo")+SUMIF('Comp SINAPI BA 04-2026 Onerado'!B:B,'COVA DA MANDIOCA'!C29,'Comp SINAPI BA 04-2026 Onerado'!E:E)+SUMIF('Ins SINAPI BA 04-2026 Onerado'!B:B,'COVA DA MANDIOCA'!C29,'Ins SINAPI BA 04-2026 Onerado'!F:F)),2) -> 450.59 | H29: =TRUNC(G29*(1+$H$5),2) -> 554.76 | I29: =TRUNC(F29*H29,2) -> 2219.04 | J29: ca
A30: 4.1.2 | B30: PRÓPRIA | C30: CPU.07 | D30: =(VLOOKUP(C30,CPU!B38:C126,2,0)) -> Régua Linimétrica Padrão “ANA”, Aço Carbono - 2 X 70 X 1000 mm (Fornecimento e Instalação) | E30: =(VLOOKUP(C30,CPU!B38:D223,3,0)) -> un | F30: 10 | G30: =TRUNC((1-$H$9)*(SUMIFS(CPU!$G:$G,CPU!$A:$A,'COVA DA MANDIOCA'!$C30,CPU!$H:$H,"ss")+SUMIFS(CPU!$G:$G,CPU!$A:$A,'COVA DA MANDIOCA'!$C30,CPU!$H:$H,"mdo")+SUMIF('Comp SINAPI BA 04-2026 Onerado'!B:B,'COVA DA MANDIOCA'!C30,'Comp SINAPI BA 04-2026 Onerado'!E:E)+SUMIF('Ins SINAPI BA 04-2026 Onerado'!B:B,'COVA DA MANDIOCA'!C30,'Ins SINAPI BA 04-2026 Onerado'!F:F)),2) -> 389.75 | H30: =TRUNC(G30*(1+$H$5),2) -> 479.86 | I30: =TRUNC(F30*H30,2) -> 4798.6
D32: TOTAL (Custo): | I32: =TRUNC(SUMPRODUCT(F14:F31,G14:G31),2) -> 24888.6
D33: BDI e Encargos Sociais: | I33: =I34-I32 -> 5747.46
D34: TOTAL GERAL COM BDI: | I34: =SUM(I13,I17,I23,I27) -> 30636.06 | L34: =TRUNC(SUMPRODUCT(F14:F31,H14:H31),2) -> 30636.06

Sheet CERAÍMA
A1: Ministério da Integração e do Desenvolvimento Regional
A2: Companhia de Desenvolvimento dos Vales do São Francisco e do Parnaíba
A4: PLANILHA ORÇAMENTÁRIA - ORÇAMENTO NÃO DESONERADO
A5: OBRA: | B5: =Resumo!B5 -> Execução de manutenção e recuperação nas barragens de Mirorós, Estreito, Cova da Mandioca, Ceraíma e Poço do Magro, localizadas no estado da Bahia. | G5: BDI (serv.): | H5: ='BDI serv'!D23 -> 0.2312 | I5: Bancos de dados:
A6: LOCAL: | B6: GUANAMBI - BA | G6: BDI (forn.): | H6: ='BDI forn'!D23 -> 0.1089 | I6: =Resumo!G6 -> ABR/26 - SINAPI/BA
A7: DATA BASE: | B7: =Resumo!B7 -> 2026-06-01 | E7: Encargos sociais - Horistas: | H7: ='Encargos Sociais'!E49 -> 1.1773 | I7: =Resumo!G7 -> MAR/26 - ORSE
A8: PRAZO: | B8: 60 dias | E8: Encargos sociais - Mensalista: | H8: ='Encargos Sociais'!F49 -> 0.7285 | I8: =Resumo!G8 -> JAN/2026 - SICRO
B9: Ceraíma | G9: Desconto: | H9: =Resumo!$F$9 -> 0 | I9: =Resumo!G9 -> JAN/2026 - SETOP
A11: ITEM | B11: REFERÊNCIA | D11: DESCRIÇÃO | E11: UNID. | F11: QUANT. | G11: CUSTO UNITÁRIO | H11: PREÇO UNITÁRIO | I11: PREÇO TOTAL
B12: FONTE | C12: CÓDIGO
A13: 1 | D13: ADMINISTRAÇÃO DA OBRA | I13: =SUM(I14) -> 9728.4
A14: 1.1 | D14: Administração da Obra | I14: =SUM(I15:I15) -> 9728.4
A15: 1.1.1 | B15: PRÓPRIA | C15: CPU.01 | D15: =(VLOOKUP(C15,CPU!B1:C87,2,0)) -> Administração Local 01 | E15: =(VLOOKUP(C15,CPU!B2:D$206,3,0)) -> Global | F15: 1 | G15: =TRUNC((1-$H$9)*(SUMIFS(CPU!$G:$G,CPU!$A:$A,CERAÍMA!$C15,CPU!$H:$H,"ss")+SUMIFS(CPU!$G:$G,CPU!$A:$A,CERAÍMA!$C15,CPU!$H:$H,"mdo")+SUMIF('Comp SINAPI BA 04-2026 Onerado'!B:B,CERAÍMA!C15,'Comp SINAPI BA 04-2026 Onerado'!E:E)+SUMIF('Ins SINAPI BA 04-2026 Onerado'!B:B,CERAÍMA!C15,'Ins SINAPI BA 04-2026 Onerado'!F:F)),2) -> 7901.56 | H15: =TRUNC(G15*(1+$H$5),2) -> 9728.4 | I15: =TRUNC(F15*H15,2) -> 9728.4 | J15: =I15/I36 -> 0.05271228447
A17: 2 | D17: SERVIÇOS PRELIMINARES | I17: =SUM(I18,I20) -> 1747.3
A18: 2.1 | D18: Mobilização e desmobilização | I18: =SUM(I19) -> 637.78
A19: 2.1.1 | B19: PRÓPRIA | C19: CPU.02 | D19: =(VLOOKUP(C19,CPU!B5:C91,2,0)) -> Mobilização ou desmobilização (Equipe e Equipamentos) | E19: =(VLOOKUP(C19,CPU!B2:D$206,3,0)) -> un | F19: 2 | G19: =TRUNC((1-$H$9)*(SUMIFS(CPU!$G:$G,CPU!$A:$A,CERAÍMA!$C19,CPU!$H:$H,"ss")+SUMIFS(CPU!$G:$G,CPU!$A:$A,CERAÍMA!$C19,CPU!$H:$H,"mdo")+SUMIF('Comp SINAPI BA 04-2026 Onerado'!B:B,CERAÍMA!C19,'Comp SINAPI BA 04-2026 Onerado'!E:E)+SUMIF('Ins SINAPI BA 04-2026 Onerado'!B:B,CERAÍMA!C19,'Ins SINAPI BA 04-2026 Onerado'!F:F)),2) -> 259.01 | H19: =TRUNC(G19*(1+$H$5),2) -> 318.89 | I19: =TRUNC(F19*H19,2) -> 637.78
A20: 2.2 | D20: Instalação de Placa de obra | I20: =SUM(I21:I21) -> 1109.52
A21: 2.2.1 | B21: SINAPI | C21: 103689 | D21: =IF(J21="ca",VLOOKUP(C21,'Comp SINAPI BA 04-2026 Onerado'!$B$11:$C$9500,2,0),VLOOKUP(C21,'Ins SINAPI BA 04-2026 Onerado'!$B$10:$C$9500,2,0)) -> FORNECIMENTO E INSTALAÇÃO DE PLACA DE OBRA COM CHAPA GALVANIZADA E ESTRUTURA DE MADEIRA. AF_03/2022_PS | E21: =IF(J21="ca",VLOOKUP(C21,'Comp SINAPI BA 04-2026 Onerado'!$B$11:$D$9500,3,0),VLOOKUP(C21,'Ins SINAPI BA 04-2026 Onerado'!$B$11:$D$9500,3,0)) -> M2 | F21: 2 | G21: =TRUNC((1-$H$9)*(SUMIFS(CPU!$G:$G,CPU!$A:$A,CERAÍMA!$C21,CPU!$H:$H,"ss")+SUMIFS(CPU!$G:$G,CPU!$A:$A,CERAÍMA!$C21,CPU!$H:$H,"mdo")+SUMIF('Comp SINAPI BA 04-2026 Onerado'!B:B,CERAÍMA!C21,'Comp SINAPI BA 04-2026 Onerado'!E:E)+SUMIF('Ins SINAPI BA 04-2026 Onerado'!B:B,CERAÍMA!C21,'Ins SINAPI BA 04-2026 Onerado'!F:F)),2) -> 450.59 | H21: =TRUNC(G21*(1+$H$5),2) -> 554.76 | I21: =TRUNC(F21*H21,2) -> 1109.52 | J21: ca
A23: 3 | D23: SERVIÇOS GERAIS | I23: =SUM(I24,I26) -> 166063.26
A24: 3.1 | D24: Remoção da vegetação | I24: =SUM(I25) -> 109440
A25: 3.1.1 | B25: PRÓPRIA | C25: CPU.04 | D25: =(VLOOKUP(C25,CPU!B13:C99,2,0)) -> Limpeza de vegetação | E25: =(VLOOKUP(C25,CPU!B2:D$206,3,0)) -> m2 | F25: 45600 | G25: =TRUNC((1-$H$9)*(SUMIFS(CPU!$G:$G,CPU!$A:$A,CERAÍMA!$C25,CPU!$H:$H,"ss")+SUMIFS(CPU!$G:$G,CPU!$A:$A,CERAÍMA!$C25,CPU!$H:$H,"mdo")+SUMIF('Comp SINAPI BA 04-2026 Onerado'!B:B,CERAÍMA!C25,'Comp SINAPI BA 04-2026 Onerado'!E:E)+SUMIF('Ins SINAPI BA 04-2026 Onerado'!B:B,CERAÍMA!C25,'Ins SINAPI BA 04-2026 Onerado'!F:F)),2) -> 1.95 | H25: =TRUNC(G25*(1+$H$5),2) -> 2.4 | I25: =TRUNC(F25*H25,2) -> 109440
A26: 3.2 | D26: Pintura de gradil metálico | I26: =SUM(I27) -> 56623.26
A27: 3.2.1 | B27: PRÓPRIA | C27: CPU.03 | D27: =(VLOOKUP(C27,CPU!B15:C101,2,0)) -> Pintura de Gradil Metálico com 01 demão de tinta anti-corrosiva - zarcão e 02 demãos de esmalte sintético, inclusive lixamento | E27: =(VLOOKUP(C27,CPU!B4:D$206,3,0)) -> m2 | F27: 731 | G27: =TRUNC((1-$H$9)*(SUMIFS(CPU!$G:$G,CPU!$A:$A,CERAÍMA!$C27,CPU!$H:$H,"ss")+SUMIFS(CPU!$G:$G,CPU!$A:$A,CERAÍMA!$C27,CPU!$H:$H,"mdo")+SUMIF('Comp SINAPI BA 04-2026 Onerado'!B:B,CERAÍMA!C27,'Comp SINAPI BA 04-2026 Onerado'!E:E)+SUMIF('Ins SINAPI BA 04-2026 Onerado'!B:B,CERAÍMA!C27,'Ins SINAPI BA 04-2026 Onerado'!F:F)),2) -> 62.92 | H27: =TRUNC(G27*(1+$H$5),2) -> 77.46 | I27: =TRUNC(F27*H27,2) -> 56623.26
A29: 4 | D29: SERVIÇOS COMPLEMENTARES | I29: =SUM(I30) -> 7017.64
A30: 4.1 | D30: Instalação de placas de aviso | I30: =SUM(I31:I32) -> 7017.64
A31: 4.1.1 | B31: SINAPI | C31: 103689 | D31: =IF(J31="ca",VLOOKUP(C31,'Comp SINAPI BA 04-2026 Onerado'!$B$11:$C$9500,2,0),VLOOKUP(C31,'Ins SINAPI BA 04-2026 Onerado'!$B$10:$C$9500,2,0)) -> FORNECIMENTO E INSTALAÇÃO DE PLACA DE OBRA COM CHAPA GALVANIZADA E ESTRUTURA DE MADEIRA. AF_03/2022_PS | E31: =IF(J31="ca",VLOOKUP(C31,'Comp SINAPI BA 04-2026 Onerado'!$B$11:$D$9500,3,0),VLOOKUP(C31,'Ins SINAPI BA 04-2026 Onerado'!$B$11:$D$9500,3,0)) -> M2 | F31: 4 | G31: =TRUNC((1-$H$9)*(SUMIFS(CPU!$G:$G,CPU!$A:$A,CERAÍMA!$C31,CPU!$H:$H,"ss")+SUMIFS(CPU!$G:$G,CPU!$A:$A,CERAÍMA!$C31,CPU!$H:$H,"mdo")+SUMIF('Comp SINAPI BA 04-2026 Onerado'!B:B,CERAÍMA!C31,'Comp SINAPI BA 04-2026 Onerado'!E:E)+SUMIF('Ins SINAPI BA 04-2026 Onerado'!B:B,CERAÍMA!C31,'Ins SINAPI BA 04-2026 Onerado'!F:F)),2) -> 450.59 | H31: =TRUNC(G31*(1+$H$5),2) -> 554.76 | I31: =TRUNC(F31*H31,2) -> 2219.04 | J31: ca
A32: 4.1.2 | B32: PRÓPRIA | C32: CPU.07 | D32: =(VLOOKUP(C32,CPU!B38:C126,2,0)) -> Régua Linimétrica Padrão “ANA”, Aço Carbono - 2 X 70 X 1000 mm (Fornecimento e Instalação) | E32: =(VLOOKUP(C32,CPU!B38:D223,3,0)) -> un | F32: 10 | G32: =TRUNC((1-$H$9)*(SUMIFS(CPU!$G:$G,CPU!$A:$A,CERAÍMA!$C32,CPU!$H:$H,"ss")+SUMIFS(CPU!$G:$G,CPU!$A:$A,CERAÍMA!$C32,CPU!$H:$H,"mdo")+SUMIF('Comp SINAPI BA 04-2026 Onerado'!B:B,CERAÍMA!C32,'Comp SINAPI BA 04-2026 Onerado'!E:E)+SUMIF('Ins SINAPI BA 04-2026 Onerado'!B:B,CERAÍMA!C32,'Ins SINAPI BA 04-2026 Onerado'!F:F)),2) -> 389.75 | H32: =TRUNC(G32*(1+$H$5),2) -> 479.86 | I32: =TRUNC(F32*H32,2) -> 4798.6
D34: TOTAL (Custo): | I34: =TRUNC(SUMPRODUCT(F14:F33,G14:G33),2) -> 149935.14
D35: BDI e Encargos Sociais: | I35: =I36-I34 -> 34621.46
D36: TOTAL GERAL COM BDI: | I36: =SUM(I13,I17,I23,I29) -> 184556.6 | L36: =TRUNC(SUMPRODUCT(F14:F33,H14:H33),2) -> 184556.6

Sheet POÇO DO MAGRO
A1: Ministério da Integração e do Desenvolvimento Regional
A2: Companhia de Desenvolvimento dos Vales do São Francisco e do Parnaíba
A4: PLANILHA ORÇAMENTÁRIA - ORÇAMENTO NÃO DESONERADO
A5: OBRA: | B5: =Resumo!B5 -> Execução de manutenção e recuperação nas barragens de Mirorós, Estreito, Cova da Mandioca, Ceraíma e Poço do Magro, localizadas no estado da Bahia. | G5: BDI (serv.): | H5: ='BDI serv'!D23 -> 0.2312 | I5: Bancos de dados:
A6: LOCAL: | B6: GUANAMBI - BA | G6: BDI (forn.): | H6: ='BDI forn'!D23 -> 0.1089 | I6: =Resumo!G6 -> ABR/26 - SINAPI/BA
A7: DATA BASE: | B7: =Resumo!B7 -> 2026-06-01 | E7: Encargos sociais - Horistas: | H7: ='Encargos Sociais'!E49 -> 1.1773 | I7: =Resumo!G7 -> MAR/26 - ORSE
A8: PRAZO: | B8: 30 dias | E8: Encargos sociais - Mensalista: | H8: ='Encargos Sociais'!F49 -> 0.7285 | I8: =Resumo!G8 -> JAN/2026 - SICRO
B9: Poço do Magro | G9: Desconto: | H9: =Resumo!$F$9 -> 0 | I9: =Resumo!G9 -> JAN/2026 - SETOP
A11: ITEM | B11: REFERÊNCIA | D11: DESCRIÇÃO | E11: UNID. | F11: QUANT. | G11: CUSTO UNITÁRIO | H11: PREÇO UNITÁRIO | I11: PREÇO TOTAL
B12: FONTE | C12: CÓDIGO
A13: 1 | D13: ADMINISTRAÇÃO DA OBRA | I13: =SUM(I14) -> 9728.4
A14: 1.1 | D14: Administração da Obra | I14: =SUM(I15:I15) -> 9728.4
A15: 1.1.1 | B15: PRÓPRIA | C15: CPU.01 | D15: =(VLOOKUP(C15,CPU!B1:C87,2,0)) -> Administração Local 01 | E15: =(VLOOKUP(C15,CPU!B2:D$206,3,0)) -> Global | F15: 1 | G15: =TRUNC((1-$H$9)*(SUMIFS(CPU!$G:$G,CPU!$A:$A,'POÇO DO MAGRO'!$C15,CPU!$H:$H,"ss")+SUMIFS(CPU!$G:$G,CPU!$A:$A,'POÇO DO MAGRO'!$C15,CPU!$H:$H,"mdo")+SUMIF('Comp SINAPI BA 04-2026 Onerado'!B:B,'POÇO DO MAGRO'!C15,'Comp SINAPI BA 04-2026 Onerado'!E:E)+SUMIF('Ins SINAPI BA 04-2026 Onerado'!B:B,'POÇO DO MAGRO'!C15,'Ins SINAPI BA 04-2026 Onerado'!F:F)),2) -> 7901.56 | H15: =TRUNC(G15*(1+$H$5),2) -> 9728.4 | I15: =TRUNC(F15*H15,2) -> 9728.4 | J15: =I15/I35 -> 0.06714870756
A17: 2 | D17: SERVIÇOS PRELIMINARES | I17: =SUM(I18,I20) -> 1747.3
A18: 2.1 | D18: Mobilização e desmobilização | I18: =SUM(I19) -> 637.78
A19: 2.1.1 | B19: PRÓPRIA | C19: CPU.02 | D19: =(VLOOKUP(C19,CPU!B5:C91,2,0)) -> Mobilização ou desmobilização (Equipe e Equipamentos) | E19: =(VLOOKUP(C19,CPU!B2:D$206,3,0)) -> un | F19: 2 | G19: =TRUNC((1-$H$9)*(SUMIFS(CPU!$G:$G,CPU!$A:$A,'POÇO DO MAGRO'!$C19,CPU!$H:$H,"ss")+SUMIFS(CPU!$G:$G,CPU!$A:$A,'POÇO DO MAGRO'!$C19,CPU!$H:$H,"mdo")+SUMIF('Comp SINAPI BA 04-2026 Onerado'!B:B,'POÇO DO MAGRO'!C19,'Comp SINAPI BA 04-2026 Onerado'!E:E)+SUMIF('Ins SINAPI BA 04-2026 Onerado'!B:B,'POÇO DO MAGRO'!C19,'Ins SINAPI BA 04-2026 Onerado'!F:F)),2) -> 259.01 | H19: =TRUNC(G19*(1+$H$5),2) -> 318.89 | I19: =TRUNC(F19*H19,2) -> 637.78
A20: 2.2 | D20: Instalação de Placa de obra | I20: =SUM(I21:I21) -> 1109.52
A21: 2.2.1 | B21: SINAPI | C21: 103689 | D21: =IF(J21="ca",VLOOKUP(C21,'Comp SINAPI BA 04-2026 Onerado'!$B$11:$C$9500,2,0),VLOOKUP(C21,'Ins SINAPI BA 04-2026 Onerado'!$B$10:$C$9500,2,0)) -> FORNECIMENTO E INSTALAÇÃO DE PLACA DE OBRA COM CHAPA GALVANIZADA E ESTRUTURA DE MADEIRA. AF_03/2022_PS | E21: =IF(J21="ca",VLOOKUP(C21,'Comp SINAPI BA 04-2026 Onerado'!$B$11:$D$9500,3,0),VLOOKUP(C21,'Ins SINAPI BA 04-2026 Onerado'!$B$11:$D$9500,3,0)) -> M2 | F21: 2 | G21: =TRUNC((1-$H$9)*(SUMIFS(CPU!$G:$G,CPU!$A:$A,'POÇO DO MAGRO'!$C21,CPU!$H:$H,"ss")+SUMIFS(CPU!$G:$G,CPU!$A:$A,'POÇO DO MAGRO'!$C21,CPU!$H:$H,"mdo")+SUMIF('Comp SINAPI BA 04-2026 Onerado'!B:B,'POÇO DO MAGRO'!C21,'Comp SINAPI BA 04-2026 Onerado'!E:E)+SUMIF('Ins SINAPI BA 04-2026 Onerado'!B:B,'POÇO DO MAGRO'!C21,'Ins SINAPI BA 04-2026 Onerado'!F:F)),2) -> 450.59 | H21: =TRUNC(G21*(1+$H$5),2) -> 554.76 | I21: =TRUNC(F21*H21,2) -> 1109.52 | J21: ca
A23: 3 | D23: SERVIÇOS GERAIS | I23: =SUM(I24) -> 126385.1
A24: 3.1 | D24: Remoção da vegetação | I24: =SUM(I25:I26) -> 126385.1
A25: 3.1.1 | B25: PRÓPRIA | C25: CPU.04 | D25: =(VLOOKUP(C25,CPU!B13:C99,2,0)) -> Limpeza de vegetação | E25: =(VLOOKUP(C25,CPU!B2:D$206,3,0)) -> m2 | F25: =15052+20600+10700 -> 46352 | G25: =TRUNC((1-$H$9)*(SUMIFS(CPU!$G:$G,CPU!$A:$A,'POÇO DO MAGRO'!$C25,CPU!$H:$H,"ss")+SUMIFS(CPU!$G:$G,CPU!$A:$A,'POÇO DO MAGRO'!$C25,CPU!$H:$H,"mdo")+SUMIF('Comp SINAPI BA 04-2026 Onerado'!B:B,'POÇO DO MAGRO'!C25,'Comp SINAPI BA 04-2026 Onerado'!E:E)+SUMIF('Ins SINAPI BA 04-2026 Onerado'!B:B,'POÇO DO MAGRO'!C25,'Ins SINAPI BA 04-2026 Onerado'!F:F)),2) -> 1.95 | H25: =TRUNC(G25*(1+$H$5),2) -> 2.4 | I25: =TRUNC(F25*H25,2) -> 111244.8
A26: 3.1.2 | B26: PRÓPRIA | C26: CPU.05 | D26: =(VLOOKUP(C26,CPU!B15:C100,2,0)) -> Corte de tronco e remoção de raiz | E26: =(VLOOKUP(C26,CPU!B3:D$206,3,0)) -> un | F26: =15+20 -> 35 | G26: =TRUNC((1-$H$9)*(SUMIFS(CPU!$G:$G,CPU!$A:$A,'POÇO DO MAGRO'!$C26,CPU!$H:$H,"ss")+SUMIFS(CPU!$G:$G,CPU!$A:$A,'POÇO DO MAGRO'!$C26,CPU!$H:$H,"mdo")+SUMIF('Comp SINAPI BA 04-2026 Onerado'!B:B,'POÇO DO MAGRO'!C26,'Comp SINAPI BA 04-2026 Onerado'!E:E)+SUMIF('Ins SINAPI BA 04-2026 Onerado'!B:B,'POÇO DO MAGRO'!C26,'Ins SINAPI BA 04-2026 Onerado'!F:F)),2) -> 351.35 | H26: =TRUNC(G26*(1+$H$5),2) -> 432.58 | I26: =TRUNC(F26*H26,2) -> 15140.3
A28: 4 | D28: SERVIÇOS COMPLEMENTARES | I28: =SUM(I29) -> 7017.64
A29: 4.1 | D29: Instalação de placas de aviso | I29: =SUM(I30:I31) -> 7017.64
A30: 4.1.1 | B30: SINAPI | C30: 103689 | D30: =IF(J30="ca",VLOOKUP(C30,'Comp SINAPI BA 04-2026 Onerado'!$B$11:$C$9500,2,0),VLOOKUP(C30,'Ins SINAPI BA 04-2026 Onerado'!$B$10:$C$9500,2,0)) -> FORNECIMENTO E INSTALAÇÃO DE PLACA DE OBRA COM CHAPA GALVANIZADA E ESTRUTURA DE MADEIRA. AF_03/2022_PS | E30: =IF(J30="ca",VLOOKUP(C30,'Comp SINAPI BA 04-2026 Onerado'!$B$11:$D$9500,3,0),VLOOKUP(C30,'Ins SINAPI BA 04-2026 Onerado'!$B$11:$D$9500,3,0)) -> M2 | F30: 4 | G30: =TRUNC((1-$H$9)*(SUMIFS(CPU!$G:$G,CPU!$A:$A,'POÇO DO MAGRO'!$C30,CPU!$H:$H,"ss")+SUMIFS(CPU!$G:$G,CPU!$A:$A,'POÇO DO MAGRO'!$C30,CPU!$H:$H,"mdo")+SUMIF('Comp SINAPI BA 04-2026 Onerado'!B:B,'POÇO DO MAGRO'!C30,'Comp SINAPI BA 04-2026 Onerado'!E:E)+SUMIF('Ins SINAPI BA 04-2026 Onerado'!B:B,'POÇO DO MAGRO'!C30,'Ins SINAPI BA 04-2026 Onerado'!F:F)),2) -> 450.59 | H30: =TRUNC(G30*(1+$H$5),2) -> 554.76 | I30: =TRUNC(F30*H30,2) -> 2219.04 | J30: ca
A31: 4.1.2 | B31: PRÓPRIA | C31: CPU.07 | D31: =(VLOOKUP(C31,CPU!B38:C126,2,0)) -> Régua Linimétrica Padrão “ANA”, Aço Carbono - 2 X 70 X 1000 mm (Fornecimento e Instalação) | E31: =(VLOOKUP(C31,CPU!B38:D223,3,0)) -> un | F31: 10 | G31: =TRUNC((1-$H$9)*(SUMIFS(CPU!$G:$G,CPU!$A:$A,'POÇO DO MAGRO'!$C31,CPU!$H:$H,"ss")+SUMIFS(CPU!$G:$G,CPU!$A:$A,'POÇO DO MAGRO'!$C31,CPU!$H:$H,"mdo")+SUMIF('Comp SINAPI BA 04-2026 Onerado'!B:B,'POÇO DO MAGRO'!C31,'Comp SINAPI BA 04-2026 Onerado'!E:E)+SUMIF('Ins SINAPI BA 04-2026 Onerado'!B:B,'POÇO DO MAGRO'!C31,'Ins SINAPI BA 04-2026 Onerado'!F:F)),2) -> 389.75 | H31: =TRUNC(G31*(1+$H$5),2) -> 479.86 | I31: =TRUNC(F31*H31,2) -> 4798.6
D33: TOTAL (Custo): | I33: =TRUNC(SUMPRODUCT(F14:F32,G14:G32),2) -> 117704.27
D34: BDI e Encargos Sociais: | I34: =I35-I33 -> 27174.17
D35: TOTAL GERAL COM BDI: | I35: =SUM(I13,I17,I23,I28) -> 144878.44 | L35: =TRUNC(SUMPRODUCT(F14:F32,H14:H32),2) -> 144878.44

Sheet CPU
A1: Ministério da Integração e do Desenvolvimento Regional
A2: Companhia de Desenvolvimento dos Vales do São Francisco e do Parnaíba
A4: COMPOSIÇÕES DE PREÇOS UNITÁRIOS - ORÇAMENTO NÃO DESONERADO
A5: =MIRORÓS!A5 -> OBRA: | B5: =Resumo!B5 -> Execução de manutenção e recuperação nas barragens de Mirorós, Estreito, Cova da Mandioca, Ceraíma e Poço do Magro, localizadas no estado da Bahia.
A6: =MIRORÓS!A6 -> LOCAL: | B6: =Resumo!B6 -> Barragens da Bahia
A7: =MIRORÓS!A7 -> DATA BASE: | B7: =Resumo!B7 -> 2026-06-01
A8: =MIRORÓS!A8 -> PRAZO: | B8: =Resumo!B8 -> 90 dias
A9: REFERÊNCIA | B9: CÓDIGO | C9: DESCRIÇÃO | D9: UNIDADE | E9: ÍNDICE | F9: CUSTO UNITÁRIO | G9: CUSTO TOTAL
B10: CPU.01 | C10: Administração Local 01 | D10: Global | E10: 1 | G10: =SUM(G15,G13,G12,G11) -> 7901.56 | H10: S | I10: COMENTÁRIOS
A11: =B10 -> CPU.01 | C11: MATERIAL | G11: 0 | H11: ss
A12: =B10 -> CPU.01 | C12: EQUIPAMENTOS | G12: 0 | H12: ss
A13: =B10 -> CPU.01 | C13: SERVIÇOS | G13: =G14 -> 1575 | H13: ss
A14: SETOP | B14: ED-50155 | C14: LOCAÇÃO DE BANHEIRO QUÍMICO, DIMENSÃO (110X120X230)CM, LINHA PADRÃO, CONTENDO UMA (1) PIA/HIGIENIZADOR DE MÃOS, INCLUSIVE MANUTENÇÃO E MOBILIZAÇÃO/DESMOBILIZAÇÃO | D14: UNXMÊS | E14: 1.5 | F14: 1050 | G14: =TRUNC(E14*F14,2) -> 1575 | H14: ca
A15: =B10 -> CPU.01 | C15: MÃO DE OBRA | G15: =SUM(G16:G17) -> 6326.56 | H15: mdo
A16: SINAPI | B16: 90778 | C16: =PROPER(IF(H16="i",VLOOKUP(B16,'Ins SINAPI BA 04-2026 Onerado'!$B$11:$F$50003,2,0),VLOOKUP(B16,'Comp SINAPI BA 04-2026 Onerado'!$B$11:$C$50004,2,0))) -> Engenheiro Civil De Obra Pleno Com Encargos Complementares | D16: =IF(H16="i",VLOOKUP(B16,'Ins SINAPI BA 04-2026 Onerado'!$B$11:$F$50003,2,0),VLOOKUP(B16,'Comp SINAPI BA 04-2026 Onerado'!$B$11:$H$50004,3,0)) -> H | E16: 16 | F16: =IF(H16="i",VLOOKUP(B16,'Ins SINAPI BA 04-2026 Onerado'!$B$11:$F$50003,5,0),VLOOKUP(B16,'Comp SINAPI BA 04-2026 Onerado'!$B$11:$E$50004,4,0)) -> 150.71 | G16: =TRUNC(E16*F16,2) -> 2411.36 | H16: ca
A17: SINAPI | B17: 90776 | C17: =PROPER(IF(H17="i",VLOOKUP(B17,'Ins SINAPI BA 04-2026 Onerado'!$B$11:$F$50003,2,0),VLOOKUP(B17,'Comp SINAPI BA 04-2026 Onerado'!$B$11:$C$50004,2,0))) -> Encarregado Geral Com Encargos Complementares | D17: =IF(H17="i",VLOOKUP(B17,'Ins SINAPI BA 04-2026 Onerado'!$B$11:$F$50003,2,0),VLOOKUP(B17,'Comp SINAPI BA 04-2026 Onerado'!$B$11:$H$50004,3,0)) -> H | E17: 80 | F17: =IF(H17="i",VLOOKUP(B17,'Ins SINAPI BA 04-2026 Onerado'!$B$11:$F$50003,5,0),VLOOKUP(B17,'Comp SINAPI BA 04-2026 Onerado'!$B$11:$E$50004,4,0)) -> 48.94 | G17: =TRUNC(E17*F17,2) -> 3915.2 | H17: ca
B19: CPU.02 | C19: Mobilização ou desmobilização (Equipe e Equipamentos) | D19: un | E19: 1 | G19: =SUM(G26,G25,G21,G20) -> 259.01 | H19: S | I19: mobilização e desmobilização da cidade mais próxima a barragem | M19: 2 dias
A20: =B19 -> CPU.02 | C20: MATERIAL | G20: 0 | H20: ss
A21: =B19 -> CPU.02 | C21: EQUIPAMENTOS | G21: =SUM(G22:G24) -> 259.01 | H21: ss
A22: SINAPI | B22: 100947 | C22: =PROPER(IF(H22="i",VLOOKUP(B22,'Ins SINAPI BA 04-2026 Onerado'!$B$11:$F$50003,2,0),VLOOKUP(B22,'Comp SINAPI BA 04-2026 Onerado'!$B$11:$C$50004,2,0))) -> Transporte Com Caminhão Carroceria 9T, Em Via Urbana Pavimentada, Dmt Até 30Km (Unidade: Txkm). Af_02/2026 | D22: =IF(H22="i",VLOOKUP(B22,'Ins SINAPI BA 04-2026 Onerado'!$B$11:$F$50003,2,0),VLOOKUP(B22,'Comp SINAPI BA 04-2026 Onerado'!$B$11:$H$50004,3,0)) -> TXKM | E22: =2*30*1 -> 60 | F22: =IF(H22="i",VLOOKUP(B22,'Ins SINAPI BA 04-2026 Onerado'!$B$11:$F$50003,5,0),VLOOKUP(B22,'Comp SINAPI BA 04-2026 Onerado'!$B$11:$E$50004,4,0)) -> 2.78 | G22: =TRUNC(E22*F22,2) -> 166.8 | H22: ca | I22: considerando 1 tonelada de carga
A23: SINAPI | B23: 100948 | C23: =PROPER(IF(H23="i",VLOOKUP(B23,'Ins SINAPI BA 04-2026 Onerado'!$B$11:$F$50003,2,0),VLOOKUP(B23,'Comp SINAPI BA 04-2026 Onerado'!$B$11:$C$50004,2,0))) -> Transporte Com Caminhão Carroceria 9T, Em Via Urbana Pavimentada, Adicional Para Dmt Excedente A 30 Km (Unidade: Txkm). Af_02/2026 | D23: =IF(H23="i",VLOOKUP(B23,'Ins SINAPI BA 04-2026 Onerado'!$B$11:$F$50003,2,0),VLOOKUP(B23,'Comp SINAPI BA 04-2026 Onerado'!$B$11:$H$50004,3,0)) -> TXKM | E23: =2*('Memorial de cálculo'!H7-30)*1 -> 49.48 | F23: =IF(H23="i",VLOOKUP(B23,'Ins SINAPI BA 04-2026 Onerado'!$B$11:$F$50003,5,0),VLOOKUP(B23,'Comp SINAPI BA 04-2026 Onerado'!$B$11:$E$50004,4,0)) -> 1.06 | G23: =TRUNC(E23*F23,2) -> 52.44 | H23: ca | I23: considerando 1 tonelada de carga
A24: SINAPI | B24: 100946 | C24: =PROPER(IF(H24="i",VLOOKUP(B24,'Ins SINAPI BA 04-2026 Onerado'!$B$11:$F$50003,2,0),VLOOKUP(B24,'Comp SINAPI BA 04-2026 Onerado'!$B$11:$C$50004,2,0))) -> Transporte Com Caminhão Carroceria 9T, Em Via Urbana Em Revestimento Primário (Unidade: Txkm). Af_02/2026 | D24: =IF(H24="i",VLOOKUP(B24,'Ins SINAPI BA 04-2026 Onerado'!$B$11:$F$50003,2,0),VLOOKUP(B24,'Comp SINAPI BA 04-2026 Onerado'!$B$11:$H$50004,3,0)) -> TXKM | E24: =2*'Memorial de cálculo'!H8*1 -> 13.04 | F24: =IF(H24="i",VLOOKUP(B24,'Ins SINAPI BA 04-2026 Onerado'!$B$11:$F$50003,5,0),VLOOKUP(B24,'Comp SINAPI BA 04-2026 Onerado'!$B$11:$E$50004,4,0)) -> 3.05 | G24: =TRUNC(E24*F24,2) -> 39.77 | H24: ca | I24: considerando 1 tonelada de carga
A25: =B19 -> CPU.02 | C25: SERVIÇOS | G25: 0 | H25: ss
A26: =B19 -> CPU.02 | C26: MÃO DE OBRA | G26: 0 | H26: mdo
B28: CPU.03 | C28: Pintura de Gradil Metálico com 01 demão de tinta anti-corrosiva - zarcão e 02 demãos de esmalte sintético, inclusive lixamento | D28: m2 | E28: 1 | G28: =SUM(G36,G31,G30,G29) -> 62.92 | H28: S
A29: =B28 -> CPU.03 | C29: MATERIAL | G29: 0 | H29: ss
A30: =B28 -> CPU.03 | C30: EQUIPAMENTOS | G30: 0 | H30: ss
A31: =B28 -> CPU.03 | C31: SERVIÇOS | G31: =SUM(G32:G35) -> 62.92 | H31: ss
A32: ORSE | B32: 7696 | C32: Pintura de Gradil Metálico padrão CEHOP, confeccionado com barras chata 2" x 5/16", com 01 demão de tinta anti-corrosiva - zarcão e 02 demãos de esmalte sintético (medir somente uma vez) | D32: m2 | E32: 1 | F32: 45.78 | G32: =TRUNC(E32*F32,2) -> 45.78 | H32: ca
A33: PRÓPRIA | B33: CODE | C33: Hospedagem | D33: dia | E33: ='Memorial de cálculo'!D23*'Memorial de cálculo'!H23 -> 0.1125 | F33: ='CPU HOSPEDAGEM'!$C$19 -> 94.22473485 | G33: 10.6 | H33: ca
A34: PRÓPRIA | B34: CODE | C34: Veículo para serviço tipo pick-up, cabine dupla - 2.0 16V 4x4 diesel Aut. | D34: dia | E34: =LARGE('Memorial de cálculo'!H23:H23,1) -> 0.028125 | F34: ='CPU-VEICULO_PickUp'!C11 -> 223.9178193 | G34: 6.29 | H34: ca
A35: SINAPI | B35: 93589 | C35: =PROPER(IF(H35="i",VLOOKUP(B35,'Ins SINAPI BA 04-2026 Onerado'!$B$11:$F$50003,2,0),VLOOKUP(B35,'Comp SINAPI BA 04-2026 Onerado'!$B$11:$C$50004,2,0))) -> Transporte Com Caminhão Basculante De 10 M³, Em Via Urbana Em Revestimento Primário (Unidade: M3Xkm). Af_02/2026 | D35: =IF(H35="i",VLOOKUP(B35,'Ins SINAPI BA 04-2026 Onerado'!$B$11:$F$50003,2,0),VLOOKUP(B35,'Comp SINAPI BA 04-2026 Onerado'!$B$11:$H$50004,3,0)) -> M3XKM | E35: =15*0.005 -> 0.075 | F35: =IF(H35="i",VLOOKUP(B35,'Ins SINAPI BA 04-2026 Onerado'!$B$11:$F$50003,5,0),VLOOKUP(B35,'Comp SINAPI BA 04-2026 Onerado'!$B$11:$E$50004,4,0)) -> 3.35 | G35: 0.25 | H35: ca
A36: =B28 -> CPU.03 | C36: MÃO DE OBRA | G36: 0 | H36: mdo
B38: CPU.04 | C38: Limpeza de vegetação | D38: m2 | E38: 1 | G38: =SUM(G47,G41,G40,G39) -> 1.95 | H38: S
A39: =B38 -> CPU.04 | C39: MATERIAL | G39: 0 | H39: ss
A40: =B38 -> CPU.04 | C40: EQUIPAMENTOS | G40: 0 | H40: ss
A41: =B38 -> CPU.04 | C41: SERVIÇOS | G41: =SUM(G42:G46) -> 1.95 | H41: ss
A42: SINAPI | B42: 98524 | C42: =PROPER(IF(H42="i",VLOOKUP(B42,'Ins SINAPI BA 04-2026 Onerado'!$B$11:$F$50003,2,0),VLOOKUP(B42,'Comp SINAPI BA 04-2026 Onerado'!$B$11:$C$50004,2,0))) -> Limpeza Manual De Vegetação Em Terreno Com Enxada. Af_03/2024 | D42: =IF(H42="i",VLOOKUP(B42,'Ins SINAPI BA 04-2026 Onerado'!$B$11:$F$50003,2,0),VLOOKUP(B42,'Comp SINAPI BA 04-2026 Onerado'!$B$11:$H$50004,3,0)) -> M2 | E42: =1*0.2 -> 0.2 | F42: =IF(H42="i",VLOOKUP(B42,'Ins SINAPI BA 04-2026 Onerado'!$B$11:$F$50003,5,0),VLOOKUP(B42,'Comp SINAPI BA 04-2026 Onerado'!$B$11:$E$50004,4,0)) -> 5.57 | G42: =TRUNC(E42*F42,2) -> 1.11 | H42: ca | I42: 20% de roçada com enxada
A43: SICRO | B43: 4915776 | C43: Roçada com roçadeira costal | D43: ha | E43: =0.0001*0.8 -> 8e-05 | F43: 822.83 | G43: =TRUNC(E43*F43,2) -> 0.06 | H43: ca | I43: 80% de roçada com roçadeira
A44: PRÓPRIA | B44: CODE | C44: Hospedagem | D44: dia | E44: ='Memorial de cálculo'!D27*'Memorial de cálculo'!H27+'Memorial de cálculo'!D28*'Memorial de cálculo'!H28 -> 0.002833333333 | F44: ='CPU HOSPEDAGEM'!$C$19 -> 94.22473485 | G44: =TRUNC(E44*F44,2) -> 0.26 | H44: ca
A45: PRÓPRIA | B45: CODE | C45: Veículo para serviço tipo pick-up, cabine dupla - 2.0 16V 4x4 diesel Aut. | D45: dia | E45: =LARGE('Memorial de cálculo'!H27:H28,1) -> 0.00125 | F45: ='CPU-VEICULO_PickUp'!C11 -> 223.9178193 | G45: 0.27 | H45: ca
A46: SINAPI | B46: 93589 | C46: =PROPER(IF(H46="i",VLOOKUP(B46,'Ins SINAPI BA 04-2026 Onerado'!$B$11:$F$50003,2,0),VLOOKUP(B46,'Comp SINAPI BA 04-2026 Onerado'!$B$11:$C$50004,2,0))) -> Transporte Com Caminhão Basculante De 10 M³, Em Via Urbana Em Revestimento Primário (Unidade: M3Xkm). Af_02/2026 | D46: =IF(H46="i",VLOOKUP(B46,'Ins SINAPI BA 04-2026 Onerado'!$B$11:$F$50003,2,0),VLOOKUP(B46,'Comp SINAPI BA 04-2026 Onerado'!$B$11:$H$50004,3,0)) -> M3XKM | E46: =15*0.005 -> 0.075 | F46: =IF(H46="i",VLOOKUP(B46,'Ins SINAPI BA 04-2026 Onerado'!$B$11:$F$50003,5,0),VLOOKUP(B46,'Comp SINAPI BA 04-2026 Onerado'!$B$11:$E$50004,4,0)) -> 3.35 | G46: 0.25 | H46: ca | I46: considerando 5 mm de altura da vegetação e 15 km para bota-fora
A47: =B38 -> CPU.04 | C47: MÃO DE OBRA | G47: 0 | H47: mdo
B49: CPU.05 | C49: Corte de tronco e remoção de raiz | D49: un | E49: 1 | G49: =SUM(G60,G52,G51,G50) -> 351.35 | H49: S
A50: =B49 -> CPU.05 | C50: MATERIAL | G50: 0 | H50: ss
A51: =B49 -> CPU.05 | C51: EQUIPAMENTOS | G51: 0 | H51: ss
A52: =B49 -> CPU.05 | C52: SERVIÇOS | G52: =SUM(G53:G59) -> 351.35 | H52: ss
A53: SINAPI | B53: 98529 | C53: =PROPER(IF(H53="i",VLOOKUP(B53,'Ins SINAPI BA 04-2026 Onerado'!$B$11:$F$50003,2,0),VLOOKUP(B53,'Comp SINAPI BA 04-2026 Onerado'!$B$11:$C$50004,2,0))) -> Corte Raso E Recorte De Árvore Com Diâmetro De Tronco Maior Ou Igual A 0,20 M E Menor Que 0,40 M. Af_03/2024 | D53: =IF(H53="i",VLOOKUP(B53,'Ins SINAPI BA 04-2026 Onerado'!$B$11:$F$50003,2,0),VLOOKUP(B53,'Comp SINAPI BA 04-2026 Onerado'!$B$11:$H$50004,3,0)) -> UN | E53: 1 | F53: =IF(H53="i",VLOOKUP(B53,'Ins SINAPI BA 04-2026 Onerado'!$B$11:$F$50003,5,0),VLOOKUP(B53,'Comp SINAPI BA 04-2026 Onerado'!$B$11:$E$50004,4,0)) -> 87.93 | G53: =TRUNC(E53*F53,2) -> 87.93 | H53: ca
A54: SINAPI | B54: 98526 | C54: =PROPER(IF(H54="i",VLOOKUP(B54,'Ins SINAPI BA 04-2026 Onerado'!$B$11:$F$50003,2,0),VLOOKUP(B54,'Comp SINAPI BA 04-2026 Onerado'!$B$11:$C$50004,2,0))) -> Remoção De Raízes Remanescentes De Tronco De Árvore Com Diâmetro Maior Ou Igual A 0,20 M E Menor Que 0,40 M. Af_03/2024 | D54: =IF(H54="i",VLOOKUP(B54,'Ins SINAPI BA 04-2026 Onerado'!$B$11:$F$50003,2,0),VLOOKUP(B54,'Comp SINAPI BA 04-2026 Onerado'!$B$11:$H$50004,3,0)) -> UN | E54: 1 | F54: =IF(H54="i",VLOOKUP(B54,'Ins SINAPI BA 04-2026 Onerado'!$B$11:$F$50003,5,0),VLOOKUP(B54,'Comp SINAPI BA 04-2026 Onerado'!$B$11:$E$50004,4,0)) -> 156.83 | G54: 156.83 | H54: ca
A55: SINAPI | B55: 6081 | C55: =PROPER(IF(H55="i",VLOOKUP(B55,'Ins SINAPI BA 04-2026 Onerado'!$B$11:$F$50003,2,0),VLOOKUP(B55,'Comp SINAPI BA 04-2026 Onerado'!$G$11:$H$50004,2,0))) -> Argila Ou Barro Para Aterro/Reaterro (Com Transporte Ate 10 Km) | D55: =IF(H55="i",VLOOKUP(B55,'Ins SINAPI BA 04-2026 Onerado'!$B$11:$F$50003,3,0),VLOOKUP(B55,'Comp SINAPI BA 04-2026 Onerado'!$G$11:$H$50004,3,0)) -> M3 | E55: =0.5*0.5*1 -> 0.25 | F55: 57.41 | G55: 14.35 | H55: i | I55: considerando 0,25 m3 por árvore
A56: SINAPI | B56: 93382 | C56: =PROPER(IF(H56="i",VLOOKUP(B56,'Ins SINAPI BA 04-2026 Onerado'!$B$11:$F$50003,2,0),VLOOKUP(B56,'Comp SINAPI BA 04-2026 Onerado'!$B$11:$C$50004,2,0))) -> Reaterro Manual De Valas, Com Compactador De Solos De Percussão. Af_08/2023 | D56: =IF(H56="i",VLOOKUP(B56,'Ins SINAPI BA 04-2026 Onerado'!$B$11:$F$50003,2,0),VLOOKUP(B56,'Comp SINAPI BA 04-2026 Onerado'!$B$11:$H$50004,3,0)) -> M3 | E56: 0.25 | F56: =IF(H56="i",VLOOKUP(B56,'Ins SINAPI BA 04-2026 Onerado'!$B$11:$F$50003,5,0),VLOOKUP(B56,'Comp SINAPI BA 04-2026 Onerado'!$B$11:$E$50004,4,0)) -> 33.12 | G56: 8.28 | H56: ca
A57: PRÓPRIA | B57: CODE | C57: Hospedagem | D57: dia | E57: ='Memorial de cálculo'!D32*'Memorial de cálculo'!H32+'Memorial de cálculo'!D33*'Memorial de cálculo'!H33 -> 0.41525 | F57: ='CPU HOSPEDAGEM'!$C$19 -> 94.22473485 | G57: =TRUNC(E57*F57,2) -> 39.12 | H57: ca
A58: PRÓPRIA | B58: CODE | C58: Veículo para serviço tipo pick-up, cabine dupla - 2.0 16V 4x4 diesel Aut. | D58: dia | E58: =LARGE('Memorial de cálculo'!H32:H33,1) -> 0.1441875 | F58: ='CPU-VEICULO_PickUp'!C11 -> 223.9178193 | G58: 32.28 | H58: ca
A59: SINAPI | B59: 93589 | C59: =PROPER(IF(H59="i",VLOOKUP(B59,'Ins SINAPI BA 04-2026 Onerado'!$B$11:$F$50003,2,0),VLOOKUP(B59,'Comp SINAPI BA 04-2026 Onerado'!$B$11:$C$50004,2,0))) -> Transporte Com Caminhão Basculante De 10 M³, Em Via Urbana Em Revestimento Primário (Unidade: M3Xkm). Af_02/2026 | D59: =IF(H59="i",VLOOKUP(B59,'Ins SINAPI BA 04-2026 Onerado'!$B$11:$F$50003,2,0),VLOOKUP(B59,'Comp SINAPI BA 04-2026 Onerado'!$B$11:$H$50004,3,0)) -> M3XKM | E59: =15*0.25 -> 3.75 | F59: =IF(H59="i",VLOOKUP(B59,'Ins SINAPI BA 04-2026 Onerado'!$B$11:$F$50003,5,0),VLOOKUP(B59,'Comp SINAPI BA 04-2026 Onerado'!$B$11:$E$50004,4,0)) -> 3.35 | G59: 12.56 | H59: ca | I59: considerando 0,25 m3 por árvore e 15 km para bota-fora
A60: =B49 -> CPU.05 | C60: MÃO DE OBRA | G60: 0 | H60: mdo
B62: CPU.07 | C62: Régua Linimétrica Padrão “ANA”, Aço Carbono - 2 X 70 X 1000 mm (Fornecimento e Instalação) | D62: un | E62: 1 | G62: =SUM(G71,G67,G66,G63) -> 389.75 | H62: S
A63: =B62 -> CPU.07 | C63: MATERIAL | G63: =SUM(G64:G65) -> 230.6 | H63: ss
A64: 2025-05-16 | B64: cotação | C64: RÉGUA LINIMÉTRICA PADRÃO “ANA”, Alumínio | D64: un | E64: 1 | F64: =Cotação_regua!J11 -> 169 | G64: =TRUNC(E64*F64,2) -> 169 | H64: i
A65: SINAPI | B65: 2747 | C65: =PROPER(IF(H65="i",VLOOKUP(B65,'Ins SINAPI BA 04-2026 Onerado'!$B$11:$F$50003,2,0),VLOOKUP(B65,'Comp SINAPI BA 04-2026 Onerado'!$B$11:$C$50004,2,0))) -> Mourao Rolico De Madeira Tratada, D = 16 A 20 Cm, H = 2,20 M, Em Eucalipto Ou Equivalente Da Regiao (Para Cerca) | D65: =IF(H65="i",VLOOKUP(B65,'Ins SINAPI BA 04-2026 Onerado'!$B$11:$F$50003,3,0),VLOOKUP(B65,'Comp SINAPI BA 04-2026 Onerado'!$B$11:$H$50004,3,0)) -> M | E65: 1.5 | F65: =IF(H65="i",VLOOKUP(B65,'Ins SINAPI BA 04-2026 Onerado'!$B$11:$F$10003,5,0),VLOOKUP(B65,'Comp SINAPI BA 04-2026 Onerado'!$B$11:$E$10004,4,0)) -> 41.07 | G65: =TRUNC(E65*F65,2) -> 61.6 | H65: i
A66: =B62 -> CPU.07 | C66: EQUIPAMENTOS | G66: 0 | H66: ss
A67: =B62 -> CPU.07 | C67: SERVIÇOS | G67: =SUM(G68:G70) -> 79.44 | H67: ss
A68: SINAPI | B68: 94975 | C68: =PROPER(IF(H68="i",VLOOKUP(B68,'Ins SINAPI BA 04-2026 Onerado'!$B$11:$F$50003,2,0),VLOOKUP(B68,'Comp SINAPI BA 04-2026 Onerado'!$B$11:$C$50004,2,0))) -> Concreto Fck = 15Mpa, Traço 1:3,4:3,5 (Em Massa Seca De Cimento/ Areia Média/ Brita 1) - Preparo Manual. Af_05/2021 | D68: =IF(H68="i",VLOOKUP(B68,'Ins SINAPI BA 04-2026 Onerado'!$B$11:$F$50003,2,0),VLOOKUP(B68,'Comp SINAPI BA 04-2026 Onerado'!$B$11:$H$50004,3,0)) -> M3 | E68: 0.01 | F68: =IF(H68="i",VLOOKUP(B68,'Ins SINAPI BA 04-2026 Onerado'!$B$11:$F$10003,5,0),VLOOKUP(B68,'Comp SINAPI BA 04-2026 Onerado'!$B$11:$E$10004,4,0)) -> 640.88 | G68: =TRUNC(E68*F68,2) -> 6.4 | H68: ca
A69: PRÓPRIA | B69: CODE | C69: Hospedagem | D69: un | E69: ='Memorial de cálculo'!D41*'Memorial de cálculo'!H41+'Memorial de cálculo'!D42*'Memorial de cálculo'!H42 -> 0.3 | F69: ='CPU HOSPEDAGEM'!$C$19 -> 94.22473485 | G69: =TRUNC(E69*F69,2) -> 28.26 | H69: ca
A70: PRÓPRIA | B70: CODE | C70: Veículo para serviço tipo pick-up, cabine dupla - 2.0 16V 4x4 diesel Aut. | D70: dia | E70: =LARGE('Memorial de cálculo'!H41:H42,1) -> 0.2 | F70: ='CPU-VEICULO_PickUp'!C11 -> 223.9178193 | G70: =TRUNC(E70*F70,2) -> 44.78 | H70: ca
A71: =B62 -> CPU.07 | C71: MÃO DE OBRA | G71: =SUM(G72:G73) -> 79.71 | H71: mdo
A72: SINAPI | B72: 90781 | C72: =PROPER(IF(H72="i",VLOOKUP(B72,'Ins SINAPI BA 04-2026 Onerado'!$B$11:$F$50003,2,0),VLOOKUP(B72,'Comp SINAPI BA 04-2026 Onerado'!$B$11:$C$50004,2,0))) -> Topografo Com Encargos Complementares | D72: =IF(H72="i",VLOOKUP(B72,'Ins SINAPI BA 04-2026 Onerado'!$B$11:$F$50003,2,0),VLOOKUP(B72,'Comp SINAPI BA 04-2026 Onerado'!$B$11:$H$50004,3,0)) -> H | E72: 0.8 | F72: =IF(H72="i",VLOOKUP(B72,'Ins SINAPI BA 04-2026 Onerado'!$B$11:$F$10003,5,0),VLOOKUP(B72,'Comp SINAPI BA 04-2026 Onerado'!$B$11:$E$10004,4,0)) -> 47.37 | G72: =TRUNC(E72*F72,2) -> 37.89 | H72: ca
A73: SINAPI | B73: 88316 | C73: =PROPER(IF(H73="i",VLOOKUP(B73,'Ins SINAPI BA 04-2026 Onerado'!$B$11:$F$50003,2,0),VLOOKUP(B73,'Comp SINAPI BA 04-2026 Onerado'!$B$11:$C$50004,2,0))) -> Servente Com Encargos Complementares | D73: =IF(H73="i",VLOOKUP(B73,'Ins SINAPI BA 04-2026 Onerado'!$B$11:$F$50003,2,0),VLOOKUP(B73,'Comp SINAPI BA 04-2026 Onerado'!$B$11:$H$50004,3,0)) -> H | E73: 1.6 | F73: =IF(H73="i",VLOOKUP(B73,'Ins SINAPI BA 04-2026 Onerado'!$B$11:$F$10003,5,0),VLOOKUP(B73,'Comp SINAPI BA 04-2026 Onerado'!$B$11:$E$10004,4,0)) -> 26.14 | G73: =TRUNC(E73*F73,2) -> 41.82 | H73: ca
B75: CPU.08 | C75: Administração Local 02 | D75: Global | E75: 1 | G75: =SUM(G80,G78,G77,G76) -> 2142.24 | H75: S
A76: =B75 -> CPU.08 | C76: MATERIAL | G76: 0 | H76: ss
A77: =B75 -> CPU.08 | C77: EQUIPAMENTOS | G77: 0 | H77: ss
A78: =B75 -> CPU.08 | C78: SERVIÇOS | G78: =G79 -> 1050 | H78: ss
A79: SETOP | B79: ED-50155 | C79: LOCAÇÃO DE BANHEIRO QUÍMICO, DIMENSÃO (110X120X230)CM, LINHA PADRÃO, CONTENDO UMA (1) PIA/HIGIENIZADOR DE MÃOS, INCLUSIVE MANUTENÇÃO E MOBILIZAÇÃO/DESMOBILIZAÇÃO | D79: UNXMÊS | E79: 1 | F79: 1050 | G79: =TRUNC(E79*F79,2) -> 1050 | H79: ca
A80: =B75 -> CPU.08 | C80: MÃO DE OBRA | G80: =SUM(G81:G82) -> 1092.24 | H80: mdo
A81: SINAPI | B81: 90778 | C81: =PROPER(IF(H81="i",VLOOKUP(B81,'Ins SINAPI BA 04-2026 Onerado'!$B$11:$F$50003,2,0),VLOOKUP(B81,'Comp SINAPI BA 04-2026 Onerado'!$B$11:$C$50004,2,0))) -> Engenheiro Civil De Obra Pleno Com Encargos Complementares | D81: =IF(H81="i",VLOOKUP(B81,'Ins SINAPI BA 04-2026 Onerado'!$B$11:$F$50003,2,0),VLOOKUP(B81,'Comp SINAPI BA 04-2026 Onerado'!$B$11:$H$50004,3,0)) -> H | E81: 4 | F81: =IF(H81="i",VLOOKUP(B81,'Ins SINAPI BA 04-2026 Onerado'!$B$11:$F$50003,5,0),VLOOKUP(B81,'Comp SINAPI BA 04-2026 Onerado'!$B$11:$E$50004,4,0)) -> 150.71 | G81: =TRUNC(E81*F81,2) -> 602.84 | H81: ca
A82: SINAPI | B82: 90776 | C82: =PROPER(IF(H82="i",VLOOKUP(B82,'Ins SINAPI BA 04-2026 Onerado'!$B$11:$F$50003,2,0),VLOOKUP(B82,'Comp SINAPI BA 04-2026 Onerado'!$B$11:$C$50004,2,0))) -> Encarregado Geral Com Encargos Complementares | D82: =IF(H82="i",VLOOKUP(B82,'Ins SINAPI BA 04-2026 Onerado'!$B$11:$F$50003,2,0),VLOOKUP(B82,'Comp SINAPI BA 04-2026 Onerado'!$B$11:$H$50004,3,0)) -> H | E82: 10 | F82: =IF(H82="i",VLOOKUP(B82,'Ins SINAPI BA 04-2026 Onerado'!$B$11:$F$50003,5,0),VLOOKUP(B82,'Comp SINAPI BA 04-2026 Onerado'!$B$11:$E$50004,4,0)) -> 48.94 | G82: =TRUNC(E82*F82,2) -> 489.4 | H82: ca
B84: CPU.09 | C84: Abrigo para o Gerador e Instalação do Gerador | D84: un | E84: 1 | G84: =SUM(G117,G87,G86,G85) -> 35239.59 | H84: S | J84: MEMORIAL DESCRITIVO DOS SERVIÇOS
A85: =B84 -> CPU.09 | C85: MATERIAL | G85: 0 | H85: ss | J85: Premissas adotadas
A86: =B84 -> CPU.09 | C86: EQUIPAMENTOS | G86: 0 | H86: ss | J86: Área do abrigo: 3mx5m = 15 m² | K86: =2*(3*2.7) -> 16.2 | L86: =K86+K87 -> 43.2 | M86: área de alvenaria, pintura, reboco e chapisco
A87: =B84 -> CPU.09 | C87: SERVIÇOS | G87: =SUM(G88:G116) -> 31693.03 | H87: ss | J87: Base: SINAPI Bahia – março/2026 | K87: =2*(5*2.7) -> 27 | M87: Foi considerado 2 paredes de 3 e 5m de extensão por 2,7m de altura
A88: SINAPI | B88: 98524 | C88: LIMPEZA MANUAL DE VEGETAÇÃO EM TERRENO COM ENXADA. | D88: m² | E88: 15 | F88: =IF(H88="i",VLOOKUP(B88,'Ins SINAPI BA 04-2026 Onerado'!$B$11:$F$50003,5,0),VLOOKUP(B88,'Comp SINAPI BA 04-2026 Onerado'!$B$11:$E$50004,4,0)) -> 5.57 | G88: =TRUNC(E88*F88,2) -> 83.55
A89: SINAPI | B89: 99059 | C89: LOCAÇÃO CONVENCIONAL DE OBRA, UTILIZANDO GABARITO DE TÁBUAS CORRIDAS PONTALETADAS A CADA 2,00M - 2 UTILIZAÇÕES. AF_03/2024 | D89: m | E89: 16 | F89: =IF(H89="i",VLOOKUP(B89,'Ins SINAPI BA 04-2026 Onerado'!$B$11:$F$50003,5,0),VLOOKUP(B89,'Comp SINAPI BA 04-2026 Onerado'!$B$11:$E$50004,4,0)) -> 72.77 | G89: =TRUNC(E89*F89,2) -> 1164.32 | J89: 1. SERVIÇOS PRELIMINARES
A90: SINAPI | B90: 93358 | C90: ESCAVAÇÃO MANUAL DE VALA. AF_09/2024 | D90: m³ | E90: 4 | F90: =IF(H90="i",VLOOKUP(B90,'Ins SINAPI BA 04-2026 Onerado'!$B$11:$F$50003,5,0),VLOOKUP(B90,'Comp SINAPI BA 04-2026 Onerado'!$B$11:$E$50004,4,0)) -> 103.4 | G90: 413.6 | J90: Limpeza do terreno
A91: SINAPI | B91: 96620 | C91: LASTRO DE CONCRETO MAGRO, APLICADO EM PISOS, LAJES SOBRE SOLO OU RADIERS. AF_01/2024 | D91: m³ | E91: 2 | F91: =IF(H91="i",VLOOKUP(B91,'Ins SINAPI BA 04-2026 Onerado'!$B$11:$F$50003,5,0),VLOOKUP(B91,'Comp SINAPI BA 04-2026 Onerado'!$B$11:$E$50004,4,0)) -> 963.26 | G91: 1926.52 | J91: Locação da obra
A92: SINAPI | B92: 103329 | C92: ALVENARIA DE VEDAÇÃO DE BLOCOS CERÂMICOS FURADOS NA HORIZONTAL DE 9X19X19 CM (ESPESSURA 9 CM) E ARGAMASSA DE ASSENTAMENTO COM PREPARO MANUAL. AF_12/2021 | D92: m² | E92: 44 | F92: =IF(H92="i",VLOOKUP(B92,'Ins SINAPI BA 04-2026 Onerado'!$B$11:$F$50003,5,0),VLOOKUP(B92,'Comp SINAPI BA 04-2026 Onerado'!$B$11:$E$50004,4,0)) -> 115.54 | G92: 5083.76
A93: =A92 -> SINAPI | B93: 94964 | C93: CONCRETO FCK = 20MPA, TRAÇO 1:2,7:3 (EM MASSA SECA DE CIMENTO/ AREIA MÉDIA/ BRITA 1) - PREPARO MECÂNICO COM BETONEIRA 400 L. AF_05/2021 (base gerador) | D93: m³ | E93: 3 | F93: =IF(H93="i",VLOOKUP(B93,'Ins SINAPI BA 04-2026 Onerado'!$B$11:$F$50003,5,0),VLOOKUP(B93,'Comp SINAPI BA 04-2026 Onerado'!$B$11:$E$50004,4,0)) -> 654.9 | G93: 1964.7 | J93: 2. FUNDAÇÃO + BASE
A94: =A93 -> SINAPI | B94: 96545 | C94: ARMAÇÃO DE BLOCO UTILIZANDO AÇO CA-50 DE 8 MM - MONTAGEM. AF_01/2024 | D94: kg | E94: 180 | F94: =IF(H94="i",VLOOKUP(B94,'Ins SINAPI BA 04-2026 Onerado'!$B$11:$F$50003,5,0),VLOOKUP(B94,'Comp SINAPI BA 04-2026 Onerado'!$B$11:$E$50004,4,0)) -> 16.5 | G94: 2970 | J94: Escavação manual
A95: SINAPI | B95: 92443 | C95: MONTAGEM E DESMONTAGEM DE FÔRMA DE PILARES RETANGULARES E ESTRUTURAS SIMILARES, PÉ-DIREITO SIMPLES, EM CHAPA DE MADEIRA COMPENSADA PLASTIFICADA, 18 UTILIZAÇÕES. AF_09/2020 | D95: m² | E95: 15 | F95: =IF(H95="i",VLOOKUP(B95,'Ins SINAPI BA 04-2026 Onerado'!$B$11:$F$50003,5,0),VLOOKUP(B95,'Comp SINAPI BA 04-2026 Onerado'!$B$11:$E$50004,4,0)) -> 56.64 | G95: 849.6 | J95: Lastro de concreto magro
A96: SINAPI | B96: 105026 | C96: VERGA MOLDADA IN LOCO COM UTILIZAÇÃO DE BLOCOS CANALETA, ESPESSURA DE *10* CM. AF_03/2024 | D96: m | E96: 30 | F96: =IF(H96="i",VLOOKUP(B96,'Ins SINAPI BA 04-2026 Onerado'!$B$11:$F$50003,5,0),VLOOKUP(B96,'Comp SINAPI BA 04-2026 Onerado'!$B$11:$E$50004,4,0)) -> 44.61 | G96: 1338.3 | J96: Concreto armado (base gerador)
A97: SINAPI | B97: 87893 | C97: CHAPISCO APLICADO EM ALVENARIA (SEM PRESENÇA DE VÃOS) E ESTRUTURAS DE CONCRETO DE FACHADA, COM COLHER DE PEDREIRO. ARGAMASSA TRAÇO 1:3 COM PREPARO MANUAL. AF_10/2022 | D97: m² | E97: =E92 -> 44 | F97: =IF(H97="i",VLOOKUP(B97,'Ins SINAPI BA 04-2026 Onerado'!$B$11:$F$50003,5,0),VLOOKUP(B97,'Comp SINAPI BA 04-2026 Onerado'!$B$11:$E$50004,4,0)) -> 9.39 | G97: 413.16 | J97: Aço CA-50
A98: SIURB | B98: 11002013 | C98: REBOCO INTERNO - ARGAMASSA PRÉ-FABRICADA | D98: m² | E98: =E97 -> 44 | F98: 26.76 | G98: 1177.44 | J98: Forma de madeira
A99: SINAPI | B99: 90447 | C99: RASGO LINEAR MANUAL EM ALVENARIA, PARA ELETRODUTOS, DIÂMETROS MENORES OU IGUAIS A 40 MM. AF_09/2023 | D99: m | E99: 30 | F99: =IF(H99="i",VLOOKUP(B99,'Ins SINAPI BA 04-2026 Onerado'!$B$11:$F$50003,5,0),VLOOKUP(B99,'Comp SINAPI BA 04-2026 Onerado'!$B$11:$E$50004,4,0)) -> 10.33 | G99: 309.9 | J99: 3. ALVENARIA + ESTRUTURA - área estimada: 45 m²
A100: SINAPI | B100: 105921 | C100: LUMINÁRIA REFLETOR LED PARA ILUMINAÇÃO PÚBLICA, 200 W - FORNECIMENTO E INSTALAÇÃO. AF_02/2025 | D100: un | E100: 4 | F100: =IF(H100="i",VLOOKUP(B100,'Ins SINAPI BA 04-2026 Onerado'!$B$11:$F$50003,5,0),VLOOKUP(B100,'Comp SINAPI BA 04-2026 Onerado'!$B$11:$E$50004,4,0)) -> 0 | G100: 0 | J100: Alvenaria bloco cerâmico
A101: SINAPI | B101: 96986 | C101: HASTE DE ATERRAMENTO, DIÂMETRO 3/4", COM 3 METROS - FORNECIMENTO E INSTALAÇÃO. AF_08/2023 | D101: un | E101: 1 | F101: =IF(H101="i",VLOOKUP(B101,'Ins SINAPI BA 04-2026 Onerado'!$B$11:$F$50003,5,0),VLOOKUP(B101,'Comp SINAPI BA 04-2026 Onerado'!$B$11:$E$50004,4,0)) -> 132.99 | G101: 132.99 | J101: argamassa
A102: SINAPI | B102: 92580 | C102: TRAMA DE AÇO COMPOSTA POR TERÇAS PARA TELHADOS DE ATÉ 2 ÁGUAS PARA TELHA ONDULADA DE FIBROCIMENTO, METÁLICA, PLÁSTICA OU TERMOACÚSTICA, INCLUSO TRANSPORTE VERTICAL, EXCLUSIVE PINTURA. AF_10/2025_PS | D102: m² | E102: 18 | F102: =IF(H102="i",VLOOKUP(B102,'Ins SINAPI BA 04-2026 Onerado'!$B$11:$F$50003,5,0),VLOOKUP(B102,'Comp SINAPI BA 04-2026 Onerado'!$B$11:$E$50004,4,0)) -> 61.16 | G102: 1100.88
A103: SINAPI | B103: 94216 | C103: TELHAMENTO COM TELHA METÁLICA TERMOACÚSTICA E = 30 MM, COM ATÉ 2 ÁGUAS, INCLUSO IÇAMENTO. AF_07/2019 | D103: m² | E103: 18 | F103: =IF(H103="i",VLOOKUP(B103,'Ins SINAPI BA 04-2026 Onerado'!$B$11:$F$50003,5,0),VLOOKUP(B103,'Comp SINAPI BA 04-2026 Onerado'!$B$11:$E$50004,4,0)) -> 190.72 | G103: 3432.96 | J103: Vergas e cintas
A104: SETOP | B104: ED-50979 | C104: PORTA EM PERFIL E CHAPA METÁLICA, EXCLUSIVE FERRAGENS E PINTURA | D104: M2 | E104: =1.5*2.1 -> 3.15 | F104: 438.5 | G104: =TRUNC(E104*F104,2) -> 1381.27 | J104: Chapisco + reboco
A105: SETOP | B105: ED-23033 | C105: FERRAGENS PARA PORTA METÁLICA, DE ABRIR, COM UMA (1) FOLHAS, INCLUSIVE FECHADURA TIPO EXTERNA COM GRAU DE SEGURANÇA MÉDIO, ACABAMENTO EM ESPELHO CROMADO COM MAÇANETA MODELO ALAVANCA EM ZAMAC E DOBRADIÇA DE FERRO, MEDIDAS (3"X2.1/2"), TIPO PINO SOLTO COM BOLA, ACABAMENTO CROMADO, FORNECIMENTO, ACESSÓRIOS E INSTALAÇÃO, EXCLUSIVE PORTA METÁLICA | D105: un | E105: 2 | F105: 159.95 | G105: =TRUNC(E105*F105,2) -> 319.9
A106: SINAPI | B106: 100722 | C106: PINTURA COM TINTA ALQUÍDICA DE FUNDO (TIPO ZARCÃO) APLICADA A ROLO OU PINCEL SOBRE SUPERFÍCIES METÁLICAS (EXCETO PERFIL) EXECUTADO EM OBRA (POR DEMÃO). AF_01/2020 | D106: M2 | E106: =E104 -> 3.15 | F106: =IF(H106="i",VLOOKUP(B106,'Ins SINAPI BA 04-2026 Onerado'!$B$11:$F$50003,5,0),VLOOKUP(B106,'Comp SINAPI BA 04-2026 Onerado'!$B$11:$E$50004,4,0)) -> 30.7 | G106: =TRUNC(E106*F106,2) -> 96.7
A107: SINAPI | B107: 100762 | C107: PINTURA COM TINTA ALQUÍDICA DE ACABAMENTO (ESMALTE SINTÉTICO FOSCO) APLICADA A ROLO OU PINCEL SOBRE SUPERFÍCIES METÁLICAS (EXCETO PERFIL) EXECUTADO EM OBRA (02 DEMÃOS). AF_01/2020 | D107: M2 | E107: =E106 -> 3.15 | F107: =IF(H107="i",VLOOKUP(B107,'Ins SINAPI BA 04-2026 Onerado'!$B$11:$F$50003,5,0),VLOOKUP(B107,'Comp SINAPI BA 04-2026 Onerado'!$B$11:$E$50004,4,0)) -> 62.47 | G107: =TRUNC(E107*F107,2) -> 196.78
A108: SETOP | B108: ED-29982 | C108: JANELA VENEZIANA FIXA (JV), CONFORME CADERNO DE PROJETO PADRÃO PENITENCIÁRIA MG (DETALHE EQ18) | D108: m² | E108: =(0.3*1)*4 -> 1.2 | F108: 1134.11 | G108: =TRUNC(E108*F108,2) -> 1360.93 | J108: pedreiro
A109: SINAPI | B109: 98327 | C109: FABRICAÇÃO DE DUTO RETANGULAR PARA AR CONDICIONADO (TRECHO RETO) EM CHAPA GALVANIZADA BITOLA 22. AF_03/2024 | D109: m² | E109: 6 | F109: 136.26 | G109: 817.56 | J109: servente
A110: SINAPI | B110: 98371 | C110: INSTALAÇÃO DE DUTO RETANGULAR PARA AR CONDICIONADO EM PAINEL PRÉ-ISOLADO, INCLUSO FABRICAÇÃO. AF_03/2024 | D110: m² | E110: =E109 -> 6 | F110: 73.82 | G110: 442.92
A111: COTAÇÃO | B111: COTAÇÃO | C111: Amortecedor Antivibratório Tradicional Mini 1/2" 500KG Vibra-Stop Unidade, Coxim | D111: un | E111: 6 | F111: =Amortecedor_Coxim!N9 -> 105.904 | G111: 635.42 | J111: 4. CONCRETO
A112: COTAÇÃO | B112: COTAÇÃO | C112: Chave manual De Transferência Rede/gerador 3 Posicoes 4 Polos 160a | D112: un | E112: 1 | F112: ='Chave comutaçao'!P9 -> 785.0625 | G112: 785.06 | J112: concreto estrutural fck 20–25 MPa
A113: SINAPI | B113: 101563 | C113: CABO DE COBRE FLEXÍVEL ISOLADO, 35 MM², 0,6/1,0 KV, PARA REDE AÉREA DE DISTRIBUIÇÃO DE ENERGIA ELÉTRICA DE BAIXA TENSÃO - FORNECIMENTO E INSTALAÇÃO. AF_12/2025 | D113: m | E113: 35 | F113: =IF(H113="i",VLOOKUP(B113,'Ins SINAPI BA 04-2026 Onerado'!$B$11:$F$50003,5,0),VLOOKUP(B113,'Comp SINAPI BA 04-2026 Onerado'!$B$11:$E$50004,4,0)) -> 43.45 | G113: 1520.75 | J113: volume estimado 2m³
A114: SINAPI | B114: 87620 | C114: CONTRAPISO EM ARGAMASSA TRAÇO 1:4 (CIMENTO E AREIA), PREPARO MECÂNICO COM BETONEIRA 400 L, APLICADO EM ÁREAS SECAS SOBRE LAJE, ADERIDO, ACABAMENTO NÃO REFORÇADO, ESPESSURA 2CM. AF_07/2021 | D114: m² | E114: 16 | F114: =IF(H114="i",VLOOKUP(B114,'Ins SINAPI BA 04-2026 Onerado'!$B$11:$F$50003,5,0),VLOOKUP(B114,'Comp SINAPI BA 04-2026 Onerado'!$B$11:$E$50004,4,0)) -> 41.95 | G114: 671.2
A115: SINAPI | B115: 103004 | C115: CANALETA DE CONCRETO POLIMÉRICO COM GRELHA, LARGURA DE 13 CM - FORNECIMENTO E INSTALAÇÃO. AF_05/2025 | D115: m | E115: 10 | F115: 43.67 | G115: 436.7 | J115: 5. SERVIÇOS ELÉTRICOS
A116: SINAPI | B116: 88489 | C116: PINTURA LÁTEX ACRÍLICA PREMIUM, APLICAÇÃO MANUAL EM PAREDES, DUAS DEMÃOS. AF_04/2023 | D116: m² | E116: =E97 -> 44 | F116: 15.14 | G116: 666.16 | J116: Rasgo para eletroduto
A117: =B84 -> CPU.09 | C117: MÃO DE OBRA | G117: =SUM(G118:G120) -> 3546.56 | H117: mdo | J117: Iluminação
A118: AGESUL | B118: 2301000143 | C118: ENGENHEIRO ELETRICISTA/MECÂNICO COM ENCARGOS COMPLEMENTARES | D118: H | E118: 8 | F118: 147.41 | G118: =TRUNC(E118*F118,2) -> 1179.28 | J118: Aterramento
A119: SINAPI | B119: 90778 | C119: ENGENHEIRO CIVIL DE OBRA PLENO COM ENCARGOS COMPLEMENTARES | D119: H | E119: 8 | F119: 150.71 | G119: 1205.68 | J119: Fiação e chave
A120: SINAPI | B120: 101399 | C120: ELETRICISTA COM ENCARGOS COMPLEMENTARES | D120: H | E120: =4*8 -> 32 | F120: 36.3 | G120: 1161.6
J121: 6. ESTRUTURA METÁLICA / ESQUADRIAS
B122: CPU.10 | C122: =MIRORÓS!D34 -> Implantação de sistema de proteção contra descargas atmosféricas e incêndio | D122: un | E122: 1 | G122: =SUM(G165,G128,G127,G123) -> 5540.312 | H122: S | J122: Porta metálica
A123: =B122 -> CPU.10 | C123: MATERIAL | G123: =SUM(G124:G126) -> 896.61 | H123: ss | J123: Venezianas metálicas
A124: EMBASA | B124: 70.97.01 | C124: EXTINTOR DE C02 - FORNEC E INSTALACAO 6KG (SINAP 72554) | D124: un | E124: 1 | F124: 817.92 | G124: =TRUNC(E124*F124,2) -> 817.92 | J124: estrutura leve
A125: EMBASA | B125: 15.97.54 | C125: SUPORTE METALICO PARA EXTINTOR FIXADO EM PISO | D125: UN | E125: 1 | F125: 61.74 | G125: =TRUNC(E125*F125,2) -> 61.74
A126: ORSE | B126: 12888 | C126: Placa de sinalizacao, fotoluminescente, em pvc , com logotipo "Extintor de incêndio portátil"- Placa E5 | D126: UN | E126: 1 | F126: 16.95 | G126: =TRUNC(E126*F126,2) -> 16.95 | J126: 7. COBERTURA
A127: =B122 -> CPU.10 | C127: EQUIPAMENTOS | G127: 0 | H127: ss | J127: Estrutura metálica leve
A128: =B122 -> CPU.10 | C128: SERVIÇOS | G128: =SUM(G129:G135) -> 4643.702 | H128: ss | J128: Telha metálica
A129: ORSE | B129: 823 | C129: Cordoalha de cobre nu 35mm2 (1 awg) e isoladores para pára-raios | D129: m | E129: =(3*2+5*2+3)*1.2 -> 22.8 | F129: 117.79 | G129: =F129*E129 -> 2685.612
A130: EMBASA | B130: 60.92.97 | C130: TERMINAL AEREO | D130: un | E130: 6 | F130: 14.57 | G130: =F130*E130 -> 87.42 | J130: 8.VENTILAÇÃO / EXAUSTÃO
A131: SINAPI | B131: 98463 | C131: SUPORTE ISOLADOR PARA FIXAÇÃO DA CORDOALHA DE COBRE EM ALVENARIA OU CONCRETO - FORNECIMENTO E INSTALAÇÃO. AF_08/2023 | D131: un | E131: 20 | F131: =IF(H131="i",VLOOKUP(B131,'Ins SINAPI BA 04-2026 Onerado'!$B$11:$F$50003,5,0),VLOOKUP(B131,'Comp SINAPI BA 04-2026 Onerado'!$B$11:$E$50004,4,0)) -> 29.95 | G131: =F131*E131 -> 599 | J131: Duto metálico exaustão
A132: EMBASA | B132: 60.12.91 | C132: INSTALAÇÃO DE PRESILHA DE LATÃO PARA FIXAÇÃO DE CABOS DE COBRE DE 35MM2 A 50MM2 | D132: un | E132: 20 | F132: 0.48 | G132: =F132*E132 -> 9.6 | J132: Adaptadores / saída
A133: SINAPI | B133: 95728 | C133: ELETRODUTO RÍGIDO SOLDÁVEL, PVC, DN 32 MM (1"), APARENTE - FORNECIMENTO E INSTALAÇÃO. AF_01/2026 | D133: m | E133: 8 | F133: =IF(H133="i",VLOOKUP(B133,'Ins SINAPI BA 04-2026 Onerado'!$B$11:$F$50003,5,0),VLOOKUP(B133,'Comp SINAPI BA 04-2026 Onerado'!$B$11:$E$50004,4,0)) -> 21.77 | G133: 174.16
A134: ORSE | B134: 12140 | C134: Abraçadeira metálica tipo "D" de 1" | D134: UN | E134: 12 | F134: 6.07 | G134: 72.84 | J134: 9. PISO
A135: SETOP | B135: ED-51017 | C135: ATERRAMENTO COMPLETO PARA PARA RAIOS, COM HASTE DE COBRE DE ALTA CAMADA, TIPO COPPERWELD, DIÂMETRO DE 3/4", COMPRIMENTO DE 240CM, EXCLUSIVE CABO, INCLUSIVE CAIXA DE INSPEÇÃO COM TAMPA EM FERRO FUNDIDO E GRAMPO PARA HASTE | D135: UN | E135: 1 | F135: 1015.07 | G135: =TRUNC(E135*F135,2) -> 1015.07 | J135: Piso cimentado
J136: Canaleta simples
J138: 10. ACABAMENTO
J139: Pintura

Sheet Memorial de cálculo
A1: Ministério da Integração e do Desenvolvimento Regional
A2: Companhia de desenvolvimento dos Vales do São Francisco e do Parnaíba | I2: Quantitativos por Barragem
I3: =MIRORÓS!B9 -> Mirorós | J3: =ESTREITO!B9 -> Estreito | K3: ='COVA DA MANDIOCA'!B9 -> Cova da Mandioca | L3: =CERAÍMA!B9 -> Ceraíma | M3: ='POÇO DO MAGRO'!B9 -> Poço do Magro
A4: MEMORIAL DE CÁLCULO | I4: Irecê - BA | J4: Guanambi - BA | K4: Guanambi - BA | L4: Guanambi - BA | M4: Guanambi - BA | N4: Município polo mais próximo da barragem
A5: =MIRORÓS!A5 -> OBRA: | B5: =Resumo!B5 -> Execução de manutenção e recuperação nas barragens de Mirorós, Estreito, Cova da Mandioca, Ceraíma e Poço do Magro, localizadas no estado da Bahia. | D5: DESLOCAMENTO -SR para Barragem (km): | H5: =AVERAGE(I5:M5) -> 246 | I5: 434 | J5: 238 | K5: 241 | L5: 161 | M5: 156
A6: =MIRORÓS!A6 -> LOCAL: | B6: =Resumo!B6 -> Barragens da Bahia | D6: DESLOCAMENTO - Cidade mais próxima para Barragem (km): | H6: =AVERAGE(I6:M6) -> 61.26 | I6: 101 | J6: 90 | K6: 93.3 | L6: 13.9 | M6: 8.1
A7: =MIRORÓS!A7 -> DATA BASE: | B7: =Resumo!B7 -> 2026-06-01 | D7: VIA URBANA PAVIMENTADA - Cidade mais próxima para Barragem (km): | H7: =AVERAGE(I7:M7) -> 54.74 | I7: =I6-I8 -> 95.4 | J7: 80.6 | K7: 80.5 | L7: 13.9 | M7: 3.3
A8: =MIRORÓS!A8 -> PRAZO: | B8: =Resumo!B8 -> 90 dias | D8: REVESTIMENTO PRIMÁRIO - Cidade mais próxima para Barragem (km): | H8: =AVERAGE(I8:M8) -> 6.52 | I8: 5.6 | J8: 9.4 | K8: 12.8 | L8: 0 | M8: 4.8
A9: ITEM | B9: DESCRIÇÃO | C9: UNID. | D9: PARÂMETRO 1 | E9: PARÂMETRO 2 | F9: PARÂMETRO 3 | G9: PARÂMETRO 4 | H9: TOTAL
A11: =CPU!B10 -> CPU.01 | B11: =VLOOKUP(A11,CPU!$B$10:$G$4903,2,0) -> Administração Local 01 | C11: =VLOOKUP(A11,CPU!$B$10:$G$4903,3,0) -> Global | D11: QUANT.PESSOAS | E11: HORAS DIÁRIA | F11: DIAS TRABALHADOS NO MÊS | G11: MESES | H11: 3
B12: =CPU!C16 -> Engenheiro Civil De Obra Pleno Com Encargos Complementares | C12: h | D12: 1 | E12: 1.5 | F12: =4*5 -> 20 | H12: =D12*E12*F12 -> 30
B13: =CPU!C17 -> Encarregado Geral Com Encargos Complementares | C13: mês | D13: 1 | G13: 0.8 | H13: =D13*G13 -> 0.8
B14: A escala de trabalho 12x36 para vigias noturnos consiste em trabalhar 12 horas seguidas e folgar 36 horas
A16: =CPU!B19 -> CPU.02 | B16: =VLOOKUP(A16,CPU!$B$10:$G$4903,2,0) -> Mobilização ou desmobilização (Equipe e Equipamentos) | C16: =VLOOKUP(A16,CPU!$B$10:$G$4903,3,0) -> un | H16: 1
A17: 100946 | B17: =IF(K17="ca",VLOOKUP(A17,'Comp SINAPI BA 04-2026 Onerado'!B:C,2,0),VLOOKUP(A17,'Ins SINAPI BA 04-2026 Onerado'!B:C,2,0)) -> TRANSPORTE COM CAMINHÃO CARROCERIA 9T, EM VIA URBANA EM REVESTIMENTO PRIMÁRIO (UNIDADE: TXKM). AF_02/2026 | C17: =IF(K17="ca",VLOOKUP(A17,'Comp SINAPI BA 04-2026 Onerado'!B:D,3,0),VLOOKUP(A17,'Ins SINAPI BA 04-2026 Onerado'!B:D,3,0)) -> TXKM | H17: =$C$19*$D$19*$E$19 -> 65.2 | I17: ca | J17: ca | K17: ca | L17: ca | M17: ca
C18: T | D18: km | E18: N. viagens
C19: 5 | D19: =H8 -> 6.52 | E19: 2
A21: =CPU!B28 -> CPU.03 | B21: =VLOOKUP(A21,CPU!$B$10:$G$4903,2,0) -> Pintura de Gradil Metálico com 01 demão de tinta anti-corrosiva - zarcão e 02 demãos de esmalte sintético, inclusive lixamento | C21: =VLOOKUP(A21,CPU!$B$10:$G$4903,3,0) -> m2 | I21: =MIRORÓS!F13 -> 0 | J21: 0 | K21: 0 | L21: =CERAÍMA!F27 -> 731 | M21: 0
B22: Mao de obra | D22: QUANT.PESSOAS | E22: RENDIMENTO (H/M2) | F22: m2 | G22: HORAS | H22: DIAS | I22: DIAS | J22: DIAS | K22: DIAS | L22: DIAS | M22: DIAS
B23: Pintor | D23: 4 | E23: =0.9/D23 -> 0.225 | F23: 1 | G23: =F23*(E23) -> 0.225 | H23: =G23/8 -> 0.028125 | I23: =I21*$E$23/8 -> 0 | J23: =J21*$E$23/8 -> 0 | K23: =K21*$E$23/8 -> 0 | L23: =L21*$E$23/8 -> 20.559375 | M23: =M21*$E$23/8 -> 0
A25: =CPU!B38 -> CPU.04 | B25: =VLOOKUP(A25,CPU!$B$10:$G$4903,2,0) -> Limpeza de vegetação | C25: =VLOOKUP(A25,CPU!$B$10:$G$4903,3,0) -> m2 | I25: =MIRORÓS!F25 -> 41000 | J25: =ESTREITO!F25 -> 53805 | K25: ='COVA DA MANDIOCA'!F25 -> 8014 | L25: =CERAÍMA!F25 -> 45600 | M25: ='POÇO DO MAGRO'!F25 -> 46352
B26: Mao de obra | C26: m2 | D26: QUANT.PESSOAS | E26: RENDIMENTO (H/M2) | F26: m2 | G26: HORAS | H26: DIAS | I26: DIAS | J26: DIAS | K26: DIAS | L26: DIAS | M26: DIAS
A27: Enxada | B27: Servente | C27: h | D27: 2 | E27: =20/1000/D27 -> 0.01 | F27: 1 | G27: =F27*(E27) -> 0.01 | H27: =G27/8 -> 0.00125 | I27: =0.1*I25*$E$27/8 -> 5.125 | J27: 6.725625 | K27: 1.00175 | L27: 5.7 | M27: 5.794
A28: Roçadeira | B28: Servente | C28: h | D28: 2 | E28: =(8/(0.3*10000))/D28 -> 0.001333333333 | F28: 1 | G28: =F28*(E28) -> 0.001333333333 | H28: =G28/8 -> 0.0001666666667 | I28: =0.9*I25*$E$28/8 -> 6.15 | J28: =0.9*J25*$E$28/8 -> 8.07075 | K28: 1.2021 | L28: 6.84 | M28: 6.9528
B29: Rendimento 400 m² por dia por servente para roçada com enaxada e 3000 m² com roçadeira
A30: =CPU!B49 -> CPU.05 | B30: =VLOOKUP(A30,CPU!$B$10:$G$4903,2,0) -> Corte de tronco e remoção de raiz | C30: =VLOOKUP(A30,CPU!$B$10:$G$4903,3,0) -> un | I30: 0 | J30: 0 | K30: 0 | L30: 0 | M30: ='POÇO DO MAGRO'!F26 -> 35
B31: Mão de obra | D31: QUANT.PESSOAS | E31: RENDIMENTO (H/un) | F31: un | G31: HORAS | H31: DIAS | I31: DIAS | J31: DIAS | K31: DIAS | L31: DIAS | M31: DIAS
B32: Servente | C32: h | D32: 2 | E32: =2.1685/D32 -> 1.08425 | F32: 1 | G32: =F32*(E32) -> 1.08425 | H32: =G32/8 -> 0.13553125 | I32: =I30*$E$32/8 -> 0 | J32: 0 | K32: 0 | L32: 0 | M32: 4.74359375
B33: Jardineiro | C33: h | D33: 1 | E33: =1.1535/D33 -> 1.1535 | F33: 1 | G33: =F33*(E33) -> 1.1535 | H33: =G33/8 -> 0.1441875 | I33: =I30*$E$33/8 -> 0 | J33: 0 | K33: 0 | L33: 0 | M33: 5.0465625
A35: =CPU!#REF! ->  | B35: =VLOOKUP(A35,CPU!$B$10:$G$4903,2,0) ->  | C35: =VLOOKUP(A35,CPU!$B$10:$G$4903,3,0) ->  | I35: =MIRORÓS!#REF! ->  | J35: 0 | K35: 0 | L35: 0 | M35: 0
B36: Mao de obra | D36: QUANT.PESSOAS | E36: RENDIMENTO (H/M) | F36: m | G36: HORAS | H36: DIAS | I36: DIAS | J36: DIAS | K36: DIAS | L36: DIAS | M36: DIAS
B37: Servente | D37: 15 | E37: =0.5/D37 -> 0.03333333333 | F37: 1 | G37: =F37*(E37) -> 0.03333333333 | H37: =G37/8 -> 0.004166666667 | I37: =I35*$E$37/8 ->  | J37: 0 | K37: 0 | L37: 0 | M37: 0
A39: =CPU!B62 -> CPU.07 | B39: =VLOOKUP(A39,CPU!$B$10:$G$4903,2,0) -> Régua Linimétrica Padrão “ANA”, Aço Carbono - 2 X 70 X 1000 mm (Fornecimento e Instalação) | C39: =VLOOKUP(A39,CPU!$B$10:$G$4903,3,0) -> un | I39: =MIRORÓS!F40 -> 10 | J39: =ESTREITO!F30 -> 10 | K39: ='COVA DA MANDIOCA'!F30 -> 10 | L39: =CERAÍMA!F32 -> 10 | M39: ='POÇO DO MAGRO'!F31 -> 10
B40: Mao de obra | D40: QUANT.PESSOAS | E40: RENDIMENTO (H/m) | F40: m | G40: HORAS | H40: DIAS
B41: Topógrafo | D41: 1 | E41: =0.8/D41 -> 0.8 | F41: 1 | G41: =F41*(E41) -> 0.8 | H41: =G41/8 -> 0.1 | I41: =$I$39*E41/8 -> 1 | J41: =$J$39*E41/8 -> 1 | K41: =$K$39*E41/8 -> 1 | L41: =$K$39*G41/8 -> 1 | M41: =$K$39*H41/8 -> 0.125
B42: Servente | D42: 1 | E42: =1.6/D42 -> 1.6 | F42: 1 | G42: =F42*(E42) -> 1.6 | H42: =G42/8 -> 0.2 | I42: =$I$39*E42/8 -> 2 | J42: =$J$39*E42/8 -> 2 | K42: 2 | L42: =$K$39*G42/8 -> 2 | M42: =$K$39*H42/8 -> 0.25

Sheet Cronograma Mirorós
A1: Ministério da Integração e do Desenvolvimento Regional
A2: Companhia de Desenvolvimento dos Vales do São Francisco e do Parnaíba
A4: CRONOGRAMA FÍSICO-FINANCEIRO NÃO DESONERADO
A5: =MIRORÓS!A5 -> OBRA: | B5: =MIRORÓS!B5:F5 -> Execução de manutenção e recuperação nas barragens de Mirorós, Estreito, Cova da Mandioca, Ceraíma e Poço do Magro, localizadas no estado da Bahia.
A6: =MIRORÓS!A6 -> LOCAL: | B6: =MIRORÓS!B6 -> GENTIO DO OURO - BA
A7: =MIRORÓS!A7 -> DATA BASE: | B7: =MIRORÓS!B7 -> 2026-06-01
A8: =MIRORÓS!A8 -> PRAZO: | B8: =MIRORÓS!B8 -> 60 dias
B9: =MIRORÓS!B9 -> Mirorós
A10: ITEM | B10: DESCRIÇÃO | C10: TOTAL POR ETAPA | D10: MESES | F10: TOTAL
D11: 1 | E11: 2
A12: 1 | B12: =VLOOKUP(A12,MIRORÓS!A:I,4) -> ADMINISTRAÇÃO DA OBRA | C12: =VLOOKUP(A12,MIRORÓS!A$11:I$994,9) -> 9728.4 | D12: =$C12*D13 -> 3760.466118 | E12: =$C12*E13 -> 5967.933882 | F12: =SUM(D12:E12) -> 9728.4 | G12: R$
C13: =C12/C12 -> 1 | D13: =SUMIF($G$14:$G$21,"R$",D$14:D$21)/$C$22 -> 0.3865451789 | E13: =1-SUM(D13:D13) -> 0.6134548211 | F13: 1 | G13: %
A14: 2 | B14: =VLOOKUP(A14,MIRORÓS!A:I,4) -> SERVIÇOS PRELIMINARES | C14: =VLOOKUP(A14,MIRORÓS!A$11:I$994,9) -> 1747.3 | D14: =$C14*D15 -> 873.65 | E14: =$C14*E15 -> 873.65 | F14: 1747.3 | G14: R$
C15: =C14/C14 -> 1 | D15: 0.5 | E15: 0.5 | F15: 1 | G15: %
A16: 3 | B16: =VLOOKUP(A16,MIRORÓS!A:I,4) -> SERVIÇOS GERAIS | C16: =VLOOKUP(A16,MIRORÓS!A$11:I$994,9) -> 128060.8 | D16: =$C16*D17 -> 64030.4 | E16: =$C16*E17 -> 64030.4 | F16: 128060.8 | G16: R$
C17: =C16/C16 -> 1 | D17: 0.5 | E17: 0.5 | F17: 1 | G17: %
A18: 4 | B18: =VLOOKUP(A18,MIRORÓS!A:I,4) -> FORNECIMENTO DE GRUPO GERADOR À DIESEL E CONSTRUÇÃO DE ABRIGO | C18: =VLOOKUP(A18,MIRORÓS!A$11:I$994,9) -> 124720.73 | D18: =$C18*D19 -> 43386.98 | E18: =$C18*E19 -> 81333.75 | F18: =SUM(D18:E18) -> 124720.73 | G18: R$
C19: 1 | D19: =MIRORÓS!I33/MIRORÓS!I31 -> 0.347873044 | E19: =1-D19 -> 0.652126956 | F19: 1 | G19: %
A20: 5 | B20: =VLOOKUP(A20,MIRORÓS!A:I,4) -> SERVIÇOS COMPLEMENTARES | C20: =VLOOKUP(A20,MIRORÓS!A$11:I$994,9) -> 15893.8 | E20: =$C20*E21 -> 15893.8 | F20: 15893.8 | G20: R$
C21: =C20/C20 -> 1 | E21: 1 | F21: 1 | G21: %
B22: VALOR TOTAL: | C22: =SUMIF($G$12:$G$21,"R$",C$12:C$21) -> 280151.03 | D22: =SUMIF($G$12:$G$21,"R$",D$12:D$21) -> 112051.4961 | E22: =SUMIF($G$12:$G$21,"R$",E$12:E$21) -> 168099.5339 | F22: =SUMIF($G$12:$G$21,"R$",F$12:F$21) -> 280151.03
B23: VALOR ACUMULADO: | D23: =D22 -> 112051.4961 | E23: =E22+D23 -> 280151.03 | F23: =F22 -> 280151.03 | K23: =IF(F23=MIRORÓS!I44,"ok","verificar") -> ok
B24: PORCENTAGEM PARCIAL: | D24: =SUMIF($G$12:$G$21,"R$",D$12:D$21)/$C$22 -> 0.3999681747 | E24: =SUMIF($G$12:$G$21,"R$",E$12:E$21)/$C$22 -> 0.6000318253 | F24: =SUMIF($G$12:$G$21,"R$",F$12:F$21)/$C$22 -> 1
B25: AVANÇO ACUMULADO: | D25: =D24 -> 0.3999681747 | E25: =E24+D25 -> 1

Sheet Cronograma Estreito
A1: Ministério da Integração e do Desenvolvimento Regional
A2: Companhia de Desenvolvimento dos Vales do São Francisco e do Parnaíba
A4: CRONOGRAMA FÍSICO-FINANCEIRO NÃO DESONERADO
A5: =MIRORÓS!A5 -> OBRA: | B5: =ESTREITO!B5:F5 -> Execução de manutenção e recuperação nas barragens de Mirorós, Estreito, Cova da Mandioca, Ceraíma e Poço do Magro, localizadas no estado da Bahia.
A6: =MIRORÓS!A6 -> LOCAL: | B6: =ESTREITO!B6 -> URANDI - BA
A7: =MIRORÓS!A7 -> DATA BASE: | B7: =ESTREITO!B7 -> 2026-06-01
A8: =MIRORÓS!A8 -> PRAZO: | B8: =ESTREITO!B8 -> 30 dias
B9: =ESTREITO!B9 -> Estreito
A10: ITEM | B10: DESCRIÇÃO | C10: TOTAL POR ETAPA | D10: MESES | E10: TOTAL
D11: 1
A12: 1 | B12: =VLOOKUP(A12,ESTREITO!A:I,4) -> ADMINISTRAÇÃO DA OBRA | C12: =VLOOKUP(A12,ESTREITO!A$11:I$985,9) -> 9728.4 | D12: =$C12*D13 -> 9728.4 | E12: =SUM(D12:D12) -> 9728.4 | F12: R$
C13: =C12/C12 -> 1 | D13: 1 | E13: 1 | F13: %
A14: 2 | B14: =VLOOKUP(A14,ESTREITO!A:I,4) -> SERVIÇOS PRELIMINARES | C14: =VLOOKUP(A14,ESTREITO!A$11:I$985,9) -> 1747.3 | D14: =$C14*D15 -> 1747.3 | E14: 1747.3 | F14: R$
C15: =C14/C14 -> 1 | D15: 1 | E15: 1 | F15: %
A16: 3 | B16: =VLOOKUP(A16,ESTREITO!A:I,4) -> SERVIÇOS GERAIS | C16: =VLOOKUP(A16,ESTREITO!A$11:I$985,9) -> 129132 | D16: =$C16*D17 -> 129132 | E16: 129132 | F16: R$
C17: =C16/C16 -> 1 | D17: 1 | E17: 1 | F17: %
A18: 4 | B18: =VLOOKUP(A18,ESTREITO!A:I,4) -> SERVIÇOS COMPLEMENTARES | C18: =VLOOKUP(A18,ESTREITO!A$11:I$985,9) -> 7017.64 | D18: =$C18*D19 -> 7017.64 | E18: 7017.64 | F18: R$
C19: =C18/C18 -> 1 | D19: 1 | E19: 1 | F19: %
B20: VALOR TOTAL: | C20: =SUMIF($F$12:$F$19,"R$",C$12:C$19) -> 147625.34 | D20: =SUMIF($F$12:$F$19,"R$",D$12:D$19) -> 147625.34 | E20: =SUMIF($F$12:$F$19,"R$",E$12:E$19) -> 147625.34
B21: VALOR ACUMULADO: | D21: =D20 -> 147625.34 | E21: =E20 -> 147625.34 | J21: =IF(E21=ESTREITO!I34,"ok","verificar") -> ok
B22: PORCENTAGEM PARCIAL: | D22: =SUMIF($F$12:$F$19,"R$",D$12:D$19)/$C$20 -> 1 | E22: =SUMIF($F$12:$F$19,"R$",E$12:E$19)/$C$20 -> 1
B23: AVANÇO ACUMULADO: | D23: =D22 -> 1

Sheet Cronograma Cova da Mandioca
A1: Ministério da Integração e do Desenvolvimento Regional
A2: Companhia de Desenvolvimento dos Vales do São Francisco e do Parnaíba
A4: CRONOGRAMA FÍSICO-FINANCEIRO NÃO DESONERADO
A5: =MIRORÓS!A5 -> OBRA: | B5: ='COVA DA MANDIOCA'!B5:F5 -> Execução de manutenção e recuperação nas barragens de Mirorós, Estreito, Cova da Mandioca, Ceraíma e Poço do Magro, localizadas no estado da Bahia.
A6: =MIRORÓS!A6 -> LOCAL: | B6: ='COVA DA MANDIOCA'!B6 -> URANDI - BA
A7: =MIRORÓS!A7 -> DATA BASE: | B7: ='COVA DA MANDIOCA'!B7 -> 2026-06-01
A8: =MIRORÓS!A8 -> PRAZO: | B8: ='COVA DA MANDIOCA'!B8 -> 30 dias
B9: ='COVA DA MANDIOCA'!B9 -> Cova da Mandioca
A10: ITEM | B10: DESCRIÇÃO | C10: TOTAL POR ETAPA | D10: MESES | E10: TOTAL
D11: 1
A12: 1 | B12: =VLOOKUP(A12,'COVA DA MANDIOCA'!A:I,4) -> ADMINISTRAÇÃO DA OBRA | C12: =VLOOKUP(A12,'COVA DA MANDIOCA'!A$11:I$972,9) -> 2637.52 | D12: =$C12*D13 -> 2637.52 | E12: =SUM(D12:D12) -> 2637.52 | F12: R$
C13: =C12/C12 -> 1 | D13: 1 | E13: 1 | F13: %
A14: 2 | B14: =VLOOKUP(A14,'COVA DA MANDIOCA'!A:I,4) -> SERVIÇOS PRELIMINARES | C14: =VLOOKUP(A14,'COVA DA MANDIOCA'!A$11:I$972,9) -> 1747.3 | D14: =$C14*D15 -> 1747.3 | E14: 1747.3 | F14: R$
C15: =C14/C14 -> 1 | D15: 1 | E15: 1 | F15: %
A16: 3 | B16: =VLOOKUP(A16,'COVA DA MANDIOCA'!A:I,4) -> SERVIÇOS GERAIS | C16: =VLOOKUP(A16,'COVA DA MANDIOCA'!A$11:I$972,9) -> 19233.6 | D16: =$C16*D17 -> 19233.6 | E16: 19233.6 | F16: R$
C17: =C16/C16 -> 1 | D17: 1 | E17: 1 | F17: %
A18: 4 | B18: =VLOOKUP(A18,'COVA DA MANDIOCA'!A:I,4) -> SERVIÇOS COMPLEMENTARES | C18: =VLOOKUP(A18,'COVA DA MANDIOCA'!A$11:I$972,9) -> 7017.64 | D18: =$C18*D19 -> 7017.64 | E18: 7017.64 | F18: R$
C19: =C18/C18 -> 1 | D19: 1 | E19: 1 | F19: %
B20: VALOR TOTAL: | C20: =SUMIF($F$12:$F$19,"R$",C$12:C$19) -> 30636.06 | D20: =SUMIF($F$12:$F$19,"R$",D$12:D$19) -> 30636.06 | E20: =SUMIF($F$12:$F$19,"R$",E$12:E$19) -> 30636.06
B21: VALOR ACUMULADO: | D21: =D20 -> 30636.06 | E21: =E20 -> 30636.06 | J21: =IF(E21='COVA DA MANDIOCA'!I34,"ok","verificar") -> ok
B22: PORCENTAGEM PARCIAL: | D22: =SUMIF($F$12:$F$19,"R$",D$12:D$19)/$C$20 -> 1 | E22: =SUMIF($F$12:$F$19,"R$",E$12:E$19)/$C$20 -> 1
B23: AVANÇO ACUMULADO: | D23: =D22 -> 1

Sheet Cronograma Ceraima
A1: Ministério da Integração e do Desenvolvimento Regional
A2: Companhia de Desenvolvimento dos Vales do São Francisco e do Parnaíba
A4: CRONOGRAMA FÍSICO-FINANCEIRO NÃO DESONERADO
A5: =MIRORÓS!A5 -> OBRA: | B5: =CERAÍMA!B5:F5 -> Execução de manutenção e recuperação nas barragens de Mirorós, Estreito, Cova da Mandioca, Ceraíma e Poço do Magro, localizadas no estado da Bahia.
A6: =MIRORÓS!A6 -> LOCAL: | B6: =CERAÍMA!B6 -> GUANAMBI - BA
A7: =MIRORÓS!A7 -> DATA BASE: | B7: =CERAÍMA!B7 -> 2026-06-01
A8: =MIRORÓS!A8 -> PRAZO: | B8: =CERAÍMA!B8 -> 60 dias
B9: =CERAÍMA!B9 -> Ceraíma
A10: ITEM | B10: DESCRIÇÃO | C10: TOTAL POR ETAPA | D10: MESES | F10: TOTAL
D11: 1
A12: 1 | B12: =VLOOKUP(A12,CERAÍMA!A:I,4) -> ADMINISTRAÇÃO DA OBRA | C12: =VLOOKUP(A12,CERAÍMA!A$11:I$974,9) -> 9728.4 | D12: =$C12*D13 -> 4468.891075 | E12: =$C12*E13 -> 5259.508925 | F12: =SUM(D12:E12) -> 9728.4 | G12: R$
C13: =C12/C12 -> 1 | D13: =SUMIF($G$14:$G$19,"R$",D$14:D$19)/$C$20 -> 0.4593654738 | E13: =1-D13 -> 0.5406345262 | F13: =SUM(D13:E13) -> 1 | G13: %
A14: 2 | B14: =VLOOKUP(A14,CERAÍMA!A:I,4) -> SERVIÇOS PRELIMINARES | C14: =VLOOKUP(A14,CERAÍMA!A$11:I$974,9) -> 1747.3 | D14: =$C14*D15 -> 1747.3 | F14: =SUM(D14:E14) -> 1747.3 | G14: R$
C15: =C14/C14 -> 1 | D15: 1 | F15: =SUM(D15:E15) -> 1 | G15: %
A16: 3 | B16: =VLOOKUP(A16,CERAÍMA!A:I,4) -> SERVIÇOS GERAIS | C16: =VLOOKUP(A16,CERAÍMA!A$11:I$974,9) -> 166063.26 | D16: =$C16*D17 -> 83031.63 | E16: =$C16*E17 -> 83031.63 | F16: =SUM(D16:E16) -> 166063.26 | G16: R$
C17: =C16/C16 -> 1 | D17: 0.5 | E17: 0.5 | F17: 1 | G17: %
A18: 4 | B18: =VLOOKUP(A18,CERAÍMA!A:I,4) -> SERVIÇOS COMPLEMENTARES | C18: =VLOOKUP(A18,CERAÍMA!A$11:I$974,9) -> 7017.64 | E18: =$C18*E19 -> 7017.64 | F18: =SUM(D18:E18) -> 7017.64 | G18: R$
C19: =C18/C18 -> 1 | E19: 1 | F19: 1 | G19: %
B20: VALOR TOTAL: | C20: =SUMIF($G$12:$G$19,"R$",C$12:C$19) -> 184556.6 | D20: =SUMIF($G$12:$G$19,"R$",D$12:D$19) -> 89247.82108 | E20: =SUMIF($G$12:$G$19,"R$",E$12:E$19) -> 95308.77892 | F20: =SUMIF($G$12:$G$19,"R$",F$12:F$19) -> 184556.6
B21: VALOR ACUMULADO: | D21: =D20 -> 89247.82108 | E21: =E20 -> 95308.77892 | F21: =F20 -> 184556.6 | K21: =IF(F21=CERAÍMA!I36,"ok","verificar") -> ok
B22: PORCENTAGEM PARCIAL: | D22: =SUMIF($G$12:$G$19,"R$",D$12:D$19)/$C$20 -> 0.4835796773 | E22: =SUMIF($G$12:$G$19,"R$",E$12:E$19)/$C$20 -> 0.5164203227 | F22: =SUMIF($G$12:$G$19,"R$",F$12:F$19)/$C$20 -> 1
B23: AVANÇO ACUMULADO: | D23: =D22 -> 0.4835796773 | E23: =E22+D23 -> 1

Sheet Cronograma Poço do Magro
A1: Ministério da Integração e do Desenvolvimento Regional
A2: Companhia de Desenvolvimento dos Vales do São Francisco e do Parnaíba
A4: CRONOGRAMA FÍSICO-FINANCEIRO NÃO DESONERADO
A5: =MIRORÓS!A5 -> OBRA: | B5: ='POÇO DO MAGRO'!B5:F5 -> Execução de manutenção e recuperação nas barragens de Mirorós, Estreito, Cova da Mandioca, Ceraíma e Poço do Magro, localizadas no estado da Bahia.
A6: =MIRORÓS!A6 -> LOCAL: | B6: ='POÇO DO MAGRO'!B6 -> GUANAMBI - BA
A7: =MIRORÓS!A7 -> DATA BASE: | B7: ='POÇO DO MAGRO'!B7 -> 2026-06-01
A8: =MIRORÓS!A8 -> PRAZO: | B8: ='POÇO DO MAGRO'!B8 -> 30 dias
B9: ='POÇO DO MAGRO'!B9 -> Poço do Magro
A10: ITEM | B10: DESCRIÇÃO | C10: TOTAL POR ETAPA | D10: MESES | E10: TOTAL
D11: 1
A12: 1 | B12: =VLOOKUP(A12,'POÇO DO MAGRO'!A:I,4) -> ADMINISTRAÇÃO DA OBRA | C12: =VLOOKUP(A12,'POÇO DO MAGRO'!A$11:I$973,9) -> 9728.4 | D12: =$C12*D13 -> 9728.4 | E12: =SUM(D12:D12) -> 9728.4 | F12: R$
C13: =C12/C12 -> 1 | D13: 1 | E13: 1 | F13: %
A14: 2 | B14: =VLOOKUP(A14,'POÇO DO MAGRO'!A:I,4) -> SERVIÇOS PRELIMINARES | C14: =VLOOKUP(A14,'POÇO DO MAGRO'!A$11:I$973,9) -> 1747.3 | D14: =$C14*D15 -> 1747.3 | E14: 1747.3 | F14: R$
C15: =C14/C14 -> 1 | D15: 1 | E15: 1 | F15: %
A16: 3 | B16: =VLOOKUP(A16,'POÇO DO MAGRO'!A:I,4) -> SERVIÇOS GERAIS | C16: =VLOOKUP(A16,'POÇO DO MAGRO'!A$11:I$973,9) -> 126385.1 | D16: =$C16*D17 -> 126385.1 | E16: 126385.1 | F16: R$
C17: =C16/C16 -> 1 | D17: 1 | E17: 1 | F17: %
A18: 4 | B18: =VLOOKUP(A18,'POÇO DO MAGRO'!A:I,4) -> SERVIÇOS COMPLEMENTARES | C18: =VLOOKUP(A18,'POÇO DO MAGRO'!A$11:I$973,9) -> 7017.64 | D18: =$C18*D19 -> 7017.64 | E18: 7017.64 | F18: R$
C19: =C18/C18 -> 1 | D19: 1 | E19: 1 | F19: %
B20: VALOR TOTAL: | C20: =SUMIF($F$12:$F$19,"R$",C$12:C$19) -> 144878.44 | D20: =SUMIF($F$12:$F$19,"R$",D$12:D$19) -> 144878.44 | E20: =SUMIF($F$12:$F$19,"R$",E$12:E$19) -> 144878.44
B21: VALOR ACUMULADO: | D21: =D20 -> 144878.44 | E21: =E20 -> 144878.44 | H21: =IF(E21='POÇO DO MAGRO'!I35,"ok","verificar") -> ok
B22: PORCENTAGEM PARCIAL: | D22: =SUMIF($F$12:$F$19,"R$",D$12:D$19)/$C$20 -> 1 | E22: =SUMIF($F$12:$F$19,"R$",E$12:E$19)/$C$20 -> 1
B23: AVANÇO ACUMULADO: | D23: =D22 -> 1

Sheet Cronograma Geral
A1: Ministério da Integração e do Desenvolvimento Regional
A2: Companhia de Desenvolvimento dos Vales do São Francisco e do Parnaíba
A4: CRONOGRAMA FÍSICO-FINANCEIRO NÃO DESONERADO
A5: OBRA: | B5: =Resumo!B5 -> Execução de manutenção e recuperação nas barragens de Mirorós, Estreito, Cova da Mandioca, Ceraíma e Poço do Magro, localizadas no estado da Bahia.
A6: LOCAL: | B6: =Resumo!B6 -> Barragens da Bahia
A7: DATA BASE: | B7: =Resumo!B7 -> 2026-06-01
A8: PRAZO | B8: =Resumo!B8 -> 90 dias
A9: ITEM | B9: DESCRIÇÃO | C9: TOTAL POR ETAPA | D9: MESES | G9: TOTAL
D10: 1 | E10: 2 | F10: 3
A11: 1.1 | B11: =VLOOKUP(A11,Resumo!A$13:I$1012,2) -> Mirorós | C11: =VLOOKUP(A11,Resumo!A$13:I$1012,7) -> 280151.03 | D11: =$C11*D12 -> 112051.4961 | E11: =$C11*E12 -> 168099.5339 | G11: =SUM(D11:F11) -> 280151.03 | H11: R$
C12: =C11/C11 -> 1 | D12: ='Cronograma Mirorós'!D24 -> 0.3999681747 | E12: ='Cronograma Mirorós'!E24 -> 0.6000318253 | G12: 1 | H12: %
A13: 1.2 | B13: =VLOOKUP(A13,Resumo!A$13:I$1012,2) -> Estreito | C13: =VLOOKUP(A13,Resumo!A$13:I$1012,7) -> 147625.34 | E13: =$C13*E14 -> 147625.34 | G13: 147625.34 | H13: R$
C14: =C13/C13 -> 1 | E14: ='Cronograma Estreito'!D22 -> 1 | G14: 1 | H14: %
A15: 1.3 | B15: =VLOOKUP(A15,Resumo!A$13:I$1012,2) -> Cova da Mandioca | C15: =VLOOKUP(A15,Resumo!A$13:I$1012,7) -> 30636.06 | E15: =$C15*E16 -> 30636.06 | G15: 30636.06 | H15: R$
C16: =C15/C15 -> 1 | E16: ='Cronograma Cova da Mandioca'!D22 -> 1 | G16: 1 | H16: %
A17: 1.4 | B17: =VLOOKUP(A17,Resumo!A$13:I$1012,2) -> Ceraíma | C17: =VLOOKUP(A17,Resumo!A$13:I$1012,7) -> 184556.6 | E17: =$C17*E18 -> 89247.82108 | F17: =$C17*F18 -> 95308.77892 | G17: =SUM(D17:F17) -> 184556.6 | H17: R$
C18: =C17/C17 -> 1 | E18: ='Cronograma Ceraima'!D22 -> 0.4835796773 | F18: ='Cronograma Ceraima'!E22 -> 0.5164203227 | G18: =SUM(D18:F18) -> 1 | H18: %
A19: 1.5 | B19: =VLOOKUP(A19,Resumo!A$13:I$1012,2) -> Poço do Magro | C19: =VLOOKUP(A19,Resumo!A$13:I$1012,7) -> 144878.44 | F19: =$C19*F20 -> 144878.44 | G19: =SUM(D19:F19) -> 144878.44 | H19: R$
C20: =C19/C19 -> 1 | F20: ='Cronograma Poço do Magro'!D22 -> 1 | G20: 1 | H20: %
B21: VALOR TOTAL: | C21: =SUMIF($H$11:$H$20,"R$",C$11:C$20) -> 787847.47 | D21: =SUMIF($H$11:$H$20,"R$",D$11:D$20) -> 112051.4961 | E21: =SUMIF($H$11:$H$20,"R$",E$11:E$20) -> 435608.755 | F21: 240187.2189 | G21: =SUMIF($H$11:$H$20,"R$",G$11:G$20) -> 787847.47
B22: VALOR ACUMULADO: | D22: =D21 -> 112051.4961 | E22: =E21+D22 -> 547660.2511 | F22: =F21+E22 -> 787847.47 | G22: =F22 -> 787847.47 | J22: =IF(G22=Resumo!G22,"ok","ERRO") -> ok
B23: FÍSICO PARCIAL: | D23: =SUMIF($H$11:$H$20,"R$",D$11:D$20)/$C$21 -> 0.14222486 | E23: =SUMIF($H$11:$H$20,"R$",E$11:E$20)/$C$21 -> 0.5529100131 | F23: =SUMIF($H$11:$H$20,"R$",F$11:F$20)/$C$21 -> 0.3048651269 | G23: =SUMIF($H$11:$H$20,"R$",G$11:G$20)/$C$21 -> 1
B24: AVANÇO FÍSICO: | D24: =D23 -> 0.14222486 | E24: =E23+D24 -> 0.6951348731 | F24: =F23+E24 -> 1

Sheet BDI serv
A1: =MIRORÓS!A1:I1 -> Ministério da Integração e do Desenvolvimento Regional
A2: =MIRORÓS!A2:I2 -> Companhia de Desenvolvimento dos Vales do São Francisco e do Parnaíba
A4: COMPOSIÇÃO DE BDI - SERVIÇOS - NÃO DESONERADO
A5: =MIRORÓS!A5 -> OBRA: | B5: =Resumo!B5 -> Execução de manutenção e recuperação nas barragens de Mirorós, Estreito, Cova da Mandioca, Ceraíma e Poço do Magro, localizadas no estado da Bahia. | D5: BDI (serv.): | E5: =D23 -> 0.2312
A6: =MIRORÓS!A6 -> LOCAL: | B6: =Resumo!B6 -> Barragens da Bahia | D6: BDI (forn.): | E6: ='BDI forn'!E6 -> 0.1089
A7: =MIRORÓS!A7 -> DATA BASE: | B7: =Resumo!B7 -> 2026-06-01
A8: =MIRORÓS!A8 -> PRAZO: | B8: =Resumo!B8 -> 90 dias
A9: ITEM | B9: DESCRIÇÃO | C9: SIGLA | D9: % APLICADO | E9: REFERÊNCIA TCU (ACÓRDÃO Nº 2622/2013)
E10: 1º QUARTIL | F10: 2º QUARTIL | G10: 3º QUARTIL
A11: 1 | B11: ADMINISTRAÇÃO CENTRAL | C11: AC | D11: =E11 -> 0.04 | E11: 0.04 | F11: 0.0552 | G11: 0.0785
A12: 2 | B12: IMPOSTOS | C12: T | D12: =SUM(D13:D16) -> 0.0665
A13: 2.1 | B13: ISS (*) | D13: 0.03 | E13: - | F13: - | G13: -
A14: 2.2 | B14: PIS | D14: 0.0065 | E14: - | F14: - | G14: -
A15: 2.3 | B15: Cofins | D15: 0.03 | E15: - | F15: - | G15: -
A16: 2.4 | B16: Contribuição previdênciária sobre a receita bruta (CPRB) | E16: - | F16: - | G16: -
A17: 3 | B17: SEGURO, GARANTIA E RISCO | D17: =SUM(D18:D20) -> 0.0227
A18: 3.1 | B18: Seguro | C18: S | D18: =E18 -> 0.0081 | E18: 0.0081 | F18: 0.0122 | G18: 0.0199
A19: 3.2 | B19: Garantia | C19: G
A20: 3.3 | B20: Risco | C20: R | D20: =E20 -> 0.0146 | E20: 0.0146 | F20: 0.0232 | G20: 0.0316
A21: 4 | B21: DESPESAS FINANCEIRAS | C21: DF | D21: =E21 -> 0.0094 | E21: 0.0094 | F21: 0.0102 | G21: 0.01363
A22: 5 | B22: LUCRO | C22: L | D22: =E22 -> 0.0714 | E22: 0.0714 | F22: 0.084 | G22: 0.1043
B23: BDI ADOTADO: | D23: =ROUND(((((1+D11+D17)*(1+D21)*(1+D22))/(1-D12))-1),4) -> 0.2312
A24: Considerações: O BDI foi calculado através da seguinte fórmula, regulamentada pelo Acórdão Nº 2622/2013 – TCU.
H166: =SUM(H167:H170) -> 0

Sheet BDI forn
A1: =MIRORÓS!A1:I1 -> Ministério da Integração e do Desenvolvimento Regional
A2: =MIRORÓS!A2:I2 -> Companhia de Desenvolvimento dos Vales do São Francisco e do Parnaíba
A4: COMPOSIÇÃO DE BDI - FORNECIMENTO - NÃO DESONERADO
A5: =MIRORÓS!A5 -> OBRA: | B5: =Resumo!B5 -> Execução de manutenção e recuperação nas barragens de Mirorós, Estreito, Cova da Mandioca, Ceraíma e Poço do Magro, localizadas no estado da Bahia. | D5: BDI (serv.): | E5: ='BDI serv'!E5 -> 0.2312
A6: =MIRORÓS!A6 -> LOCAL: | B6: =Resumo!B6 -> Barragens da Bahia | D6: BDI (forn.): | E6: =D23 -> 0.1089
A7: =MIRORÓS!A7 -> DATA BASE: | B7: =Resumo!B7 -> 2026-06-01
A8: =MIRORÓS!A8 -> PRAZO: | B8: =Resumo!B8 -> 90 dias
A9: ITEM | B9: DESCRIÇÃO | C9: SIGLA | D9: % APLICADO | E9: REFERÊNCIA TCU (ACÓRDÃO Nº 2622/2013)
E10: 1º QUARTIL | F10: 2º QUARTIL | G10: 3º QUARTIL
A11: 1 | B11: ADMINISTRAÇÃO CENTRAL | C11: AC | D11: =E11 -> 0.015 | E11: 0.015 | F11: 0.0345 | G11: 0.0449
A12: 2 | B12: IMPOSTOS | C12: T | D12: =SUM(D13:D16) -> 0.0365
A13: 2.1 | B13: ISS (*) | E13: - | F13: - | G13: -
A14: 2.2 | B14: PIS | D14: 0.0065 | E14: - | F14: - | G14: -
A15: 2.3 | B15: Cofins | D15: 0.03 | E15: - | F15: - | G15: -
A16: 2.4 | B16: Contribuição previdênciária sobre a receita bruta (CPRB) | E16: - | F16: - | G16: -
A17: 3 | B17: SEGURO, GARANTIA E RISCO | D17: =SUM(D18:D20) -> 0.0086
A18: 3.1 | B18: Seguro | C18: S | D18: =E18 -> 0.003 | E18: 0.003 | F18: 0.0048 | G18: 0.0082
A19: 3.2 | B19: Garantia | C19: G
A20: 3.3 | B20: Risco | C20: R | D20: =E20 -> 0.0056 | E20: 0.0056 | F20: 0.0085 | G20: 0.0089
A21: 4 | B21: DESPESAS FINANCEIRAS | C21: DF | D21: =F21 -> 0.0085 | E21: 0.0085 | F21: 0.0085 | G21: 0.0111
A22: 5 | B22: LUCRO | C22: L | D22: =E22 -> 0.035 | E22: 0.035 | F22: 0.0511 | G22: 0.0622
B23: BDI ADOTADO: | D23: =ROUND(((((1+D11+D17)*(1+D21)*(1+D22))/(1-D12))-1),4) -> 0.1089
A24: Considerações: O BDI foi calculado através da seguinte fórmula, regulamentada pelo Acórdão Nº 2622/2013 – TCU.
H171: =SUM(H172:H175) -> 0
D175: mec | F175: 2 | G175: 128

Sheet Encargos Sociais
A1: Ministério da Integração e do Desenvolvimento Regional
A2: Companhia de Desenvolvimento dos Vales do São Francisco e do Parnaíba
A4: COMPOSIÇÃO DE ENCARGOS SOCIAIS SOBRE A MÃO DE OBRA
A5: =MIRORÓS!A5 -> OBRA: | B5: =Resumo!B5 -> Execução de manutenção e recuperação nas barragens de Mirorós, Estreito, Cova da Mandioca, Ceraíma e Poço do Magro, localizadas no estado da Bahia.
A6: =MIRORÓS!A6 -> LOCAL: | B6: =Resumo!B6 -> Barragens da Bahia
A7: =MIRORÓS!A7 -> DATA BASE: | B7: =Resumo!B7 -> 2026-06-01
A8: =MIRORÓS!A8 -> PRAZO: | B8: =Resumo!B8 -> 90 dias
A11: Encargos Sociais – Bahia VIGÊNCIA A PARTIR DE 01/2026
A12: ENCARGOS SOCIAIS SOBRE A MÃO DE OBRA
A13: CÓDIGO | B13: DESCRIÇÃO | C13: COM DESONERAÇÃO | E13: SEM DESONERAÇÃO
C14: HORISTA % | D14: MENSALISTA % | E14: HORISTA % | F14: MENSALISTA %
A15: GRUPO A
A16: A1 | B16: INSS | C16: 0.1 | D16: 0.1 | E16: 0.2 | F16: 0.2
A17: A2 | B17: SESI | C17: 0.015 | D17: 0.015 | E17: 0.015 | F17: 0.015
A18: A3 | B18: SENAI | C18: 0.01 | D18: 0.01 | E18: 0.01 | F18: 0.01
A19: A4 | B19: INCRA | C19: 0.002 | D19: 0.002 | E19: 0.002 | F19: 0.002
A20: A5 | B20: SEBRAE | C20: 0.006 | D20: 0.006 | E20: 0.006 | F20: 0.006
A21: A6 | B21: Salário Educação | C21: 0.025 | D21: 0.025 | E21: 0.025 | F21: 0.025
A22: A7 | B22: Seguro Contra Acidentes de Trabalho | C22: 0.03 | D22: 0.03 | E22: 0.03 | F22: 0.03
A23: A8 | B23: FGTS | C23: 0.08 | D23: 0.08 | E23: 0.08 | F23: 0.08
A24: A9 | B24: SECONCI | C24: 0 | D24: 0 | E24: 0 | F24: 0
A25: A | B25: Total | C25: =SUM(C16:C24) -> 0.268 | D25: =SUM(D16:D24) -> 0.268 | E25: =SUM(E16:E24) -> 0.368 | F25: =SUM(F16:F24) -> 0.368
A26: GRUPO B
A27: B1 | B27: Repouso Semanal Remunerado | C27: 0.1786 | D27: Não incide | E27: 0.1786 | F27: Não incide
A28: B2 | B28: Feriados | C28: 0.0394 | D28: Não incide | E28: 0.0394 | F28: Não incide
A29: B3 | B29: Auxílio - Enfermidade | C29: 0.0089 | D29: 0.0067 | E29: 0.0089 | F29: 0.0067
A30: B4 | B30: 13º Salário | C30: 0.1108 | D30: 0.0832 | E30: 0.1108 | F30: 0.0832
A31: B5 | B31: Licença Paternidade | C31: 0.0007 | D31: 0.0005 | E31: 0.0007 | F31: 0.0005
A32: B6 | B32: Faltas Justificadas | C32: 0.0074 | D32: 0.0056 | E32: 0.0074 | F32: 0.0056
A33: B7 | B33: Dias de Chuvas | C33: 0.0228 | D33: Não incide | E33: 0.0228 | F33: Não incide
A34: B8 | B34: Auxílio Acidente de Trabalho | C34: 0.0003 | D34: 0.0002 | E34: 0.0003 | F34: 0.0002
A35: B9 | B35: Férias Gozadas | C35: 0.1208 | D35: 0.0907 | E35: 0.1208 | F35: 0.0907
A36: B10 | B36: Salário Maternidade | C36: 0.0004 | D36: 0.0003 | E36: 0.0004 | F36: 0.0003
A37: B | B37: Total | C37: =SUM(C27:C36) -> 0.4901 | D37: =SUM(D27:D36) -> 0.1872 | E37: =SUM(E27:E36) -> 0.4901 | F37: =SUM(F27:F36) -> 0.1872
A38: GRUPO C
A39: C1 | B39: Aviso Prévio Indenizado | C39: 0.067 | D39: 0.0504 | E39: 0.067 | F39: 0.0504
A40: C2 | B40: Aviso Prévio Trabalhado | C40: 0.0017 | D40: 0.0013 | E40: 0.0017 | F40: 0.0013
A41: C3 | B41: Férias Indenizadas | C41: 0.0299 | D41: 0.0225 | E41: 0.0299 | F41: 0.0225
A42: C4 | B42: Depósito Rescisão Sem Justa Causa | C42: 0.0286 | D42: 0.0215 | E42: 0.0286 | F42: 0.0215
A43: C5 | B43: Indenização Adicional | C43: 0.0056 | D43: 0.0042 | E43: 0.0056 | F43: 0.0042
A44: C | B44: Total | C44: =SUM(C39:C43) -> 0.1328 | D44: =SUM(D39:D43) -> 0.0999 | E44: =SUM(E39:E43) -> 0.1328 | F44: =SUM(F39:F43) -> 0.0999
A45: GRUPO D
A46: D1 | B46: Reincidência de Grupo A sobre Grupo B | C46: 0.1203 | D46: 0.0418 | E46: 0.1804 | F46: 0.0689
A47: D2 | B47: Reincidência de Grupo A sobre Aviso Prévio Trabalhado e Reincidência do FGTS sobre Aviso Prévio Indenizado | C47: 0.0058 | D47: 0.0044 | E47: 0.006 | F47: 0.0045
A48: D | B48: Total | C48: =SUM(C46:C47) -> 0.1261 | D48: =SUM(D46:D47) -> 0.0462 | E48: =SUM(E46:E47) -> 0.1864 | F48: =F46+F47 -> 0.0734
A49: TOTAL(A+B+C+D) | C49: =C25+C37+C44+C48 -> 1.017 | D49: =D25+D37+D44+D48 -> 0.6013 | E49: =E25+E37+E44+E48 -> 1.1773 | F49: =F25+F37+F44+F48 -> 0.7285
A50: Fonte: Informação Dias de Chuva – INMET

Sheet Cotação_regua
A4: EMPRESA | C4: DESCRIÇÃO / OBSERVAÇÃO | D4: UNID | E4: QUANT | F4: LINK OU LOCAL DO ARQUIVO | G4: VALOR
A5: DATA | B5: EMPRESA / CNPJ | G5: MAT | H5: MDO | I5: TRANSPORTE | J5: TOTAL
A6: 2026-03-04 | B6: Google Shopping/Amazon | C6: Régua Fluviométrica-linimétrica/alumínio 2x100x1000 Mm | D6: un | E6: 1 | F6: https://www.amazon.com.br/R%C3%A9gua-Fluviom%C3%A9trica-linim%C3%A9trica-alum%C3%ADnio-2x100x1000-Mm/dp/B0F8J8J1L4 | G6: 159 | J6: =SUM(G6:I6) -> 159
A7: =A6 -> 2026-03-04 | B7: Gravametal | C7: Régua linimétrica em alumínio 2 X 70 X 1000MM | D7: un | E7: 1 | F7: https://www.gravametal.com.br/product-page/r%C3%A9gua-linim%C3%A9trica-fluviom%C3%A9trica-1000x70x2mm?srsltid=AfmBOorpbg64qJlX2pgynQrcyt53BOgReqof3miBxPTNkXfxY3ObAbULCY4 | G7: 209 | J7: =SUM(G7:I7) -> 209
A8: =A6 -> 2026-03-04 | B8: Google Shopping/Mercado Livre | C8: Régua Fluviométrica-linimétrica/alumínio 2x100x1000 Mm Branca | D8: un | E8: 1 | F8: https://www.mercadolivre.com.br/regua-fluviometricalinimetricaaluminio-2x100x1000-mm/up/MLBU1991537352?matt_tool=18956390&utm_source=google_shopping&utm_medium=organic&pdp_filters=item_id%3AMLB4758946120&from=gshop | G8: 169 | J8: =SUM(G8:I8) -> 169
I9: Média | J9: =AVERAGE(J6:J8) -> 179
I10: Mediana | J10: =MEDIAN(J6:J8) -> 169
I11: Menor | J11: =SMALL(J9:J10,1) -> 169
I12: CV= | J12: =_xlfn.STDEV.S(J6:J8)/J9 -> 0.1478073358

Sheet Cotaçao_Cilindro1
B2: Processo
B3: Responsável | C3: MURILO
B4: Área de Origem | C4: AI/GEE/USB
B5: Data da pesquisa | C5: 2026-02-25
B7: ITEM: | C7: Fornecimento de cilindro hidráulico conforme projeto - KVD0581400-320 - DESENHO | I7: UNIDADE DE MEDIDA: | K7: QUANTIDADE: | O7: Tabela auxiliar de metodologias para exclusão de preços
B8: LICITAÇÕES ANTERIORES | O8: Licitações Anteriores
B9: Órgão | C9: Edital/Ano - Nº do Lote / Item | D9: Quantidade | E9: Valor Unitário | F9: Data | G9: índice de atualização (nome) | H9: I0 | I9: If | J9: Variação acumulada do índice (%) | K9: Preço unitário atualizado | L9: Utilizar? (Sim/Não) | O9: Outliers | P9: Por critério do(a) analista
J10: =IF(ISBLANK(E10),"",IF(ISNUMBER(H10),(I10-H10)/H10,0)) ->  | K10: =IF(ISBLANK(E10),"",E10*(1+J10)) ->  | L10: =IF(ISNUMBER(K10),IF($L$32<>$P$9,O10,P10),"") ->  | O10: =IF(ISNUMBER(K10),IF(OR(K10<_xlfn.QUARTILE.INC($K$10:$K$29,1)-1.5*(_xlfn.QUARTILE.INC($K$10:K29,3)-_xlfn.QUARTILE.INC($K$10:$K$29,1)),K10>_xlfn.QUARTILE.INC($K$10:$K$29,3)+1.5*(_xlfn.QUARTILE.INC($K$10:$K$29,3)-_xlfn.QUARTILE.INC($K$10:$K$29,1))),"Não","Sim"),"") -> 
J11: =IF(ISBLANK(E11),"",IF(ISNUMBER(H11),(I11-H11)/H11,0)) ->  | K11: =IF(ISBLANK(E11),"",E11*(1+J11)) ->  | O11: =IF(ISNUMBER(K11),IF(OR(K11<_xlfn.QUARTILE.INC($K$10:$K$29,1)-1.5*(_xlfn.QUARTILE.INC($K$10:K29,3)-_xlfn.QUARTILE.INC($K$10:$K$29,1)),K11>_xlfn.QUARTILE.INC($K$10:$K$29,3)+1.5*(_xlfn.QUARTILE.INC($K$10:$K$29,3)-_xlfn.QUARTILE.INC($K$10:$K$29,1))),"Não","Sim"),"") -> 
O12: =IF(ISNUMBER(K12),IF(OR(K12<_xlfn.QUARTILE.INC($K$10:$K$29,1)-1.5*(_xlfn.QUARTILE.INC($K$10:K30,3)-_xlfn.QUARTILE.INC($K$10:$K$29,1)),K12>_xlfn.QUARTILE.INC($K$10:$K$29,3)+1.5*(_xlfn.QUARTILE.INC($K$10:$K$29,3)-_xlfn.QUARTILE.INC($K$10:$K$29,1))),"Não","Sim"),"") -> 
O13: =IF(ISNUMBER(K13),IF(OR(K13<_xlfn.QUARTILE.INC($K$10:$K$29,1)-1.5*(_xlfn.QUARTILE.INC($K$10:K31,3)-_xlfn.QUARTILE.INC($K$10:$K$29,1)),K13>_xlfn.QUARTILE.INC($K$10:$K$29,3)+1.5*(_xlfn.QUARTILE.INC($K$10:$K$29,3)-_xlfn.QUARTILE.INC($K$10:$K$29,1))),"Não","Sim"),"") -> 
O14: =IF(ISNUMBER(K14),IF(OR(K14<_xlfn.QUARTILE.INC($K$10:$K$29,1)-1.5*(_xlfn.QUARTILE.INC($K$10:K32,3)-_xlfn.QUARTILE.INC($K$10:$K$29,1)),K14>_xlfn.QUARTILE.INC($K$10:$K$29,3)+1.5*(_xlfn.QUARTILE.INC($K$10:$K$29,3)-_xlfn.QUARTILE.INC($K$10:$K$29,1))),"Não","Sim"),"") -> 
O15: =IF(ISNUMBER(K15),IF(OR(K15<_xlfn.QUARTILE.INC($K$10:$K$29,1)-1.5*(_xlfn.QUARTILE.INC($K$10:K35,3)-_xlfn.QUARTILE.INC($K$10:$K$29,1)),K15>_xlfn.QUARTILE.INC($K$10:$K$29,3)+1.5*(_xlfn.QUARTILE.INC($K$10:$K$29,3)-_xlfn.QUARTILE.INC($K$10:$K$29,1))),"Não","Sim"),"") -> 
O16: =IF(ISNUMBER(K16),IF(OR(K16<_xlfn.QUARTILE.INC($K$10:$K$29,1)-1.5*(_xlfn.QUARTILE.INC($I$10:I37,3)-_xlfn.QUARTILE.INC($K$10:$K$29,1)),K16>_xlfn.QUARTILE.INC($K$10:$K$29,3)+1.5*(_xlfn.QUARTILE.INC($K$10:$K$29,3)-_xlfn.QUARTILE.INC($K$10:$K$29,1))),"Não","Sim"),"") -> 
B17: COTAÇÕES DE MERCADO | O17: Cotações
B18: Empresa | J18: Data | K18: Preço Unitário | L18: Utilizar? (Sim/Não) | O18: Outliers | P18: Por critério do(a) analista
B19: GLOBAL HYDRAULICS LTDA / CNPJ: 05.393.742/0001-48 | J19: 2026-02-25 | K19: 8384 | L19: =IF(ISNUMBER(K19),IF($L$32=$O$18,O19,IF($L$32=$P$18,P19,"")),"") -> Sim | O19: =IF(ISNUMBER(K19),IF(OR(K19<_xlfn.QUARTILE.INC($K$10:$K$29,1)-1.5*(_xlfn.QUARTILE.INC($K$10:$K$29,3)-_xlfn.QUARTILE.INC($K$10:$K$29,1)),K19>_xlfn.QUARTILE.INC($K$10:$K$29,3)+1.5*(_xlfn.QUARTILE.INC($K$10:$K$29,3)-_xlfn.QUARTILE.INC($K$10:$K$29,1))),"Não","Sim"),"") -> Sim
B20: Yusen Comp. Hidráulcios LTDA | J20: 2026-02-25 | K20: 9634.98 | L20: Sim | O20: Sim
B21: J. A. SOLUÇÕES INDUSTRIAIS LTDA / 40.659.600/0001-80 | J21: 2026-02-25 | K21: 13200 | L21: Sim | O21: Sim
B22: CADIRI HIDRÁULICA | J22: 2026-02-26 | K22: 4600 | L22: Sim | O22: Sim
B23: LM COMERCIO DE EQUIPAMENTOS HIDRAULICOS LTDA | J23: 2026-02-27 | K23: 11550 | L23: Sim | O23: Sim
B24: Hydrostec tecnologia e equipamentos Ltda | J24: 2026-03-03 | K24: 44000 | L24: Não | O24: Não
B30: Observações: | K30: Média: | L30: =IF($L$32="","Selecione metodologia para exclusão de preços",AVERAGE(IF($L$10:$L$29="Sim",$K$10:$K$29))) -> 9473.796 | N30: Média (Cotações) | O30: =IF(COUNTIF(O19:O29,"Sim")<3,"N/D (são necessários pelo menos 3 preços)",AVERAGE(IF(O19:O29="Sim",$K19:$K29))) -> 9473.796 | P30: =IF(COUNTIF(P19:P29,"Sim")<3,"N/D (são necessários pelo menos 3 preços)",AVERAGE(IF(P19:P29="Sim",$K19:$K29))) -> N/D (são necessários pelo menos 3 preços)
K31: Mediana: | L31: =IF($L$32="","Selecione metodologia para exclusão de preços",MEDIAN(IF($L$10:$L$29="Sim",$K$10:$K$29))) -> 9634.98 | N31: Mediana (Cotações) | O31: =IF(COUNTIF(O19:O29,"Sim")<3,"N/D (são necessários pelo menos 3 preços)",MEDIAN(IF(O19:O29="Sim",$K19:$K29))) -> 9634.98 | P31: =IF(COUNTIF(P19:P29,"Sim")<3,"N/D (são necessários pelo menos 3 preços)",MEDIAN(IF(P19:P29="Sim",$K19:$K29))) -> N/D (são necessários pelo menos 3 preços)
B32: Metodologia de exclusão de preços adotada: | L32: =IF(O35="",INDEX(O18:P18,MATCH(MIN(#REF!),#REF!,0)),O35) -> Outliers | N32: CV (Cotações) | O32: =IF(COUNTIF(O19:O29,"Sim")<3,"N/D (são necessários pelo menos 3 preços)",_xlfn.STDEV.S(IF(O19:O29="Sim",$K19:$K29))/AVERAGE(IF(O19:O29="Sim",$K19:$K29))) -> 0.346737242 | P32: =IF(COUNTIF(P19:P29,"Sim")<3,"N/D (são necessários pelo menos 3 preços)",_xlfn.STDEV.S(IF(P19:P29="Sim",$K19:$K29))/AVERAGE(IF(P19:P29="Sim",$K19:$K29))) -> N/D (são necessários pelo menos 3 preços)
N33: Média | O33: =IF(SUM(COUNTIF($O$10:$O$16,"Sim")) + SUM(COUNTIF(O19:O29,"Sim")) < 3, "N/D (são necessários pelo menos 3 preços)", IFERROR(AVERAGE(_xlfn._xlws.FILTER($K$10:$K$16,$O$10:$O$16="Sim"), _xlfn._xlws.FILTER($K$19:$K$29,O19:O29="Sim")),O30)) -> 9473.796 | P33: =IF(SUM(COUNTIF($P$10:$P$16,"Sim")) + SUM(COUNTIF(P19:P29,"Sim")) < 3, "N/D (são necessários pelo menos 3 preços)", IFERROR(AVERAGE(_xlfn._xlws.FILTER($K$10:$K$16,$P$10:$P$16="Sim"), _xlfn._xlws.FILTER($K$19:$K$29,P19:P29="Sim")),P30)) -> N/D (são necessários pelo menos 3 preços)
N34: Mediana | O34: =IF(SUM(COUNTIF($O$10:$O$16,"Sim")) + SUM(COUNTIF(O19:O29,"Sim")) < 3, "N/D (são necessários pelo menos 3 preços)", IFERROR(MEDIAN(_xlfn._xlws.FILTER($K$10:$K$16,$O$10:$O$16="Sim"), _xlfn._xlws.FILTER($K$19:$K$29,O19:O29="Sim")),O31)) -> 9634.98 | P34: =IF(SUM(COUNTIF($P10:$P$16,"Sim")) + SUM(COUNTIF(P19:P29,"Sim")) < 3, "N/D (são necessários pelo menos 3 preços)", IFERROR(MEDIAN(_xlfn._xlws.FILTER($K$10:$K$16,$P$10:$P$16="Sim"), _xlfn._xlws.FILTER($K$19:$K$29,P19:P29="Sim")),P31)) -> N/D (são necessários pelo menos 3 preços)
B35: COSOLIDAÇÃO DOS PREÇOS | N35: Metodologia a adotar: | O35: =IF(INDEX(O18:P18,P35)=0,"",INDEX(O18:P18,P35)) -> Outliers | P35: 1
B37: PREÇO UNITÁRIO ESTIMADO ADOTADO: | L37: =IF($B$39="Mediana:",L31,L30) -> 9473.796
A39: =O18 -> Outliers | B39: Média:
A40: =P18 -> Por critério do(a) analista

Sheet Mapa de Cotacao_Cilindro
A1: Ministério da Integração e do Desenvolvimento Regional
A2: Companhia de Desenvolvimento dos Vales do São Francisco e do Parnaíba
A4: ITEM | B4: EMPRESA | G4: DESCRIÇÃO / OBSERVAÇÃO | H4: UNID | I4: QUANT | J4: LINK OU LOCAL DO ARQUIVO | K4: VALOR
B5: DATA | C5: EMPRESA / CNPJ | D5: RESPONSÁVEL | E5: ENDEREÇO | F5: CONTATO | K5: MAT
A6: 1 | B6: 2026-02-25 | C6: GLOBAL HYDRAULICS LTDA / CNPJ: 05.393.742/0001-48 | E6: RUA HIPODROMO 1445 SAO PAULO SP - CEP 03162-020 | F6: (11) 94037-3539 | H6: UN | I6: 1 | K6: 8384
A7: 2 | B7: 2026-02-25 | C7: Yusen Comp. Hidráulcios LTDA | E7: Rua Alexandre Andreotti, 145 - Jundiapeba - CEO: 08750-570 0 Mogi das Cruzes - SP | F7: (11) 2610-4505 | H7: UN | I7: 1 | K7: 9634.98
A8: 3 | B8: 2026-02-25 | C8: J. A. SOLUÇÕES INDUSTRIAIS LTDA / CNPJ: 40.659.600/0001-80 | E8: Rua Pedro de Castro Velho, 963 - VI. Bancária - CEP: 03921-000 | F8: (11) 95355-0200 | H8: UN | I8: 1 | K8: 13200
A9: 4 | B9: 2026-02-26 | C9: CADIRI HIDRÁULICA / CNPJ: 09.577.109/0001-60 | E9: Rua Barão de Monte Santo 856 Mooca - São Paulo - SP CEP 03123-020 | F9: (11) 96393-2796 | H9: UN | I9: 1 | K9: 4600
A10: 5 | B10: 2026-02-27 | C10: LM COMERCIO DE EQUIPAMENTOS HIDRAULICOS LTDA / CNPJ: 60.806.574/0001-83 | E10: RUA RAUL POMPEIA, 271 JARDIM ITAPOAN Santo André - SP - CEP: 09260-630 | F10: (11) 2366-1455 | H10: UN | I10: 1 | K10: 11550
A11: 6 | B11: 2026-03-03 | C11: hydrostec tecnologia e equipamentos Ltda | E11: Av. do Pinhão, 2222 12050-070 - Taubaté - SP | F11: (12) 3608-2719 | H11: UN | I11: 1 | K11: 44000

Sheet Amortecedor_Coxim
B1: DATA DA PESQUISA - 30/04/2026
B2: GOOGLE SHOPPING | M2: Média | N2: Mediana | O2: COT1 | P2: COT 2 | Q2: COT 3 | R2: COT 4 | S2: COT 5 | T2: COT 6
B3: https://www.google.com/search?sca_esv=a29fc145d0f7951e&sxsrf=ANbL-n7ZrOehEIKkHh6x6ZUkxD5uvGGuhA:1777555716651&udm=28&fbs=ADc_l-acAb_3MMOAUx0zmbUpgBqRiigBgL2I_pgQa-94zvB056b93wKmVeAAORa3GINFZT67RHmD8tBnhEcNAi-9cSkyo2TiykP-v1QooMz91OfQktE4J64icFSKEAKFgA1RE6aqBFmSUkfOoiDBodcNCYegEfBsyN-oUcVtcFTpVYRKBqkBOHDgjD85EicivHFCE3lajuAQaNRJPkOIy3UHiVraW0oMmA&q=Coxim+Vibra+Stop+Antivibra%C3%A7%C3%A3o&ved=1t:220175&ictx=111&biw=1600&bih=773&dpr=1#sv=CAYSkAISABosMmFoVUtFd2lncVkyTjE1V1VBeFdmckpVQ0hVWlBQSndRZ2kxNkJBZ2JFQkUirAEKFDE0OTIyODcyNzYzMTQxMDU5MDYyEhM5MjE3NDcwNTc2MzMwNDM3NTU0IhQxNDg2MDUyNzE3NjY2Nzg4MjU0OTITMzQwNzY4MTM0NjQ4Njk5NDkwNDoSNTc2NDYyODIwNjU2MDYxNzc5SgJoZ1IyUENfMzQwNzY4MTM0NjQ4Njk5NDkwNHxQUk9EX1BDXzM0MDc2ODEzNDY0ODY5OTQ5MDSgARPwAQCCAgEwMABCLTJhaFVLRXdpZ3FZMk4xNVdVQXhXZnJKVUNIVVpQUEp3UXJvZ0dlZ1FJR3hBRiDwnpbvCEoIEAIYASABKAE | M3: =AVERAGE(O3:U3) -> 62.404 | N3: =MEDIAN(O3:T3) -> 66.07 | O3: 56.9 | Q3: 66.07 | R3: 56.9 | S3: 66.07 | T3: 66.08
M5: CV= | N5: =STDEVA(O3:U3)/AVERAGE(O3:U3) -> 0.08051476272
M7: Frete= | N7: =(35.54+74.2+20.76)/3 -> 43.5 | O7: Foi consoderado a média de 3 valores para o frete
M9: Preço= | N9: =SMALL(M3:N3,1)+N7 -> 105.904 | O9: Foi considerado o menor valor entre a média e a mediana das cotações, somado o valor do frete
H21: S

Sheet Chave comutaçao
B1: DATA DA PESQUISA - 30/04/2026
B2: GOOGLE SHOPPING | O2: Média | P2: Mediana | Q2: COT1 | R2: COT 2 | S2: COT 3 | T2: COT 4 | U2: COT 5 | V2: COT 6
B3: https://www.google.com/search?q=chave+de+transfer%C3%AAncia+manual+para+gerador&sca_esv=f123ee124c2aed74&biw=1600&bih=773&udm=28&sxsrf=ANbL-n4iV8Az8N7wIDM58JDxNmIxCq2Crg%3A1777557445651&ei=xV_zab61J8Cg1sQPm66PsQQ&ved=0ahUKEwj-q_bA3ZWUAxVAkJUCHRvXI0YQ4dUDCCQ&uact=5&oq=chave+de+transfer%C3%AAncia+manual+para+gerador&gs_lp=Ehlnd3Mtd2l6LW1vZGVsZXNzLXNob3BwaW5nIitjaGF2ZSBkZSB0cmFuc2ZlcsOqbmNpYSBtYW51YWwgcGFyYSBnZXJhZG9yMgUQABiABEihKVCJBljnGXACeAGQAQCYAYsBoAG_BqoBAzAuN7gBA8gBAPgBAZgCCKAC1AXCAgoQABhHGNYEGLADwgIGEAAYBxgewgIHEAAYgAQYDcICChAAGIAEGA0Y1gXCAgkQABgeGA0Y1gWYAwCIBgGQBgiSBwMyLjagB8YRsgcDMC42uAfKBcIHAzktOMgHn9AIgAgB&sclient=gws-wiz-modeless-shopping#sv=CAYSgAISABosMmFoVUtFd2kweFlfTDNaV1VBeFZYcXBVQ0hWUEhHZGtRZ2kxNkJBaExFQ0UinAEKFDE2MTM1Nzc3NDUxMTYyMTI2ODQxEhM5NDU3MDAxMTUwOTY2NDYzMTg3GgAiEzM5OTEzNjYwNTQ2NTk0MTI0MjIqADIUMTI2OTUwMTQxOTA4ODcwNjIwODY6EjU3NjQ2Mjg4MDAyMjE1NzI3MEoCaGdSAGIAagCKAQCgAQOwAQDCAQDKAQDaAQDiAQDwAQD6AQCSAgDaAgDiAgAwAEItMmFoVUtFd2kweFlfTDNaV1VBeFZYcXBVQ0hWUEhHZGtRcm9nR2VnUUlTeEFPIOeMkZoESggQAhgBIAEoAQ | O3: =AVERAGE(Q3:W3) -> 771.016 | P3: =MEDIAN(Q3:V3) -> 725.9 | Q3: 681.12 | R3: 725.9 | S3: 945.81 | T3: 714.8 | U3: 787.45
O5: CV= | P5: =STDEVA(Q3:W3)/AVERAGE(Q3:W3) -> 0.136183947
O7: Frete= | P7: =(30.32+88.7+80.2+37.43)/4 -> 59.1625 | Q7: Foi consoderado a média de 3 valores para o frete
O9: Preço= | P9: =SMALL(O3:P3,1)+P7 -> 785.0625 | Q9: Foi considerado o menor valor entre a média e a mediana das cotações, somado o valor do frete

Sheet CPU-VEICULO_PickUp
A5: Composição de Preços de Locação de Veículo tipo pick-up
B6: Data de atualização: | C6: 2026-02-11 | E6: CV | F6: Média | G6: Mediana | K6: CV | L6: Média | M6: Mediana | V6: CV | W6: Média | X6: Mediana
A7: CODEVASF | E7: =_xlfn.STDEV.S(E10:H10)/AVERAGE(E10:H10) -> 0.08811025869 | F7: =AVERAGE(E10:H10) -> 209327.5 | G7: =MEDIAN(E10:H10) -> 212401 | K7: =_xlfn.STDEV.S(L9:S9)/AVERAGE(L9:S9) -> 0.1994963157 | L7: =AVERAGE(L9:S9) -> 38.95375 | M7: =MEDIAN(L9:S9) -> 38.935 | V7: =_xlfn.STDEV.S(W9:AD9)/AVERAGE(W9:AD9) -> 0.2938004244 | W7: =AVERAGE(W9:AD9) -> 584.03875 | X7: =MEDIAN(W9:AD9) -> 513.99
A8: OBS: Preço sem BDI e sem motorista BDI= | E8: Preço FIPE | J8: PRODUTO | K8: MENOR (MÉDIA, MEDIANA) | L8: COT. 1 | M8: COT. 2 | N8: COT. 3 | O8: COT. 4 | P8: COT. 5 | Q8: COT. 6 | R8: COT. 7 | S8: COT. 8 | U8: PRODUTO | V8: MENOR (MÉDIA, MEDIANA) | W8: COT. 1 | X8: COT. 2 | Y8: COT. 3 | Z8: COT. 4 | AA8: COT. 5 | AB8: COT. 6 | AC8: COT. 7 | AD8: COT. 8
A9: Veículo tipo pick-up, cabine dupla - 2.0 16V 4x4 diesel Aut. | E9: Toro Volcano 2.0 16V 4x4 TB Diesel Aut. | F9: Toro Volcano 2.2 16V 4x4 TB Diesel Aut. | G9: Toro Ranch 2.2 16V 4x4 TB Diesel Aut. | H9: RAMPAGE BIG HORN 2.2 TB CD 4X4 Die Aut. | J9: LUBRIFICANTE 5W30 | K9: =SMALL(L7:M7,1) -> 38.935 | L9: 26.9 | M9: 38.97 | N9: 43.65 | O9: 47.12 | P9: 33.43 | Q9: 32.76 | R9: 49.9 | S9: 38.9 | U9: Pneu 225/65 R17 | V9: =SMALL(W7:X7,1) -> 513.99 | W9: 516.8 | X9: 896.8 | Y9: 778.91 | Z9: 437.4 | AA9: 619.2 | AB9: 406.22 | AC9: 505.8 | AD9: 511.18
B10: Custo Mensal (R$): | C10: =C51 -> 4926.192025 | E10: 187078 | F10: 201281 | G10: 223521 | H10: 225430
B11: Custo Diária (R$): | C11: =C10/22 -> 223.9178193
B12: Custo Horário (R$): | C12: =C10/176 -> 27.98972741
A13: A | B13: Depreciação mensal do equipamento
A14: A1 | B14: Preço de Aquisição | C14: =SMALL(F7:G7,1) -> 209327.5
A15: A2 | B15: Tempo previsto de vida útil (meses) | C15: 36
A16: A3 | B16: Previsão de recup. Na venda do bem usado | C16: 0.7
A17: A4 | B17: Custo mensal [A1-(A3xA1)]/A2 | C17: =(C14-(C16*C14))/C15 -> 1744.395833
A18: B | B18: Juros pelo Capital empregado
A19: B1 | B19: Taxa mensal de Juros * | C19: =POWER(1+C56,1/12)-1 -> 0.01164157501
A20: B2 | B20: Juros s/depreciação/aluguel (B1xA4) | C20: =C19*C17 -> 20.30751494
A21: C | B21: Conservação e manutenção ** | C21: 0.75
A22: C1 | B22: Taxa de gastos s/a deprec. Inc. seguros (%) | C22: =C21 -> 0.75 | AF22: PREÇO DO DIESEL | AG22: 6.12
A23: C2 | B23: Incidência mensal (C1xA4) | C23: =C22*C17 -> 1308.296875 | AF23: https://precos.petrobras.com.br/sele%C3%A7%C3%A3o-de-estados-diesel
A24: D | B24: Combustível
A25: D1 | B25: Média mensal de quilômetro por veículo | C25: ='Memorial de cálculo'!H6*2*22 -> 2695.44
A26: D2 | B26: Preço do litro de combustível | C26: =AG22 -> 6.12
A27: D3 | B27: Quilômetros rodados com um litro combustivel | C27: 10
A28: D4 | B28: Combustivel (D1/D3)*D2 | C28: =(C25/C27)*C26 -> 1649.60928
A29: E | B29: Lubrificantes
A30: E1 | B30: Quilometragem do Contrato (D1*12) | C30: =C25*36 -> 97035.84
A31: E2 | B31: Franquia por troca de óleo (km) | C31: 10000
A32: E3 | B32: Preço do litro de óleo | C32: =K9 -> 38.935
A33: E4 | B33: Quantidade de litros de óleo por troca | C33: 5
A34: E5 | B34: Quantidade de dias do Contrato | C34: =365*3 -> 1095
A35: E6 | B35: Lubrificantes E = (E1*E3*E4*30)/E2*E5 | C35: =(C30*C32*C33*30)/(C31*C34) -> 51.75466343
A36: F | B36: Pneus
A37: F1 | B37: Quilometragem do Contrato | C37: =C30 -> 97035.84
A38: F2 | B38: Vida do Pneu em quilômetros | C38: 45000
A39: F3 | B39: Quantidade de pneus | C39: 5
A40: F4 | B40: Preço do Pneu | C40: =V9 -> 513.99
A41: F5 | B41: Quantidade de dias do contrato | C41: =C34 -> 1095
A42: F6 | B42: Pneus = (F1*F3*F4*30)/(F2*F5) | C42: =(C37*C39*C40*30)/(C38*C41) -> 151.8278581
A43: G | B43: Motorista
A44: G1 | B44: Salário com encargos sociais | C44: 0
A45: H | B45: Custo Mensal
B46: Sem Motorista (A4+B2+C2+D4+E6+F6) | C46: =C17+C20+C23+C28+C35+C42 -> 4926.192025
B47: Com Motorista (A4+B2+C2+D4+E6+F6+G1) | C47: =C17+C20+C23+C28+C35+C42+C44 -> 4926.192025
A48: I | B48: Custo Direto p/ km Rodado
B49: Sem Motorista | C49: =C46/C25 -> 1.827602182
B50: Com Motorista | C50: =C47/C25 -> 1.827602182
A51: J | B51: Preço cobrado sem BDI | C51: =C46*(1+C8) -> 4926.192025
A52: J1 | B52: Sem Motorista | C52: =C51 -> 4926.192025
A53: J2 | B53: Com Motorista | C53: =C47 -> 4926.192025 | I53: https://www.google.com/search?q=lubrificante+5w30+1l&sa=X&sca_esv=c77f5342bf7e367a&tbm=shop&ei=e0uKZ-DcDNKp5OUPkOKj6QY&ved=0ahUKEwighoOy3_yKAxXSFLkGHRDxKG0Q4dUDCAg&uact=5&oq=lubrificante+5w30+1l&gs_lp=Egtwcm9kdWN0cy1jYyIUbHVicmlmaWNhbnRlIDV3MzAgMWxIgQ9Q4AlY8Q1wAHgAkAEAmAFroAGgA6oBAzEuM7gBA8gBAPgBAZgCAqAC0gHCAgUQABiABMICBhAAGAcYHsICBhAAGAgYHsICBhAAGBYYHpgDAIgGAZIHAzEuMaAHxQU&sclient=products-cc | T53: https://www.google.com/search?q=pneu+225%2F65+R17&sa=X&biw=1600&bih=757&tbm=shop&sxsrf=AJOqlzWsb-d4PS1_OUOEhKmRc2RbtSg3RQ%3A1677092596279&ei=9Gb2Y9K5ENTa5OUPvLykGA&ved=0ahUKEwjSg9Pj6Kn9AhVULbkGHTweCQMQ4dUDCAg&uact=5&oq=pneu+225%2F65+R17&gs_lcp=Cgtwcm9kdWN0cy1jYxADMgsIABCABBCxAxCDATIFCAAQgAQyBwgAEIAEEAoyBwgAEIAEEAoyBwgAEIAEEAoyBwgAEIAEEAoyBwgAEIAEEAoyBQgAEIAEMgcIABCABBAKMgcIABCABBAKOgQIIxAnOgQIABBDSgQIQRgAUABYoTJgqUBoAHAAeACAAdIFiAGUKZIBDTAuMi42LjIuMi4yLjGYAQCgAQHAAQE&sclient=products-cc
B55: OBSERVAÇÕES:
A56: * | B56: Calculado com base na taxa SELIC JANEIRO/2026: | C56: 0.149
B57: Taxa de Juros Selic — Português (Brasil) (www.gov.br)
A58: ** | B58: Conservação e manutenção - é calculado com o uso de um coeficiente multiplicador "k", conforme tabela abaixo, sobre a
B59: depreciação mensal do equipamento (Item A da planilha de composição de preços). Os valores de K são fornecidos por
B60: fabricantes.
B61: Metodologia conforme a bibliografia "Como Preparar Orçamentos de Obras", 3 edição, Aldo Dórea Mattos, 2019.

Sheet CPU HOSPEDAGEM
B2: Engenharia Consultiva da Codevasf
B3: CPU - HOSPEDAGEM EQUIPE DE CAMPO (4 PESSOAS/MÊS) | D3: Código/Referencia
B4: ALUGUEL | C4: 3074.56 | D4: F020003334/EMBASA insumo | E4: ok
B5: Aquisição de Mobiliário | C5: =41.81*C16 -> 167.24 | D5: B8954/DNIT
B6: Material de limpeza e diarista | C6: =131.67+(123*8) -> 1115.67 | D6: 10563/ORSE - E200300131/EMBASA | E6: OK
B7: manutenção da casa alugada - Serviços Gerais/Vigia | C7: 2987.22 | D7: 41096/SINAPI | E7: OK
B8: Energia | C8: 180 | D8: 10555/ORSE | E8: OK
B9: Água | C9: 394.99 | D9: 10554/ORSE | E9: OK
B10: telefone/Internet | C10: =154.99+89 -> 243.99 | D10: 10557/10558/ORSE | E10: OK
B11: IPTU (mês) | C11: =(C4*0.5)/12 -> 128.1066667
B13: Custo Mensal: | C13: =SUM(C4:C12) -> 8291.776667
B14: Custo Mensal por pessoa: | C14: =C13/C16 -> 2072.944167
B15: Custo diário por pessoa: | C15: =C14/22 -> 94.22473485
B16: número de pessoas: | C16: 4
B17: Alimentação: | C17: 0 | D17: Tabela Diária Codevasf 2025
B19: Diária Total (alimentação + hospedagem): | C19: =C15+C17 -> 94.22473485

Sheet CPU-VEICULO_Fiscalização (hidden)
A5: Composição de Preços de Locação de Veículo tipo pick-up | D5: Composição de Preços de Locação de Veículo tipo pick-up | J5: Composição de Preços de Locação de Veículo tipo pick-up | U5: Composição de Preços de Locação de Veículo tipo pick-up | AF5: Composição de Preços de Locação de Veículo tipo pick-up
B6: Data de atualização: | C6: 2025-01-22 | E6: CV | F6: Média | G6: Mediana | K6: CV | L6: Média | M6: Mediana | V6: CV | W6: Média | X6: Mediana
A7: CODEVASF | E7: =_xlfn.STDEV.S(E10:H10)/AVERAGE(E10:H10) -> 0.09461804749 | F7: =AVERAGE(E10:H10) -> 200477 | G7: =MEDIAN(E10:H10) -> 205565.5 | K7: =_xlfn.STDEV.S(L9:S9)/AVERAGE(L9:S9) -> 0.2049193683 | L7: =AVERAGE(L9:S9) -> 34.54857143 | M7: =MEDIAN(L9:S9) -> 30.91 | V7: =_xlfn.STDEV.S(W9:AD9)/AVERAGE(W9:AD9) -> 0.1241023561 | W7: =AVERAGE(W9:AD9) -> 499.0190625 | X7: =MEDIAN(W9:AD9) -> 499.45
A8: OBS: Preço sem BDI e sem motorista BDI= | E8: Preço FIPE | J8: PRODUTO | K8: MENOR (MÉDIA, MEDIANA) | L8: COT. 1 | M8: COT. 2 | N8: COT. 3 | O8: COT. 4 | P8: COT. 5 | Q8: COT. 6 | R8: COT. 7 | S8: COT. 8 | U8: PRODUTO | V8: MENOR (MÉDIA, MEDIANA) | W8: COT. 1 | X8: COT. 2 | Y8: COT. 3 | Z8: COT. 4 | AA8: COT. 5 | AB8: COT. 6 | AC8: COT. 7 | AD8: COT. 8
A9: Veículo para fiscalização tipo pick-up, cabine dupla - 2.0 16V 4x4 diesel Aut. | E9: Toro Ultra 2.0 16V 4x4 TB Diesel Aut. | F9: Toro Freedom 2.0 16V 4x4 TB Diesel Aut. | G9: Toro Volcano 2.0 16V 4x4 TB Diesel Aut. | H9: Toro Ranch 2.0 16V 4x4 TB Diesel Aut. | J9: LUBRIFICANTE 5W30 | K9: =SMALL(L7:M7,1) -> 30.91 | L9: 33.33 | M9: 26.9 | N9: 30.9 | O9: 30.9 | P9: 30.91 | Q9: 46 | R9: 42.9 | U9: Pneu 225/65 R17 | V9: =SMALL(W7:X7,1) -> 499.0190625 | W9: 499 | X9: 479.9 | Y9: 565.25 | Z9: 393.38 | AA9: 449.9 | AB9: =2059.44/4 -> 514.86 | AC9: =2359.85/4 -> 589.9625 | AD9: 499.9
B10: Custo Mensal (R$): | C10: =C51 -> 10085.9735 | E10: 215525 | F10: 175252 | G10: 196485 | H10: 214646
B11: Custo Diária (R$): | C11: =C10/22 -> 458.4533408
B12: Custo Horário (R$): | C12: =C10/176 -> 57.3066676
A13: A | B13: Depreciação mensal do equipamento
A14: A1 | B14: Preço de Aquisição | C14: =SMALL(F7:G7,1) -> 200477
A15: A2 | B15: Tempo previsto de vida útil (meses) | C15: 36
A16: A3 | B16: Previsão de recup. Na venda do bem usado | C16: 0.7
A17: A4 | B17: Custo mensal [A1-(A3xA1)]/A2 | C17: =(C14-(C16*C14))/C15 -> 1670.641667
A18: B | B18: Juros pelo Capital empregado
A19: B1 | B19: Taxa mensal de Juros * | C19: =POWER(1+C56,1/12)-1 -> 0.01153145236
A20: B2 | B20: Juros s/depreciação/aluguel (B1xA4) | C20: =C19*C17 -> 19.26492479
A21: C | B21: Conservação e manutenção ** | C21: 0.75
A22: C1 | B22: Taxa de gastos s/a deprec. Inc. seguros (%) | C22: =C21 -> 0.75
A23: C2 | B23: Incidência mensal (C1xA4) | C23: =C22*C17 -> 1252.98125
A24: D | B24: Combustível | AF24: PREÇO DO DIESEL | AG24: 5.9
A25: D1 | B25: Média mensal de quilômetro por veículo | C25: ='Memorial de cálculo'!H5*2*22 -> 10824 | AF25: https://precos.petrobras.com.br/w/diesel/mg
A26: D2 | B26: Preço do litro de combustível | C26: =AG24 -> 5.9
A27: D3 | B27: Quilômetros rodados com um litro combustivel | C27: 10
A28: D4 | B28: Combustivel (D1/D3)*D2 | C28: =(C25/C27)*C26 -> 6386.16
A29: E | B29: Lubrificantes
A30: E1 | B30: Quilometragem do Contrato (D1*12) | C30: =C25*36 -> 389664
A31: E2 | B31: Franquia por troca de óleo (km) | C31: 10000
A32: E3 | B32: Preço do litro de óleo | C32: =K9 -> 30.91
A33: E4 | B33: Quantidade de litros de óleo por troca | C33: 5
A34: E5 | B34: Quantidade de dias do Contrato | C34: =365*3 -> 1095
A35: E6 | B35: Lubrificantes E = (E1*E3*E4*30)/E2*E5 | C35: =(C30*C32*C33*30)/(C31*C34) -> 164.9933458
A36: F | B36: Pneus
A37: F1 | B37: Quilometragem do Contrato | C37: =C30 -> 389664
A38: F2 | B38: Vida do Pneu em quilômetros | C38: 45000
A39: F3 | B39: Quantidade de pneus | C39: 5
A40: F4 | B40: Preço do Pneu | C40: =V9 -> 499.0190625
A41: F5 | B41: Quantidade de dias do contrato | C41: =C34 -> 1095
A42: F6 | B42: Pneus = (F1*F3*F4*30)/(F2*F5) | C42: =(C37*C39*C40*30)/(C38*C41) -> 591.9323104
A43: G | B43: Motorista
A44: G1 | B44: Salário com encargos sociais | C44: 0
A45: H | B45: Custo Mensal
B46: Sem Motorista (A4+B2+C2+D4+E6+F6) | C46: =C17+C20+C23+C28+C35+C42 -> 10085.9735
B47: Com Motorista (A4+B2+C2+D4+E6+F6+G1) | C47: =C17+C20+C23+C28+C35+C42+C44 -> 10085.9735
A48: I | B48: Custo Direto p/ km Rodado
B49: Sem Motorista | C49: =C46/C25 -> 0.9318157333
B50: Com Motorista | C50: =C47/C25 -> 0.9318157333
A51: J | B51: Preço cobrado sem BDI | C51: =C46*(1+C8) -> 10085.9735
A52: J1 | B52: Sem Motorista | C52: =C51 -> 10085.9735
A53: J2 | B53: Com Motorista | C53: =C47 -> 10085.9735 | I53: https://www.google.com/search?q=lubrificante+5w30+1l&sa=X&sca_esv=c77f5342bf7e367a&tbm=shop&ei=e0uKZ-DcDNKp5OUPkOKj6QY&ved=0ahUKEwighoOy3_yKAxXSFLkGHRDxKG0Q4dUDCAg&uact=5&oq=lubrificante+5w30+1l&gs_lp=Egtwcm9kdWN0cy1jYyIUbHVicmlmaWNhbnRlIDV3MzAgMWxIgQ9Q4AlY8Q1wAHgAkAEAmAFroAGgA6oBAzEuM7gBA8gBAPgBAZgCAqAC0gHCAgUQABiABMICBhAAGAcYHsICBhAAGAgYHsICBhAAGBYYHpgDAIgGAZIHAzEuMaAHxQU&sclient=products-cc | T53: https://www.google.com/search?q=pneu+225%2F65+R17&sa=X&biw=1600&bih=757&tbm=shop&sxsrf=AJOqlzWsb-d4PS1_OUOEhKmRc2RbtSg3RQ%3A1677092596279&ei=9Gb2Y9K5ENTa5OUPvLykGA&ved=0ahUKEwjSg9Pj6Kn9AhVULbkGHTweCQMQ4dUDCAg&uact=5&oq=pneu+225%2F65+R17&gs_lcp=Cgtwcm9kdWN0cy1jYxADMgsIABCABBCxAxCDATIFCAAQgAQyBwgAEIAEEAoyBwgAEIAEEAoyBwgAEIAEEAoyBwgAEIAEEAoyBwgAEIAEEAoyBQgAEIAEMgcIABCABBAKMgcIABCABBAKOgQIIxAnOgQIABBDSgQIQRgAUABYoTJgqUBoAHAAeACAAdIFiAGUKZIBDTAuMi42LjIuMi4yLjGYAQCgAQHAAQE&sclient=products-cc
B55: OBSERVAÇÕES:
A56: * | B56: Calculado com base na taxa SELIC JANEIRO/2025: | C56: 0.1475
B57: Taxa de Juros Selic — Português (Brasil) (www.gov.br)
A58: ** | B58: Conservação e manutenção - é calculado com o uso de um coeficiente multiplicador "k", conforme tabela abaixo, sobre a
B59: depreciação mensal do equipamento (Item A da planilha de composição de preços). Os valores de K são fornecidos por
B60: fabricantes.
B61: Metodologia conforme a bibliografia "Como Preparar Orçamentos de Obras", 3 edição, Aldo Dórea Mattos, 2019.

Sheet Comp SINAPI BA 04-2026 Onerado
A1: SINAPI - Sistema Nacional de Pesquisa de Custos e Índices da Construção Civil
A2: RELATÓRIO DE CUSTOS DE COMPOSIÇÕES - ENCARGOS SOCIAIS SEM DESONERAÇÃO
A3: Mês de Referência: | B3: 04/2026 | D3: Encargos sociais sobre a mão de obra:
A4: Data de emissão: | B4: 12/05/2026 | D4: (SEM DESONERAÇÃO) | E4: BA
D5: Localidade | E5: SALVADOR
A6: Observação: | B6: %AS (porcentagem Atribuído São Paulo) corresponde a porcentagem do custo total da | D6: Horista | E6: 1.1773
B7: composição que foi obtida utilizando preços de insumos de São Paulo por indisponibilidade | D7: Mensalista | E7: 0.7285
B8: dos preços de insumos necessários à composição no estado em questão. Custo zerado (hífen)
B9: indica que pelo menos um dos itens da composição não tem custo/preço. | E9: BA
A10: Grupo | B10: Código da Composição | C10: Descrição | D10: Unidade | E10: Custo (R$) | F10: %AS
A11: Acessibilidade | B11: 104658 | C11: PISO PODOTÁTIL DE ALERTA OU DIRECIONAL, DE CONCRETO, ASSENTADO SOBRE ARGAMASSA. AF_03/2024 | D11: M2 | E11: 167.78 | F11: 0
A12: Acessibilidade | B12: 105002 | C12: RAMPA DE ACESSIBILIDADE EM CONCRETO MOLDADO IN LOCO, EM CALÇADA NOVA COM LARGURA MAIOR OU IGUAL À 3,00 M, FCK 25MPA, COM PISO PODOTÁTIL. AF_03/2024 | D12: UN | E12: 893.41 | F12: 0
A13: Acessibilidade | B13: 105004 | C13: RAMPA DE ACESSIBILIDADE EM CONCRETO MOLDADO IN LOCO, EM CALÇADA NOVA COM LARGURA MENOR À 3,00 M, FCK 25MPA, COM PISO PODOTÁTIL. AF_03/2024 | D13: M2 | E13: 153.47 | F13: 0
A14: Acessibilidade | B14: 105003 | C14: RAMPA DE ACESSIBILIDADE EM CONCRETO MOLDADO IN LOCO, EM CALÇADA PRÉ EXISTENTE COM LARGURA MAIOR OU IGUAL À 3,00 M, FCK 25MPA, COM PISO PODOTÁTIL. AF_03/2024 | D14: UN | E14: 1457.37 | F14: 0.0435
A15: Acessibilidade | B15: 105005 | C15: RAMPA DE ACESSIBILIDADE EM CONCRETO MOLDADO IN LOCO, EM CALÇADA PRÉ EXISTENTE COM LARGURA MENOR À 3,00 M, FCK 25MPA, COM PISO PODOTÁTIL. AF_03/2024 | D15: M2 | E15: 257.89 | F15: 0.0455
A16: Acessibilidade | B16: 105006 | C16: RAMPA DE ACESSIBILIDADE EM CONCRETO PRÉ MOLDADO, EM CALÇADA NOVA COM LARGURA MAIOR OU IGUAL À 3,00 M, FCK 25MPA, COM PISO PODOTÁTIL. AF_03/2024 | D16: UN | E16: 0
A17: Acessibilidade | B17: 104999 | C17: RAMPA DE ACESSIBILIDADE EM CONCRETO PRÉ MOLDADO, EM CALÇADA PRÉ EXISTENTE COM LARGURA MAIOR OU IGUAL À 3,00 M, FCK 25MPA, COM PISO PODOTÁTIL. AF_03/2024 | D17: UN | E17: 0
A18: Acessibilidade | B18: 105000 | C18: RAMPA DE ACESSIBILIDADE PARA ACESSO A EDIFICAÇÕES COM INCLINAÇÃO DE 8,33% EM CONCRETO MOLDADO IN LOCO, COM LARGURA DE 1,20M, FCK 25MPA, NÃO ARMADA, COM JUNTA A CADA 2M COM CORTE À SECO. AF_03/2024 | D18: M | E18: 1408.79 | F18: 0
A19: Acessibilidade | B19: 105001 | C19: RAMPA DE ACESSIBILIDADE PARA ACESSO A EDIFICAÇÕES COM INCLINAÇÃO DE 8,33% EM CONCRETO MOLDADO IN LOCO, COM LARGURA DE 1,50M, FCK 25MPA, NÃO ARMADA, COM JUNTA A CADA 2M COM CORTE À SECO. AF_03/2024 | D19: M | E19: 1447.15 | F19: 0
A20: Alvenaria Estrutural - Blocos Cerâmicos | B20: 89306 | C20: ALVENARIA ESTRUTURAL DE BLOCOS CERÂMICOS 14X19X29, (ESPESSURA DE 14 CM), UTILIZANDO COLHER DE PEDREIRO E ARGAMASSA DE ASSENTAMENTO COM PREPARO EM BETONEIRA. AF_03/2023 | D20: M2 | E20: 117.84 | F20: 0
A21: Alvenaria Estrutural - Blocos Cerâmicos | B21: 89307 | C21: ALVENARIA ESTRUTURAL DE BLOCOS CERÂMICOS 14X19X29, (ESPESSURA DE 14 CM), UTILIZANDO COLHER DE PEDREIRO E ARGAMASSA DE ASSENTAMENTO COM PREPARO MANUAL. AF_03/2023 | D21: M2 | E21: 118.95 | F21: 0
A22: Alvenaria Estrutural - Blocos Cerâmicos | B22: 89290 | C22: ALVENARIA ESTRUTURAL DE BLOCOS CERÂMICOS 14X19X29, (ESPESSURA DE 14 CM), UTILIZANDO PALHETA E ARGAMASSA DE ASSENTAMENTO COM PREPARO EM BETONEIRA. AF_03/2023 | D22: M2 | E22: 96.96 | F22: 0
A23: Alvenaria Estrutural - Blocos Cerâmicos | B23: 89291 | C23: ALVENARIA ESTRUTURAL DE BLOCOS CERÂMICOS 14X19X29, (ESPESSURA DE 14 CM), UTILIZANDO PALHETA E ARGAMASSA DE ASSENTAMENTO COM PREPARO MANUAL. AF_03/2023 | D23: M2 | E23: 97.79 | F23: 0
A24: Alvenaria Estrutural - Blocos Cerâmicos | B24: 89298 | C24: ALVENARIA ESTRUTURAL DE BLOCOS CERÂMICOS 14X19X39, (ESPESSURA DE 14 CM), UTILIZANDO COLHER DE PEDREIRO E ARGAMASSA DE ASSENTAMENTO COM PREPARO EM BETONEIRA. AF_03/2023 | D24: M2 | E24: 101.55 | F24: 0
A25: Alvenaria Estrutural - Blocos Cerâmicos | B25: 89299 | C25: ALVENARIA ESTRUTURAL DE BLOCOS CERÂMICOS 14X19X39, (ESPESSURA DE 14 CM), UTILIZANDO COLHER DE PEDREIRO E ARGAMASSA DE ASSENTAMENTO COM PREPARO MANUAL. AF_03/2023 | D25: M2 | E25: 102.55 | F25: 0
A26: Alvenaria Estrutural - Blocos Cerâmicos | B26: 89282 | C26: ALVENARIA ESTRUTURAL DE BLOCOS CERÂMICOS 14X19X39, (ESPESSURA DE 14 CM), UTILIZANDO PALHETA E ARGAMASSA DE ASSENTAMENTO COM PREPARO EM BETONEIRA. AF_03/2023 | D26: M2 | E26: 86.69 | F26: 0
A27: Alvenaria Estrutural - Blocos Cerâmicos | B27: 89283 | C27: ALVENARIA ESTRUTURAL DE BLOCOS CERÂMICOS 14X19X39, (ESPESSURA DE 14 CM), UTILIZANDO PALHETA E ARGAMASSA DE ASSENTAMENTO COM PREPARO MANUAL. AF_03/2023 | D27: M2 | E27: 87.44 | F27: 0
A28: Alvenaria Estrutural - Blocos de Concreto | B28: 89480 | C28: ALVENARIA DE BLOCOS DE CONCRETO ESTRUTURAL 14X19X29 CM (ESPESSURA 14 CM), FBK = 14 MPA, UTILIZANDO COLHER DE PEDREIRO. AF_10/2022 | D28: M2 | E28: 164.63 | F28: 0
A29: Alvenaria Estrutural - Blocos de Concreto | B29: 89464 | C29: ALVENARIA DE BLOCOS DE CONCRETO ESTRUTURAL 14X19X29 CM (ESPESSURA 14 CM), FBK = 14,0 MPA, UTILIZANDO PALHETA. AF_10/2022 | D29: M2 | E29: 139.13 | F29: 0
A30: Alvenaria Estrutural - Blocos de Concreto | B30: 89478 | C30: ALVENARIA DE BLOCOS DE CONCRETO ESTRUTURAL 14X19X29 CM (ESPESSURA 14 CM), FBK = 4,5 MPA, UTILIZANDO COLHER DE PEDREIRO. AF_10/2022 | D30: M2 | E30: 144.15 | F30: 0
A31: Alvenaria Estrutural - Blocos de Concreto | B31: 89462 | C31: ALVENARIA DE BLOCOS DE CONCRETO ESTRUTURAL 14X19X29 CM (ESPESSURA 14 CM), FBK = 4,5 MPA, UTILIZANDO PALHETA. AF_10/2022 | D31: M2 | E31: 119.88 | F31: 0
A32: Alvenaria Estrutural - Blocos de Concreto | B32: 104444 | C32: ALVENARIA DE BLOCOS DE CONCRETO ESTRUTURAL 14X19X29 CM (ESPESSURA 14 CM), FBK = 8 MPA, UTILIZANDO COLHER DE PEDREIRO. AF_10/2022 | D32: M2 | E32: 0
A33: Alvenaria Estrutural - Blocos de Concreto | B33: 104442 | C33: ALVENARIA DE BLOCOS DE CONCRETO ESTRUTURAL 14X19X29 CM (ESPESSURA 14 CM), FBK = 8 MPA, UTILIZANDO PALHETA. AF_10/2022 | D33: M2 | E33: 0
A34: Alvenaria Estrutural - Blocos de Concreto | B34: 89472 | C34: ALVENARIA DE BLOCOS DE CONCRETO ESTRUTURAL 14X19X39 CM (ESPESSURA 14 CM), FBK = 14 MPA, UTILIZANDO COLHER DE PEDREIRO. AF_10/2022 | D34: M2 | E34: 123.29 | F34: 0
A35: Alvenaria Estrutural - Blocos de Concreto | B35: 89455 | C35: ALVENARIA DE BLOCOS DE CONCRETO ESTRUTURAL 14X19X39 CM (ESPESSURA 14 CM), FBK = 14 MPA, UTILIZANDO PALHETA. AF_10/2022 | D35: M2 | E35: 107.02 | F35: 0
A36: Alvenaria Estrutural - Blocos de Concreto | B36: 89470 | C36: ALVENARIA DE BLOCOS DE CONCRETO ESTRUTURAL 14X19X39 CM (ESPESSURA 14 CM), FBK = 4,5 MPA, UTILIZANDO COLHER DE PEDREIRO. AF_10/2022 | D36: M2 | E36: 104.73 | F36: 0
A37: Alvenaria Estrutural - Blocos de Concreto | B37: 89453 | C37: ALVENARIA DE BLOCOS DE CONCRETO ESTRUTURAL 14X19X39 CM (ESPESSURA 14 CM), FBK = 4,5 MPA, UTILIZANDO PALHETA. AF_10/2022 | D37: M2 | E37: 89.71 | F37: 0
A38: Alvenaria Estrutural - Blocos de Concreto | B38: 104443 | C38: ALVENARIA DE BLOCOS DE CONCRETO ESTRUTURAL 14X19X39 CM (ESPESSURA 14 CM), FBK = 8 MPA, UTILIZANDO COLHER DE PEDREIRO. AF_10/2022 | D38: M2 | E38: 0
A39: Alvenaria Estrutural - Blocos de Concreto | B39: 104441 | C39: ALVENARIA DE BLOCOS DE CONCRETO ESTRUTURAL 14X19X39 CM (ESPESSURA 14 CM), FBK = 8 MPA, UTILIZANDO PALHETA. AF_10/2022 | D39: M2 | E39: 0
A40: Alvenaria de Vedação | B40: 103354 | C40: ALVENARIA DE VEDAÇÃO DE BLOCOS CERÂMICOS FURADOS NA HORIZONTAL DE 11,5X14X24 CM (ESPESSURA 11,5 CM) E ARGAMASSA DE ASSENTAMENTO COM PREPARO EM BETONEIRA. AF_12/2021 | D40: M2 | E40: 108.04 | F40: 0
A41: Alvenaria de Vedação | B41: 103355 | C41: ALVENARIA DE VEDAÇÃO DE BLOCOS CERÂMICOS FURADOS NA HORIZONTAL DE 11,5X14X24 CM (ESPESSURA 11,5 CM) E ARGAMASSA DE ASSENTAMENTO COM PREPARO MANUAL. AF_12/2021 | D41: M2 | E41: 108.85 | F41: 0
A42: Alvenaria de Vedação | B42: 103330 | C42: ALVENARIA DE VEDAÇÃO DE BLOCOS CERÂMICOS FURADOS NA HORIZONTAL DE 11,5X19X19 CM (ESPESSURA 11,5 CM) E ARGAMASSA DE ASSENTAMENTO COM PREPARO EM BETONEIRA. AF_12/2021 | D42: M2 | E42: 99.94 | F42: 0
A43: Alvenaria de Vedação | B43: 103331 | C43: ALVENARIA DE VEDAÇÃO DE BLOCOS CERÂMICOS FURADOS NA HORIZONTAL DE 11,5X19X19 CM (ESPESSURA 11,5 CM) E ARGAMASSA DE ASSENTAMENTO COM PREPARO MANUAL. AF_12/2021 | D43: M2 | E43: 100.7 | F43: 0
A44: Alvenaria de Vedação | B44: 103358 | C44: ALVENARIA DE VEDAÇÃO DE BLOCOS CERÂMICOS FURADOS NA HORIZONTAL DE 11,5X19X29 CM (ESPESSURA 11,5 CM) E ARGAMASSA DE ASSENTAMENTO COM PREPARO EM BETONEIRA. AF_12/2021 | D44: M2 | E44: 84.26 | F44: 0
A45: Alvenaria de Vedação | B45: 103359 | C45: ALVENARIA DE VEDAÇÃO DE BLOCOS CERÂMICOS FURADOS NA HORIZONTAL DE 11,5X19X29 CM (ESPESSURA 11,5 CM) E ARGAMASSA DE ASSENTAMENTO COM PREPARO MANUAL. AF_12/2021 | D45: M2 | E45: 84.9 | F45: 0
A46: Alvenaria de Vedação | B46: 103366 | C46: ALVENARIA DE VEDAÇÃO DE BLOCOS CERÂMICOS FURADOS NA HORIZONTAL DE 11,5X19X39 CM (ESPESSURA 11,5 CM) E ARGAMASSA DE ASSENTAMENTO COM PREPARO EM BETONEIRA. AF_12/2021 | D46: M2 | E46: 73.47 | F46: 0
A47: Alvenaria de Vedação | B47: 103367 | C47: ALVENARIA DE VEDAÇÃO DE BLOCOS CERÂMICOS FURADOS NA HORIZONTAL DE 11,5X19X39 CM (ESPESSURA 11,5 CM) E ARGAMASSA DE ASSENTAMENTO COM PREPARO MANUAL. AF_12/2021 | D47: M2 | E47: 74.05 | F47: 0
A48: Alvenaria de Vedação | B48: 103360 | C48: ALVENARIA DE VEDAÇÃO DE BLOCOS CERÂMICOS FURADOS NA HORIZONTAL DE 14X19X29 CM (ESPESSURA 14 CM) E ARGAMASSA DE ASSENTAMENTO COM PREPARO EM BETONEIRA. AF_12/2021 | D48: M2 | E48: 98.5 | F48: 0
A49: Alvenaria de Vedação | B49: 103361 | C49: ALVENARIA DE VEDAÇÃO DE BLOCOS CERÂMICOS FURADOS NA HORIZONTAL DE 14X19X29 CM (ESPESSURA 14 CM) E ARGAMASSA DE ASSENTAMENTO COM PREPARO MANUAL. AF_12/2021 | D49: M2 | E49: 99.31 | F49: 0
A50: Alvenaria de Vedação | B50: 103368 | C50: ALVENARIA DE VEDAÇÃO DE BLOCOS CERÂMICOS FURADOS NA HORIZONTAL DE 14X19X39 CM (ESPESSURA 14 CM) E ARGAMASSA DE ASSENTAMENTO COM PREPARO EM BETONEIRA. AF_12/2021 | D50: M2 | E50: 83.32 | F50: 0
A51: Alvenaria de Vedação | B51: 103369 | C51: ALVENARIA DE VEDAÇÃO DE BLOCOS CERÂMICOS FURADOS NA HORIZONTAL DE 14X19X39 CM (ESPESSURA 14 CM) E ARGAMASSA DE ASSENTAMENTO COM PREPARO MANUAL. AF_12/2021 | D51: M2 | E51: 84.06 | F51: 0
A52: Alvenaria de Vedação | B52: 103334 | C52: ALVENARIA DE VEDAÇÃO DE BLOCOS CERÂMICOS FURADOS NA HORIZONTAL DE 14X9X19 CM (ESPESSURA 14 CM, BLOCO DEITADO) E ARGAMASSA DE ASSENTAMENTO COM PREPARO EM BETONEIRA. AF_12/2021 | D52: M2 | E52: 175.94 | F52: 0
A53: Alvenaria de Vedação | B53: 103335 | C53: ALVENARIA DE VEDAÇÃO DE BLOCOS CERÂMICOS FURADOS NA HORIZONTAL DE 14X9X19 CM (ESPESSURA 14 CM, BLOCO DEITADO) E ARGAMASSA DE ASSENTAMENTO COM PREPARO MANUAL. AF_12/2021 | D53: M2 | E53: 177.36 | F53: 0
A54: Alvenaria de Vedação | B54: 103362 | C54: ALVENARIA DE VEDAÇÃO DE BLOCOS CERÂMICOS FURADOS NA HORIZONTAL DE 19X19X29 CM (ESPESSURA 19 CM) E ARGAMASSA DE ASSENTAMENTO COM PREPARO EM BETONEIRA. AF_12/2021 | D54: M2 | E54: 119.05 | F54: 0
A55: Alvenaria de Vedação | B55: 103363 | C55: ALVENARIA DE VEDAÇÃO DE BLOCOS CERÂMICOS FURADOS NA HORIZONTAL DE 19X19X29 CM (ESPESSURA 19 CM) E ARGAMASSA DE ASSENTAMENTO COM PREPARO MANUAL. AF_12/2021 | D55: M2 | E55: 119.96 | F55: 0
A56: Alvenaria de Vedação | B56: 103370 | C56: ALVENARIA DE VEDAÇÃO DE BLOCOS CERÂMICOS FURADOS NA HORIZONTAL DE 19X19X39 CM (ESPESSURA 19 CM) E ARGAMASSA DE ASSENTAMENTO COM PREPARO EM BETONEIRA. AF_12/2021 | D56: M2 | E56: 104.69 | F56: 0
A57: Alvenaria de Vedação | B57: 103371 | C57: ALVENARIA DE VEDAÇÃO DE BLOCOS CERÂMICOS FURADOS NA HORIZONTAL DE 19X19X39 CM (ESPESSURA 19 CM) E ARGAMASSA DE ASSENTAMENTO COM PREPARO MANUAL. AF_12/2021 | D57: M2 | E57: 105.52 | F57: 0
A58: Alvenaria de Vedação | B58: 103332 | C58: ALVENARIA DE VEDAÇÃO DE BLOCOS CERÂMICOS FURADOS NA HORIZONTAL DE 9X14X19 CM (ESPESSURA 9 CM) E ARGAMASSA DE ASSENTAMENTO COM PREPARO EM BETONEIRA. AF_12/2021 | D58: M2 | E58: 146.81 | F58: 0
A59: Alvenaria de Vedação | B59: 103333 | C59: ALVENARIA DE VEDAÇÃO DE BLOCOS CERÂMICOS FURADOS NA HORIZONTAL DE 9X14X19 CM (ESPESSURA 9 CM) E ARGAMASSA DE ASSENTAMENTO COM PREPARO MANUAL. AF_12/2021 | D59: M2 | E59: 147.62 | F59: 0
A60: Alvenaria de Vedação | B60: 103352 | C60: ALVENARIA DE VEDAÇÃO DE BLOCOS CERÂMICOS FURADOS NA HORIZONTAL DE 9X14X24 CM (ESPESSURA 9 CM) E ARGAMASSA DE ASSENTAMENTO COM PREPARO EM BETONEIRA. AF_12/2021 | D60: M2 | E60: 125.66 | F60: 0
A61: Alvenaria de Vedação | B61: 103353 | C61: ALVENARIA DE VEDAÇÃO DE BLOCOS CERÂMICOS FURADOS NA HORIZONTAL DE 9X14X24 CM (ESPESSURA 9 CM) E ARGAMASSA DE ASSENTAMENTO COM PREPARO MANUAL. AF_12/2021 | D61: M2 | E61: 126.41 | F61: 0
A62: Alvenaria de Vedação | B62: 103328 | C62: ALVENARIA DE VEDAÇÃO DE BLOCOS CERÂMICOS FURADOS NA HORIZONTAL DE 9X19X19 CM (ESPESSURA 9 CM) E ARGAMASSA DE ASSENTAMENTO COM PREPARO EM BETONEIRA. AF_12/2021 | D62: M2 | E62: 114.83 | F62: 0
A63: Alvenaria de Vedação | B63: 103329 | C63: ALVENARIA DE VEDAÇÃO DE BLOCOS CERÂMICOS FURADOS NA HORIZONTAL DE 9X19X19 CM (ESPESSURA 9 CM) E ARGAMASSA DE ASSENTAMENTO COM PREPARO MANUAL. AF_12/2021 | D63: M2 | E63: 115.54 | F63: 0
A64: Alvenaria de Vedação | B64: 103356 | C64: ALVENARIA DE VEDAÇÃO DE BLOCOS CERÂMICOS FURADOS NA HORIZONTAL DE 9X19X29 CM (ESPESSURA 9 CM) E ARGAMASSA DE ASSENTAMENTO COM PREPARO EM BETONEIRA. AF_12/2021 | D64: M2 | E64: 73.53 | F64: 0
A65: Alvenaria de Vedação | B65: 103357 | C65: ALVENARIA DE VEDAÇÃO DE BLOCOS CERÂMICOS FURADOS NA HORIZONTAL DE 9X19X29 CM (ESPESSURA 9 CM) E ARGAMASSA DE ASSENTAMENTO COM PREPARO MANUAL. AF_12/2021 | D65: M2 | E65: 74.13 | F65: 0
A66: Alvenaria de Vedação | B66: 103364 | C66: ALVENARIA DE VEDAÇÃO DE BLOCOS CERÂMICOS FURADOS NA HORIZONTAL DE 9X19X39 CM (ESPESSURA 9 CM) E ARGAMASSA DE ASSENTAMENTO COM PREPARO EM BETONEIRA. AF_12/2021 | D66: M2 | E66: 61.3 | F66: 0
A67: Alvenaria de Vedação | B67: 103365 | C67: ALVENARIA DE VEDAÇÃO DE BLOCOS CERÂMICOS FURADOS NA HORIZONTAL DE 9X19X39 CM (ESPESSURA 9 CM) E ARGAMASSA DE ASSENTAMENTO COM PREPARO MANUAL. AF_12/2021 | D67: M2 | E67: 61.51 | F67: 0
A68: Alvenaria de Vedação | B68: 103350 | C68: ALVENARIA DE VEDAÇÃO DE BLOCOS CERÂMICOS FURADOS NA HORIZONTAL DE 9X9X19 CM (ESPESSURA 9 CM) E ARGAMASSA DE ASSENTAMENTO COM PREPARO EM BETONEIRA. AF_12/2021 | D68: M2 | E68: 212.77 | F68: 0
A69: Alvenaria de Vedação | B69: 103351 | C69: ALVENARIA DE VEDAÇÃO DE BLOCOS CERÂMICOS FURADOS NA HORIZONTAL DE 9X9X19 CM (ESPESSURA 9 CM) E ARGAMASSA DE ASSENTAMENTO COM PREPARO MANUAL. AF_12/2021 | D69: M2 | E69: 213.81 | F69: 0
A70: Alvenaria de Vedação | B70: 103344 | C70: ALVENARIA DE VEDAÇÃO DE BLOCOS CERÂMICOS FURADOS NA VERTICAL DE 11,5X19X29 CM (ESPESSURA 11,5 CM) E ARGAMASSA DE ASSENTAMENTO COM PREPARO EM BETONEIRA. AF_12/2021 | D70: M2 | E70: 99.6 | F70: 0
A71: Alvenaria de Vedação | B71: 103345 | C71: ALVENARIA DE VEDAÇÃO DE BLOCOS CERÂMICOS FURADOS NA VERTICAL DE 11,5X19X29 CM (ESPESSURA 11,5 CM) E ARGAMASSA DE ASSENTAMENTO COM PREPARO MANUAL. AF_12/2021 | D71: M2 | E71: 100.55 | F71: 0
A72: Alvenaria de Vedação | B72: 103348 | C72: ALVENARIA DE VEDAÇÃO DE BLOCOS CERÂMICOS FURADOS NA VERTICAL DE 11,5X19X39 CM (ESPESSURA 11,5 CM) E ARGAMASSA DE ASSENTAMENTO COM PREPARO EM BETONEIRA. AF_12/2021 | D72: M2 | E72: 83.9 | F72: 0
A73: Alvenaria de Vedação | B73: 103349 | C73: ALVENARIA DE VEDAÇÃO DE BLOCOS CERÂMICOS FURADOS NA VERTICAL DE 11,5X19X39 CM (ESPESSURA 11,5 CM) E ARGAMASSA DE ASSENTAMENTO COM PREPARO MANUAL. AF_12/2021 | D73: M2 | E73: 84.76 | F73: 0
A74: Alvenaria de Vedação | B74: 103346 | C74: ALVENARIA DE VEDAÇÃO DE BLOCOS CERÂMICOS FURADOS NA VERTICAL DE 14X19X29 CM (ESPESSURA 14 CM) E ARGAMASSA DE ASSENTAMENTO COM PREPARO EM BETONEIRA. AF_12/2021 | D74: M2 | E74: 110.49 | F74: 0
A75: Alvenaria de Vedação | B75: 103347 | C75: ALVENARIA DE VEDAÇÃO DE BLOCOS CERÂMICOS FURADOS NA VERTICAL DE 14X19X29 CM (ESPESSURA 14 CM) E ARGAMASSA DE ASSENTAMENTO COM PREPARO MANUAL. AF_12/2021 | D75: M2 | E75: 111.5 | F75: 0
A76: Alvenaria de Vedação | B76: 103324 | C76: ALVENARIA DE VEDAÇÃO DE BLOCOS CERÂMICOS FURADOS NA VERTICAL DE 14X19X39 CM (ESPESSURA 14 CM) E ARGAMASSA DE ASSENTAMENTO COM PREPARO EM BETONEIRA. AF_12/2021 | D76: M2 | E76: 94.85 | F76: 0
A77: Alvenaria de Vedação | B77: 103325 | C77: ALVENARIA DE VEDAÇÃO DE BLOCOS CERÂMICOS FURADOS NA VERTICAL DE 14X19X39 CM (ESPESSURA 14 CM) E ARGAMASSA DE ASSENTAMENTO COM PREPARO MANUAL. AF_12/2021 | D77: M2 | E77: 95.76 | F77: 0
A78: Alvenaria de Vedação | B78: 103326 | C78: ALVENARIA DE VEDAÇÃO DE BLOCOS CERÂMICOS FURADOS NA VERTICAL DE 19X19X39 CM (ESPESSURA 19 CM) E ARGAMASSA DE ASSENTAMENTO COM PREPARO EM BETONEIRA. AF_12/2021 | D78: M2 | E78: 111.38 | F78: 0
A79: Alvenaria de Vedação | B79: 103327 | C79: ALVENARIA DE VEDAÇÃO DE BLOCOS CERÂMICOS FURADOS NA VERTICAL DE 19X19X39 CM (ESPESSURA 19 CM) E ARGAMASSA DE ASSENTAMENTO COM PREPARO MANUAL. AF_12/2021 | D79: M2 | E79: 112.45 | F79: 0
A80: Alvenaria de Vedação | B80: 103322 | C80: ALVENARIA DE VEDAÇÃO DE BLOCOS CERÂMICOS FURADOS NA VERTICAL DE 9X19X39 CM (ESPESSURA 9 CM) E ARGAMASSA DE ASSENTAMENTO COM PREPARO EM BETONEIRA. AF_12/2021 | D80: M2 | E80: 71.21 | F80: 0
A81: Alvenaria de Vedação | B81: 103323 | C81: ALVENARIA DE VEDAÇÃO DE BLOCOS CERÂMICOS FURADOS NA VERTICAL DE 9X19X39 CM (ESPESSURA 9 CM) E ARGAMASSA DE ASSENTAMENTO COM PREPARO MANUAL. AF_12/2021 | D81: M2 | E81: 72.02 | F81: 0
A82: Alvenaria de Vedação | B82: 103338 | C82: ALVENARIA DE VEDAÇÃO DE BLOCOS VAZADOS DE CONCRETO APARENTE DE 14X19X39 CM (ESPESSURA 14 CM) E ARGAMASSA DE ASSENTAMENTO COM PREPARO EM BETONEIRA. AF_12/2021 | D82: M2 | E82: 122.7 | F82: 0
A83: Alvenaria de Vedação | B83: 103339 | C83: ALVENARIA DE VEDAÇÃO DE BLOCOS VAZADOS DE CONCRETO APARENTE DE 14X19X39 CM (ESPESSURA 14 CM) E ARGAMASSA DE ASSENTAMENTO COM PREPARO MANUAL. AF_12/2021 | D83: M2 | E83: 123.49 | F83: 0
A84: Alvenaria de Vedação | B84: 103340 | C84: ALVENARIA DE VEDAÇÃO DE BLOCOS VAZADOS DE CONCRETO APARENTE DE 19X19X39 CM (ESPESSURA 19 CM) E ARGAMASSA DE ASSENTAMENTO COM PREPARO EM BETONEIRA. AF_12/2021 | D84: M2 | E84: 147.15 | F84: 0
A85: Alvenaria de Vedação | B85: 103341 | C85: ALVENARIA DE VEDAÇÃO DE BLOCOS VAZADOS DE CONCRETO APARENTE DE 19X19X39 CM (ESPESSURA 19 CM) E ARGAMASSA DE ASSENTAMENTO COM PREPARO MANUAL. AF_12/2021 | D85: M2 | E85: 148.15 | F85: 0
A86: Alvenaria de Vedação | B86: 103336 | C86: ALVENARIA DE VEDAÇÃO DE BLOCOS VAZADOS DE CONCRETO APARENTE DE 9X19X39 CM (ESPESSURA 9 CM) E ARGAMASSA DE ASSENTAMENTO COM PREPARO EM BETONEIRA. AF_12/2021 | D86: M2 | E86: 93.02 | F86: 0
A87: Alvenaria de Vedação | B87: 103337 | C87: ALVENARIA DE VEDAÇÃO DE BLOCOS VAZADOS DE CONCRETO APARENTE DE 9X19X39 CM (ESPESSURA 9 CM) E ARGAMASSA DE ASSENTAMENTO COM PREPARO MANUAL. AF_12/2021 | D87: M2 | E87: 93.7 | F87: 0
A88: Alvenaria de Vedação | B88: 103342 | C88: ALVENARIA DE VEDAÇÃO DE BLOCOS VAZADOS DE CONCRETO DE 14X19X29 CM (ESPESSURA 14 CM) E ARGAMASSA DE ASSENTAMENTO COM PREPARO EM BETONEIRA. AF_12/2021 | D88: M2 | E88: 123.34 | F88: 0
A89: Alvenaria de Vedação | B89: 103343 | C89: ALVENARIA DE VEDAÇÃO DE BLOCOS VAZADOS DE CONCRETO DE 14X19X29 CM (ESPESSURA 14 CM) E ARGAMASSA DE ASSENTAMENTO COM PREPARO MANUAL. AF_12/2021 | D89: M2 | E89: 124.22 | F89: 0
A90: Alvenaria de Vedação | B90: 103318 | C90: ALVENARIA DE VEDAÇÃO DE BLOCOS VAZADOS DE CONCRETO DE 14X19X39 CM (ESPESSURA 14 CM) E ARGAMASSA DE ASSENTAMENTO COM PREPARO EM BETONEIRA. AF_12/2021 | D90: M2 | E90: 106.15 | F90: 0
A91: Alvenaria de Vedação | B91: 103319 | C91: ALVENARIA DE VEDAÇÃO DE BLOCOS VAZADOS DE CONCRETO DE 14X19X39 CM (ESPESSURA 14 CM) E ARGAMASSA DE ASSENTAMENTO COM PREPARO MANUAL. AF_12/2021 | D91: M2 | E91: 106.94 | F91: 0
A92: Alvenaria de Vedação | B92: 103320 | C92: ALVENARIA DE VEDAÇÃO DE BLOCOS VAZADOS DE CONCRETO DE 19X19X39 CM (ESPESSURA 19 CM) E ARGAMASSA DE ASSENTAMENTO COM PREPARO EM BETONEIRA. AF_12/2021 | D92: M2 | E92: 126.73 | F92: 0
A93: Alvenaria de Vedação | B93: 103321 | C93: ALVENARIA DE VEDAÇÃO DE BLOCOS VAZADOS DE CONCRETO DE 19X19X39 CM (ESPESSURA 19 CM) E ARGAMASSA DE ASSENTAMENTO COM PREPARO MANUAL. AF_12/2021 | D93: M2 | E93: 127.73 | F93: 0
A94: Alvenaria de Vedação | B94: 103316 | C94: ALVENARIA DE VEDAÇÃO DE BLOCOS VAZADOS DE CONCRETO DE 9X19X39 CM (ESPESSURA 9 CM) E ARGAMASSA DE ASSENTAMENTO COM PREPARO EM BETONEIRA. AF_12/2021 | D94: M2 | E94: 81.6 | F94: 0
A95: Alvenaria de Vedação | B95: 103317 | C95: ALVENARIA DE VEDAÇÃO DE BLOCOS VAZADOS DE CONCRETO DE 9X19X39 CM (ESPESSURA 9 CM) E ARGAMASSA DE ASSENTAMENTO COM PREPARO MANUAL. AF_12/2021 | D95: M2 | E95: 82.28 | F95: 0
A96: Alvenarias Diversas | B96: 101166 | C96: ALVENARIA DE EMBASAMENTO COM BLOCO ESTRUTURAL DE CERÂMICA, DE 14X19X29CM E ARGAMASSA DE ASSENTAMENTO COM PREPARO EM BETONEIRA. AF_05/2020 | D96: M3 | E96: 810.2 | F96: 0
A97: Alvenarias Diversas | B97: 101165 | C97: ALVENARIA DE EMBASAMENTO COM BLOCO ESTRUTURAL DE CONCRETO, DE 14X19X29CM E ARGAMASSA DE ASSENTAMENTO COM PREPARO EM BETONEIRA. AF_05/2020 | D97: M3 | E97: 1067.79 | F97: 0
A98: Alvenarias Diversas | B98: 101163 | C98: ALVENARIA DE VEDAÇÃO COM BLOCO DE VIDRO VAZADO, TIPO VENEZIANA, DE 6X20X20CM E ARGAMASSA DE ASSENTAMENTO COM PREPARO EM BETONEIRA. AF_05/2020 | D98: M2 | E98: 973.91 | F98: 0
A99: Alvenarias Diversas | B99: 101164 | C99: ALVENARIA DE VEDAÇÃO COM BLOCO DE VIDRO, TIPO CANELADO, DE 8X19X19CM E ARGAMASSA DE ASSENTAMENTO COM PREPARO EM BETONEIRA. AF_05/2020 | D99: M2 | E99: 988.98 | F99: 0
A100: Alvenarias Diversas | B100: 101162 | C100: ALVENARIA DE VEDAÇÃO COM ELEMENTO VAZADO DE CERÂMICA (COBOGÓ) DE 7X20X20CM E ARGAMASSA DE ASSENTAMENTO COM PREPARO EM BETONEIRA. AF_05/2020 | D100: M2 | E100: 188.55 | F100: 0
A101: Alvenarias Diversas | B101: 101161 | C101: ALVENARIA DE VEDAÇÃO COM ELEMENTO VAZADO DE CONCRETO (COBOGÓ) DE 7X50X50CM E ARGAMASSA DE ASSENTAMENTO COM PREPARO EM BETONEIRA. AF_05/2020 | D101: M2 | E101: 235.27 | F101: 0
A102: Alvenarias Diversas | B102: 101160 | C102: ALVENARIA DE VEDAÇÃO DE BLOCO DE SOLO-CIMENTO (TIJOLO ECOLÓGICO) DE 7X15X30CM (ESPESSURA 15CM). AF_05/2020 | D102: M2 | E102: 0
A103: Alvenarias Diversas | B103: 101159 | C103: ALVENARIA DE VEDAÇÃO DE BLOCOS CERÂMICOS MACIÇOS DE 5X10X20CM (ESPESSURA 10CM) E ARGAMASSA DE ASSENTAMENTO COM PREPARO EM BETONEIRA. AF_05/2020 | D103: M2 | E103: 166.78 | F103: 0
A104: Alvenarias Diversas | B104: 101154 | C104: ALVENARIA DE VEDAÇÃO DE BLOCOS DE CONCRETO CELULAR DE 10X30X60CM (ESPESSURA 10CM) E ARGAMASSA DE ASSENTAMENTO COM PREPARO EM BETONEIRA. AF_05/2020 | D104: M2 | E104: 157.46 | F104: 0.6569
A105: Alvenarias Diversas | B105: 101155 | C105: ALVENARIA DE VEDAÇÃO DE BLOCOS DE CONCRETO CELULAR DE 15X30X60CM (ESPESSURA 15CM) E ARGAMASSA DE ASSENTAMENTO COM PREPARO EM BETONEIRA. AF_05/2020 | D105: M2 | E105: 219.77 | F105: 0.6914
A106: Alvenarias Diversas | B106: 101156 | C106: ALVENARIA DE VEDAÇÃO DE BLOCOS DE CONCRETO CELULAR DE 20X30X60CM (ESPESSURA 20CM) E ARGAMASSA DE ASSENTAMENTO COM PREPARO EM BETONEIRA. AF_05/2020 | D106: M2 | E106: 321.24 | F106: 0.7245
A107: Alvenarias Diversas | B107: 101158 | C107: ALVENARIA DE VEDAÇÃO DE BLOCOS DE GESSO DE 10X50X66CM (ESPESSURA 10CM). AF_05/2020 | D107: M2 | E107: 86.47 | F107: 0
A108: Alvenarias Diversas | B108: 101157 | C108: ALVENARIA DE VEDAÇÃO DE BLOCOS DE GESSO DE 7X50X66CM (ESPESSURA 7CM). AF_05/2020 | D108: M2 | E108: 66.74 | F108: 0
A109: Argamassas | B109: 87382 | C109: ARGAMASSA INDUSTRIALIZADA MULTIUSO PARA REVESTIMENTOS E ASSENTAMENTO DA ALVENARIA, PREPARO COM MISTURADOR DE EIXO HORIZONTAL DE 160 KG. AF_08/2019 | D109: M3 | E109: 2006.3 | F109: 0
A110: Argamassas | B110: 87383 | C110: ARGAMASSA INDUSTRIALIZADA MULTIUSO PARA REVESTIMENTOS E ASSENTAMENTO DA ALVENARIA, PREPARO COM MISTURADOR DE EIXO HORIZONTAL DE 300 KG. AF_08/2019 | D110: M3 | E110: 1982.19 | F110: 0
A111: Argamassas | B111: 87384 | C111: ARGAMASSA INDUSTRIALIZADA MULTIUSO PARA REVESTIMENTOS E ASSENTAMENTO DA ALVENARIA, PREPARO COM MISTURADOR DE EIXO HORIZONTAL DE 600 KG. AF_08/2019 | D111: M3 | E111: 1947.34 | F111: 0
A112: Argamassas | B112: 87398 | C112: ARGAMASSA INDUSTRIALIZADA MULTIUSO PARA REVESTIMENTOS E ASSENTAMENTO DA ALVENARIA, PREPARO MANUAL. AF_08/2019 | D112: M3 | E112: 2181.3 | F112: 0
A113: Argamassas | B113: 87395 | C113: ARGAMASSA INDUSTRIALIZADA PARA CHAPISCO COLANTE, PREPARO COM MISTURADOR DE EIXO HORIZONTAL DE 160 KG. AF_08/2019 | D113: M3 | E113: 3862.65 | F113: 0
A114: Argamassas | B114: 87396 | C114: ARGAMASSA INDUSTRIALIZADA PARA CHAPISCO COLANTE, PREPARO COM MISTURADOR DE EIXO HORIZONTAL DE 300 KG. AF_08/2019 | D114: M3 | E114: 3862.63 | F114: 0
A115: Argamassas | B115: 87397 | C115: ARGAMASSA INDUSTRIALIZADA PARA CHAPISCO COLANTE, PREPARO COM MISTURADOR DE EIXO HORIZONTAL DE 600 KG. AF_08/2019 | D115: M3 | E115: 3853.66 | F115: 0
A116: Argamassas | B116: 87402 | C116: ARGAMASSA INDUSTRIALIZADA PARA CHAPISCO COLANTE, PREPARO MANUAL. AF_08/2019 | D116: M3 | E116: 4083.28 | F116: 0
A117: Argamassas | B117: 87391 | C117: ARGAMASSA INDUSTRIALIZADA PARA CHAPISCO ROLADO, PREPARO COM MISTURADOR DE EIXO HORIZONTAL DE 160 KG. AF_08/2019 | D117: M3 | E117: 6032.67 | F117: 0
A118: Argamassas | B118: 87393 | C118: ARGAMASSA INDUSTRIALIZADA PARA CHAPISCO ROLADO, PREPARO COM MISTURADOR DE EIXO HORIZONTAL DE 300 KG. AF_08/2019 | D118: M3 | E118: 6061.79 | F118: 0
A119: Argamassas | B119: 87394 | C119: ARGAMASSA INDUSTRIALIZADA PARA CHAPISCO ROLADO, PREPARO COM MISTURADOR DE EIXO HORIZONTAL DE 600 KG. AF_08/2019 | D119: M3 | E119: 6080.66 | F119: 0
A120: Argamassas | B120: 87401 | C120: ARGAMASSA INDUSTRIALIZADA PARA CHAPISCO ROLADO, PREPARO MANUAL. AF_08/2019 | D120: M3 | E120: 6297.73 | F120: 0
A121: Argamassas | B121: 87407 | C121: ARGAMASSA INDUSTRIALIZADA PARA REVESTIMENTOS, MISTURA E PROJEÇÃO DE 1,5 M³/H DE ARGAMASSA. AF_08/2019 | D121: M3 | E121: 2040.85 | F121: 0
A122: Argamassas | B122: 87408 | C122: ARGAMASSA INDUSTRIALIZADA PARA REVESTIMENTOS, MISTURA E PROJEÇÃO DE 2 M³/H DE ARGAMASSA. AF_08/2019 | D122: M3 | E122: 2005.38 | F122: 0
A123: Argamassas | B123: 87404 | C123: ARGAMASSA PARA REVESTIMENTO DECORATIVO MONOCAMADA (MONOCAPA), MISTURA E PROJEÇÃO DE 1,5 M3/H DE ARGAMASSA. AF_08/2019 | D123: M3 | E123: 5664.47 | F123: 0
A124: Argamassas | B124: 87405 | C124: ARGAMASSA PARA REVESTIMENTO DECORATIVO MONOCAMADA (MONOCAPA), MISTURA E PROJEÇÃO DE 2 M3/H DE ARGAMASSA. AF_08/2019 | D124: M3 | E124: 5644.1 | F124: 0
A125: Argamassas | B125: 87388 | C125: ARGAMASSA PARA REVESTIMENTO DECORATIVO MONOCAMADA (MONOCAPA), PREPARO COM MISTURADOR DE EIXO HORIZONTAL DE 160 KG. AF_08/2019 | D125: M3 | E125: 5417.16 | F125: 0
A126: Argamassas | B126: 87389 | C126: ARGAMASSA PARA REVESTIMENTO DECORATIVO MONOCAMADA (MONOCAPA), PREPARO COM MISTURADOR DE EIXO HORIZONTAL DE 300 KG. AF_08/2019 | D126: M3 | E126: 5416.02 | F126: 0
A127: Argamassas | B127: 87390 | C127: ARGAMASSA PARA REVESTIMENTO DECORATIVO MONOCAMADA (MONOCAPA), PREPARO COM MISTURADOR DE EIXO HORIZONTAL DE 600 KG. AF_08/2019 | D127: M3 | E127: 5417.03 | F127: 0
A128: Argamassas | B128: 87385 | C128: ARGAMASSA PRONTA PARA CONTRAPISO, PREPARO COM MISTURADOR DE EIXO HORIZONTAL DE 160 KG. AF_08/2019 | D128: M3 | E128: 2338.16 | F128: 0
A129: Argamassas | B129: 87386 | C129: ARGAMASSA PRONTA PARA CONTRAPISO, PREPARO COM MISTURADOR DE EIXO HORIZONTAL DE 300 KG. AF_08/2019 | D129: M3 | E129: 2301.65 | F129: 0
A130: Argamassas | B130: 87387 | C130: ARGAMASSA PRONTA PARA CONTRAPISO, PREPARO COM MISTURADOR DE EIXO HORIZONTAL DE 600 KG. AF_08/2019 | D130: M3 | E130: 2266.01 | F130: 0
A131: Argamassas | B131: 87399 | C131: ARGAMASSA PRONTA PARA CONTRAPISO, PREPARO MANUAL. AF_08/2019 | D131: M3 | E131: 2501.97 | F131: 0
A132: Argamassas | B132: 88627 | C132: ARGAMASSA TRAÇO 1:0,5:4,5 (EM VOLUME DE CIMENTO, CAL E AREIA MÉDIA ÚMIDA) PARA ASSENTAMENTO DE ALVENARIA, PREPARO MANUAL. AF_08/2019 | D132: M3 | E132: 874.61 | F132: 0
A133: Argamassas | B133: 100463 | C133: ARGAMASSA TRAÇO 1:0,5:4,5 (EM VOLUME DE CIMENTO, CAL E AREIA MÉDIA ÚMIDA), PREPARO MECÂNICO COM BETONEIRA 250 L. AF_08/2019 | D133: M3 | E133: 0
A134: Argamassas | B134: 88626 | C134: ARGAMASSA TRAÇO 1:0,5:4,5 (EM VOLUME DE CIMENTO, CAL E AREIA MÉDIA ÚMIDA), PREPARO MECÂNICO COM BETONEIRA 400 L. AF_08/2019 | D134: M3 | E134: 818.45 | F134: 0
A135: Argamassas | B135: 100488 | C135: ARGAMASSA TRAÇO 1:0,5:4,5 (EM VOLUME DE CIMENTO, CAL E AREIA MÉDIA ÚMIDA), PREPARO MECÂNICO COM BETONEIRA 600 L. AF_08/2019 | D135: M3 | E135: 784 | F135: 0
A136: Argamassas | B136: 100464 | C136: ARGAMASSA TRAÇO 1:0,5:4,5 (EM VOLUME DE CIMENTO, CAL E AREIA MÉDIA ÚMIDA), PREPARO MECÂNICO COM MISTURADOR DE EIXO HORIZONTAL DE 160 KG. AF_08/2019 | D136: M3 | E136: 871.01 | F136: 0
A137: Argamassas | B137: 100465 | C137: ARGAMASSA TRAÇO 1:0,5:4,5 (EM VOLUME DE CIMENTO, CAL E AREIA MÉDIA ÚMIDA), PREPARO MECÂNICO COM MISTURADOR DE EIXO HORIZONTAL DE 300 KG. AF_08/2019 | D137: M3 | E137: 794.58 | F137: 0
A138: Argamassas | B138: 100466 | C138: ARGAMASSA TRAÇO 1:0,5:4,5 (EM VOLUME DE CIMENTO, CAL E AREIA MÉDIA ÚMIDA), PREPARO MECÂNICO COM MISTURADOR DE EIXO HORIZONTAL DE 600 KG. AF_08/2019 | D138: M3 | E138: 747.19 | F138: 0
A139: Argamassas | B139: 87368 | C139: ARGAMASSA TRAÇO 1:1,5:7,5 (EM VOLUME DE CIMENTO, CAL E AREIA MÉDIA ÚMIDA) PARA EMBOÇO/MASSA ÚNICA/ASSENTAMENTO DE ALVENARIA DE VEDAÇÃO, PREPARO MANUAL. AF_08/2019 | D139: M3 | E139: 915.91 | F139: 0
A140: Argamassas | B140: 100450 | C140: ARGAMASSA TRAÇO 1:1,5:7,5 (EM VOLUME DE CIMENTO, CAL E AREIA MÉDIA ÚMIDA) PARA EMBOÇO/MASSA ÚNICA/ASSENTAMENTO DE ALVENARIA DE VEDAÇÃO, PREPARO MECÂNICO COM BETONEIRA 250 L. AF_08/2019 | D140: M3 | E140: 0
A141: Argamassas | B141: 87289 | C141: ARGAMASSA TRAÇO 1:1,5:7,5 (EM VOLUME DE CIMENTO, CAL E AREIA MÉDIA ÚMIDA) PARA EMBOÇO/MASSA ÚNICA/ASSENTAMENTO DE ALVENARIA DE VEDAÇÃO, PREPARO MECÂNICO COM BETONEIRA 400 L. AF_08/2019 | D141: M3 | E141: 848.34 | F141: 0
A142: Argamassas | B142: 87290 | C142: ARGAMASSA TRAÇO 1:1,5:7,5 (EM VOLUME DE CIMENTO, CAL E AREIA MÉDIA ÚMIDA) PARA EMBOÇO/MASSA ÚNICA/ASSENTAMENTO DE ALVENARIA DE VEDAÇÃO, PREPARO MECÂNICO COM BETONEIRA 600 L. AF_08/2019 | D142: M3 | E142: 811.52 | F142: 0
A143: Argamassas | B143: 87333 | C143: ARGAMASSA TRAÇO 1:1,5:7,5 (EM VOLUME DE CIMENTO, CAL E AREIA MÉDIA ÚMIDA) PARA EMBOÇO/MASSA ÚNICA/ASSENTAMENTO DE ALVENARIA DE VEDAÇÃO, PREPARO MECÂNICO COM MISTURADOR DE EIXO HORIZONTAL DE 300 KG. AF_08/2019 | D143: M3 | E143: 858.41 | F143: 0
A144: Argamassas | B144: 87334 | C144: ARGAMASSA TRAÇO 1:1,5:7,5 (EM VOLUME DE CIMENTO, CAL E AREIA MÉDIA ÚMIDA) PARA EMBOÇO/MASSA ÚNICA/ASSENTAMENTO DE ALVENARIA DE VEDAÇÃO, PREPARO MECÂNICO COM MISTURADOR DE EIXO HORIZONTAL DE 600 KG. AF_08/2019 | D144: M3 | E144: 774.78 | F144: 0
A145: Argamassas | B145: 105515 | C145: ARGAMASSA TRAÇO 1:1,93 (EM VOLUME DE CIMENTO E AREIA MÉDIA ÚMIDA), FCK 20MPA, PREPARO MECÂNICO COM MISTURADOR DUPLO HORIZONTAL DE ALTA TURBULÊNCIA. AF_03/2020 | D145: M3 | E145: 1142.76 | F145: 0
A146: Argamassas | B146: 87367 | C146: ARGAMASSA TRAÇO 1:1:6 (EM VOLUME DE CIMENTO, CAL E AREIA MÉDIA ÚMIDA) PARA EMBOÇO/MASSA ÚNICA/ASSENTAMENTO DE ALVENARIA DE VEDAÇÃO, PREPARO MANUAL. AF_08/2019 | D146: M3 | E146: 931.75 | F146: 0
A147: Argamassas | B147: 100449 | C147: ARGAMASSA TRAÇO 1:1:6 (EM VOLUME DE CIMENTO, CAL E AREIA MÉDIA ÚMIDA) PARA EMBOÇO/MASSA ÚNICA/ASSENTAMENTO DE ALVENARIA DE VEDAÇÃO, PREPARO MECÂNICO COM BETONEIRA 250 L. AF_08/2019 | D147: M3 | E147: 0
A148: Argamassas | B148: 87286 | C148: ARGAMASSA TRAÇO 1:1:6 (EM VOLUME DE CIMENTO, CAL E AREIA MÉDIA ÚMIDA) PARA EMBOÇO/MASSA ÚNICA/ASSENTAMENTO DE ALVENARIA DE VEDAÇÃO, PREPARO MECÂNICO COM BETONEIRA 400 L. AF_08/2019 | D148: M3 | E148: 873.52 | F148: 0
A149: Argamassas | B149: 87287 | C149: ARGAMASSA TRAÇO 1:1:6 (EM VOLUME DE CIMENTO, CAL E AREIA MÉDIA ÚMIDA) PARA EMBOÇO/MASSA ÚNICA/ASSENTAMENTO DE ALVENARIA DE VEDAÇÃO, PREPARO MECÂNICO COM BETONEIRA 600 L. AF_08/2019 | D149: M3 | E149: 817.58 | F149: 0
A150: Argamassas | B150: 87331 | C150: ARGAMASSA TRAÇO 1:1:6 (EM VOLUME DE CIMENTO, CAL E AREIA MÉDIA ÚMIDA) PARA EMBOÇO/MASSA ÚNICA/ASSENTAMENTO DE ALVENARIA DE VEDAÇÃO, PREPARO MECÂNICO COM MISTURADOR DE EIXO HORIZONTAL DE 300 KG. AF_08/2019 | D150: M3 | E150: 915.14 | F150: 0
A151: Argamassas | B151: 87332 | C151: ARGAMASSA TRAÇO 1:1:6 (EM VOLUME DE CIMENTO, CAL E AREIA MÉDIA ÚMIDA) PARA EMBOÇO/MASSA ÚNICA/ASSENTAMENTO DE ALVENARIA DE VEDAÇÃO, PREPARO MECÂNICO COM MISTURADOR DE EIXO HORIZONTAL DE 600 KG. AF_08/2019 | D151: M3 | E151: 784.47 | F151: 0
A152: Argamassas | B152: 87369 | C152: ARGAMASSA TRAÇO 1:2:8 (EM VOLUME DE CIMENTO, CAL E AREIA MÉDIA ÚMIDA) PARA EMBOÇO/MASSA ÚNICA/ASSENTAMENTO DE ALVENARIA DE VEDAÇÃO, PREPARO MANUAL. AF_08/2019 | D152: M3 | E152: 946.36 | F152: 0
A153: Argamassas | B153: 100451 | C153: ARGAMASSA TRAÇO 1:2:8 (EM VOLUME DE CIMENTO, CAL E AREIA MÉDIA ÚMIDA) PARA EMBOÇO/MASSA ÚNICA/ASSENTAMENTO DE ALVENARIA DE VEDAÇÃO, PREPARO MECÂNICO COM BETONEIRA 250 L. AF_08/2019 | D153: M3 | E153: 0
A154: Argamassas | B154: 87292 | C154: ARGAMASSA TRAÇO 1:2:8 (EM VOLUME DE CIMENTO, CAL E AREIA MÉDIA ÚMIDA) PARA EMBOÇO/MASSA ÚNICA/ASSENTAMENTO DE ALVENARIA DE VEDAÇÃO, PREPARO MECÂNICO COM BETONEIRA 400 L. AF_08/2019 | D154: M3 | E154: 868.69 | F154: 0
A155: Argamassas | B155: 87335 | C155: ARGAMASSA TRAÇO 1:2:8 (EM VOLUME DE CIMENTO, CAL E AREIA MÉDIA ÚMIDA) PARA EMBOÇO/MASSA ÚNICA/ASSENTAMENTO DE ALVENARIA DE VEDAÇÃO, PREPARO MECÂNICO COM MISTURADOR DE EIXO HORIZONTAL DE 300 KG. AF_08/2019 | D155: M3 | E155: 843.35 | F155: 0
A156: Argamassas | B156: 87336 | C156: ARGAMASSA TRAÇO 1:2:8 (EM VOLUME DE CIMENTO, CAL E AREIA MÉDIA ÚMIDA) PARA EMBOÇO/MASSA ÚNICA/ASSENTAMENTO DE ALVENARIA DE VEDAÇÃO, PREPARO MECÂNICO COM MISTURADOR DE EIXO HORIZONTAL DE 600 KG. AF_08/2019 | D156: M3 | E156: 804.51 | F156: 0
A157: Argamassas | B157: 87370 | C157: ARGAMASSA TRAÇO 1:2:9 (EM VOLUME DE CIMENTO, CAL E AREIA MÉDIA ÚMIDA) PARA EMBOÇO/MASSA ÚNICA/ASSENTAMENTO DE ALVENARIA DE VEDAÇÃO, PREPARO MANUAL. AF_08/2019 | D157: M3 | E157: 908.7 | F157: 0
A158: Argamassas | B158: 100452 | C158: ARGAMASSA TRAÇO 1:2:9 (EM VOLUME DE CIMENTO, CAL E AREIA MÉDIA ÚMIDA) PARA EMBOÇO/MASSA ÚNICA/ASSENTAMENTO DE ALVENARIA DE VEDAÇÃO, PREPARO MECÂNICO COM BETONEIRA 250 L. AF_08/2019 | D158: M3 | E158: 0
A159: Argamassas | B159: 88715 | C159: ARGAMASSA TRAÇO 1:2:9 (EM VOLUME DE CIMENTO, CAL E AREIA MÉDIA ÚMIDA) PARA EMBOÇO/MASSA ÚNICA/ASSENTAMENTO DE ALVENARIA DE VEDAÇÃO, PREPARO MECÂNICO COM BETONEIRA 400 L. AF_08/2019 | D159: M3 | E159: 818.83 | F159: 0
A160: Argamassas | B160: 87294 | C160: ARGAMASSA TRAÇO 1:2:9 (EM VOLUME DE CIMENTO, CAL E AREIA MÉDIA ÚMIDA) PARA EMBOÇO/MASSA ÚNICA/ASSENTAMENTO DE ALVENARIA DE VEDAÇÃO, PREPARO MECÂNICO COM BETONEIRA 600 L. AF_08/2019 | D160: M3 | E160: 813.38 | F160: 0
A161: Argamassas | B161: 87337 | C161: ARGAMASSA TRAÇO 1:2:9 (EM VOLUME DE CIMENTO, CAL E AREIA MÉDIA ÚMIDA) PARA EMBOÇO/MASSA ÚNICA/ASSENTAMENTO DE ALVENARIA DE VEDAÇÃO, PREPARO MECÂNICO COM MISTURADOR DE EIXO HORIZONTAL DE 300 KG. AF_08/2019 | D161: M3 | E161: 835.8 | F161: 0
A162: Argamassas | B162: 100487 | C162: ARGAMASSA TRAÇO 1:2:9 (EM VOLUME DE CIMENTO, CAL E AREIA MÉDIA ÚMIDA) PARA EMBOÇO/MASSA ÚNICA/ASSENTAMENTO DE ALVENARIA DE VEDAÇÃO, PREPARO MECÂNICO COM MISTURADOR DE EIXO HORIZONTAL DE 600 KG. AF_08/2019 | D162: M3 | E162: 760.12 | F162: 0
A163: Argamassas | B163: 87380 | C163: ARGAMASSA TRAÇO 1:3 (EM VOLUME DE CIMENTO E AREIA GROSSA ÚMIDA) COM ADIÇÃO DE EMULSÃO POLIMÉRICA PARA CHAPISCO ROLADO, PREPARO MANUAL. AF_08/2019 | D163: M3 | E163: 3763.6 | F163: 0
A164: Argamassas | B164: 100461 | C164: ARGAMASSA TRAÇO 1:3 (EM VOLUME DE CIMENTO E AREIA GROSSA ÚMIDA) COM ADIÇÃO DE EMULSÃO POLIMÉRICA PARA CHAPISCO ROLADO, PREPARO MECÂNICO COM BETONEIRA 250 L. AF_08/2019 | D164: M3 | E164: 0
A165: Argamassas | B165: 87322 | C165: ARGAMASSA TRAÇO 1:3 (EM VOLUME DE CIMENTO E AREIA GROSSA ÚMIDA) COM ADIÇÃO DE EMULSÃO POLIMÉRICA PARA CHAPISCO ROLADO, PREPARO MECÂNICO COM BETONEIRA 400 L. AF_08/2019 | D165: M3 | E165: 3719.7 | F165: 0
A166: Argamassas | B166: 87323 | C166: ARGAMASSA TRAÇO 1:3 (EM VOLUME DE CIMENTO E AREIA GROSSA ÚMIDA) COM ADIÇÃO DE EMULSÃO POLIMÉRICA PARA CHAPISCO ROLADO, PREPARO MECÂNICO COM BETONEIRA 600 L. AF_08/2019 | D166: M3 | E166: 3686.26 | F166: 0
A167: Argamassas | B167: 87360 | C167: ARGAMASSA TRAÇO 1:3 (EM VOLUME DE CIMENTO E AREIA GROSSA ÚMIDA) COM ADIÇÃO DE EMULSÃO POLIMÉRICA PARA CHAPISCO ROLADO, PREPARO MECÂNICO COM MISTURADOR DE EIXO HORIZONTAL DE 160 KG. AF_08/2019 | D167: M3 | E167: 3728.81 | F167: 0
A168: Argamassas | B168: 87361 | C168: ARGAMASSA TRAÇO 1:3 (EM VOLUME DE CIMENTO E AREIA GROSSA ÚMIDA) COM ADIÇÃO DE EMULSÃO POLIMÉRICA PARA CHAPISCO ROLADO, PREPARO MECÂNICO COM MISTURADOR DE EIXO HORIZONTAL DE 300 KG. AF_08/2019 | D168: M3 | E168: 3624.89 | F168: 0
A169: Argamassas | B169: 87362 | C169: ARGAMASSA TRAÇO 1:3 (EM VOLUME DE CIMENTO E AREIA GROSSA ÚMIDA) COM ADIÇÃO DE EMULSÃO POLIMÉRICA PARA CHAPISCO ROLADO, PREPARO MECÂNICO COM MISTURADOR DE EIXO HORIZONTAL DE 600 KG. AF_08/2019 | D169: M3 | E169: 3590.75 | F169: 0
A170: Argamassas | B170: 87377 | C170: ARGAMASSA TRAÇO 1:3 (EM VOLUME DE CIMENTO E AREIA GROSSA ÚMIDA) PARA CHAPISCO CONVENCIONAL, PREPARO MANUAL. AF_08/2019 | D170: M3 | E170: 865.47 | F170: 0
A171: Argamassas | B171: 100458 | C171: ARGAMASSA TRAÇO 1:3 (EM VOLUME DE CIMENTO E AREIA GROSSA ÚMIDA) PARA CHAPISCO CONVENCIONAL, PREPARO MECÂNICO COM BETONEIRA 250 L. AF_08/2019 | D171: M3 | E171: 0
A172: Argamassas | B172: 87313 | C172: ARGAMASSA TRAÇO 1:3 (EM VOLUME DE CIMENTO E AREIA GROSSA ÚMIDA) PARA CHAPISCO CONVENCIONAL, PREPARO MECÂNICO COM BETONEIRA 400 L. AF_08/2019 | D172: M3 | E172: 775.93 | F172: 0
A173: Argamassas | B173: 87314 | C173: ARGAMASSA TRAÇO 1:3 (EM VOLUME DE CIMENTO E AREIA GROSSA ÚMIDA) PARA CHAPISCO CONVENCIONAL, PREPARO MECÂNICO COM BETONEIRA 600 L. AF_08/2019 | D173: M3 | E173: 743.18 | F173: 0
A174: Argamassas | B174: 87352 | C174: ARGAMASSA TRAÇO 1:3 (EM VOLUME DE CIMENTO E AREIA GROSSA ÚMIDA) PARA CHAPISCO CONVENCIONAL, PREPARO MECÂNICO COM MISTURADOR DE EIXO HORIZONTAL DE 160 KG. AF_08/2019 | D174: M3 | E174: 936.21 | F174: 0
A175: Argamassas | B175: 87353 | C175: ARGAMASSA TRAÇO 1:3 (EM VOLUME DE CIMENTO E AREIA GROSSA ÚMIDA) PARA CHAPISCO CONVENCIONAL, PREPARO MECÂNICO COM MISTURADOR DE EIXO HORIZONTAL DE 300 KG. AF_08/2019 | D175: M3 | E175: 786.3 | F175: 0
A176: Argamassas | B176: 87354 | C176: ARGAMASSA TRAÇO 1:3 (EM VOLUME DE CIMENTO E AREIA GROSSA ÚMIDA) PARA CHAPISCO CONVENCIONAL, PREPARO MECÂNICO COM MISTURADOR DE EIXO HORIZONTAL DE 600 KG. AF_08/2019 | D176: M3 | E176: 708.41 | F176: 0
A177: Argamassas | B177: 100480 | C177: ARGAMASSA TRAÇO 1:3 (EM VOLUME DE CIMENTO E AREIA MÉDIA ÚMIDA) COM ADIÇÃO DE IMPERMEABILIZANTE, PREPARO MANUAL. AF_08/2019 | D177: M3 | E177: 1039.65 | F177: 0
A178: Argamassas | B178: 100476 | C178: ARGAMASSA TRAÇO 1:3 (EM VOLUME DE CIMENTO E AREIA MÉDIA ÚMIDA) COM ADIÇÃO DE IMPERMEABILIZANTE, PREPARO MECÂNICO COM BETONEIRA 250 L. AF_08/2019 | D178: M3 | E178: 0
A179: Argamassas | B179: 100475 | C179: ARGAMASSA TRAÇO 1:3 (EM VOLUME DE CIMENTO E AREIA MÉDIA ÚMIDA) COM ADIÇÃO DE IMPERMEABILIZANTE, PREPARO MECÂNICO COM BETONEIRA 400 L. AF_08/2019 | D179: M3 | E179: 976.32 | F179: 0
A180: Argamassas | B180: 100491 | C180: ARGAMASSA TRAÇO 1:3 (EM VOLUME DE CIMENTO E AREIA MÉDIA ÚMIDA) COM ADIÇÃO DE IMPERMEABILIZANTE, PREPARO MECÂNICO COM BETONEIRA 600 L. AF_08/2019 | D180: M3 | E180: 956.61 | F180: 0
A181: Argamassas | B181: 100477 | C181: ARGAMASSA TRAÇO 1:3 (EM VOLUME DE CIMENTO E AREIA MÉDIA ÚMIDA) COM ADIÇÃO DE IMPERMEABILIZANTE, PREPARO MECÂNICO COM MISTURADOR DE EIXO HORIZONTAL DE 160 KG. AF_08/2019 | D181: M3 | E181: 1106.09 | F181: 0
A182: Argamassas | B182: 100478 | C182: ARGAMASSA TRAÇO 1:3 (EM VOLUME DE CIMENTO E AREIA MÉDIA ÚMIDA) COM ADIÇÃO DE IMPERMEABILIZANTE, PREPARO MECÂNICO COM MISTURADOR DE EIXO HORIZONTAL DE 300 KG. AF_08/2019 | D182: M3 | E182: 955.6 | F182: 0
A183: Argamassas | B183: 100479 | C183: ARGAMASSA TRAÇO 1:3 (EM VOLUME DE CIMENTO E AREIA MÉDIA ÚMIDA) COM ADIÇÃO DE IMPERMEABILIZANTE, PREPARO MECÂNICO COM MISTURADOR DE EIXO HORIZONTAL DE 600 KG. AF_08/2019 | D183: M3 | E183: 912.01 | F183: 0
A184: Argamassas | B184: 87372 | C184: ARGAMASSA TRAÇO 1:3 (EM VOLUME DE CIMENTO E AREIA MÉDIA ÚMIDA) PARA CONTRAPISO, PREPARO MANUAL. AF_08/2019 | D184: M3 | E184: 1071.66 | F184: 0
A185: Argamassas | B185: 100453 | C185: ARGAMASSA TRAÇO 1:3 (EM VOLUME DE CIMENTO E AREIA MÉDIA ÚMIDA) PARA CONTRAPISO, PREPARO MECÂNICO COM BETONEIRA 250 L. AF_08/2019 | D185: M3 | E185: 0
A186: Argamassas | B186: 87298 | C186: ARGAMASSA TRAÇO 1:3 (EM VOLUME DE CIMENTO E AREIA MÉDIA ÚMIDA) PARA CONTRAPISO, PREPARO MECÂNICO COM BETONEIRA 400 L. AF_08/2019 | D186: M3 | E186: 977.94 | F186: 0
A187: Argamassas | B187: 87299 | C187: ARGAMASSA TRAÇO 1:3 (EM VOLUME DE CIMENTO E AREIA MÉDIA ÚMIDA) PARA CONTRAPISO, PREPARO MECÂNICO COM BETONEIRA 600 L. AF_08/2019 | D187: M3 | E187: 642.64 | F187: 0
A188: Argamassas | B188: 87339 | C188: ARGAMASSA TRAÇO 1:3 (EM VOLUME DE CIMENTO E AREIA MÉDIA ÚMIDA) PARA CONTRAPISO, PREPARO MECÂNICO COM MISTURADOR DE EIXO HORIZONTAL DE 160 KG. AF_08/2019 | D188: M3 | E188: 1221.97 | F188: 0
A189: Argamassas | B189: 87340 | C189: ARGAMASSA TRAÇO 1:3 (EM VOLUME DE CIMENTO E AREIA MÉDIA ÚMIDA) PARA CONTRAPISO, PREPARO MECÂNICO COM MISTURADOR DE EIXO HORIZONTAL DE 300 KG. AF_08/2019 | D189: M3 | E189: 978.46 | F189: 0
A190: Argamassas | B190: 87341 | C190: ARGAMASSA TRAÇO 1:3 (EM VOLUME DE CIMENTO E AREIA MÉDIA ÚMIDA) PARA CONTRAPISO, PREPARO MECÂNICO COM MISTURADOR DE EIXO HORIZONTAL DE 600 KG. AF_08/2019 | D190: M3 | E190: 907.28 | F190: 0
A191: Argamassas | B191: 88629 | C191: ARGAMASSA TRAÇO 1:3 (EM VOLUME DE CIMENTO E AREIA MÉDIA ÚMIDA), PREPARO MANUAL. AF_08/2019 | D191: M3 | E191: 881.21 | F191: 0
A192: Argamassas | B192: 100467 | C192: ARGAMASSA TRAÇO 1:3 (EM VOLUME DE CIMENTO E AREIA MÉDIA ÚMIDA), PREPARO MECÂNICO COM BETONEIRA 250 L. AF_08/2019 | D192: M3 | E192: 0
A193: Argamassas | B193: 88628 | C193: ARGAMASSA TRAÇO 1:3 (EM VOLUME DE CIMENTO E AREIA MÉDIA ÚMIDA), PREPARO MECÂNICO COM BETONEIRA 400 L. AF_08/2019 | D193: M3 | E193: 810.79 | F193: 0
A194: Argamassas | B194: 100489 | C194: ARGAMASSA TRAÇO 1:3 (EM VOLUME DE CIMENTO E AREIA MÉDIA ÚMIDA), PREPARO MECÂNICO COM BETONEIRA 600 L. AF_08/2019 | D194: M3 | E194: 791.26 | F194: 0
A195: Argamassas | B195: 100468 | C195: ARGAMASSA TRAÇO 1:3 (EM VOLUME DE CIMENTO E AREIA MÉDIA ÚMIDA), PREPARO MECÂNICO COM MISTURADOR DE EIXO HORIZONTAL DE 160 KG. AF_08/2019 | D195: M3 | E195: 998.2 | F195: 0
A196: Argamassas | B196: 100469 | C196: ARGAMASSA TRAÇO 1:3 (EM VOLUME DE CIMENTO E AREIA MÉDIA ÚMIDA), PREPARO MECÂNICO COM MISTURADOR DE EIXO HORIZONTAL DE 300 KG. AF_08/2019 | D196: M3 | E196: 794.02 | F196: 0
A197: Argamassas | B197: 100470 | C197: ARGAMASSA TRAÇO 1:3 (EM VOLUME DE CIMENTO E AREIA MÉDIA ÚMIDA), PREPARO MECÂNICO COM MISTURADOR DE EIXO HORIZONTAL DE 600 KG. AF_08/2019 | D197: M3 | E197: 722.81 | F197: 0
A198: Argamassas | B198: 87371 | C198: ARGAMASSA TRAÇO 1:3:12 (EM VOLUME DE CIMENTO, CAL E AREIA MÉDIA ÚMIDA) PARA EMBOÇO/MASSA ÚNICA/ASSENTAMENTO DE ALVENARIA DE VEDAÇÃO, PREPARO MANUAL. AF_08/2019 | D198: M3 | E198: 897.94 | F198: 0
A199: Argamassas | B199: 87295 | C199: ARGAMASSA TRAÇO 1:3:12 (EM VOLUME DE CIMENTO, CAL E AREIA MÉDIA ÚMIDA) PARA EMBOÇO/MASSA ÚNICA/ASSENTAMENTO DE ALVENARIA DE VEDAÇÃO, PREPARO MECÂNICO COM BETONEIRA 400 L. AF_08/2019 | D199: M3 | E199: 866.49 | F199: 0
A200: Argamassas | B200: 87296 | C200: ARGAMASSA TRAÇO 1:3:12 (EM VOLUME DE CIMENTO, CAL E AREIA MÉDIA ÚMIDA) PARA EMBOÇO/MASSA ÚNICA/ASSENTAMENTO DE ALVENARIA DE VEDAÇÃO, PREPARO MECÂNICO COM BETONEIRA 600 L. AF_08/2019 | D200: M3 | E200: 792.08 | F200: 0
... 10188 more rows

Sheet Ins SINAPI BA 04-2026 Onerado
A1: SINAPI - Sistema Nacional de Pesquisa de Custos e Índices da Construção Civil
A2: RELATÓRIO DE PREÇOS DE INSUMOS - ENGARGOS SOCIAIS SEM DESONERAÇÃO
A3: Mês de Referência: | B3: 04/2026 | E3: Encargos sociais sobre a mão de obra:
A4: Data de emissão: | B4: 12/05/2026 | E4: (SEM DESONERAÇÃO) | F4: BA
E5: Localidade | F5: SALVADOR
A6: Origem de preço: | B6: C = COLETADO | C6: CR = COEFICIENTE DE REPRESENTATIVIDADE | E6: Horista | F6: 1.1773
A7: Preço em branco para determinado estado significa que não houve coleta mínima de preços no mês de referência | E7: Mensalista | F7: 0.7285
A9: Acessar Fichas de Especificação Técnico dos Insumos | E9: Preços Medianos (R$):
A10: Classificação | B10: Código do Insumo | C10: Descrição do Insumo | D10: Unidade | E10: Origem de Preço | F10: BA
A11: SERVIÇOS | B11: 45333 | C11: ABERTURA PARA ENCAIXE DE CUBA OU LAVATORIO EM BANCADA DE MARMORE/ GRANITO OU OUTRO TIPO DE PEDRA NATURAL | D11: UN | E11: CR | F11: 122.61
A12: MATERIAL | B12: 11270 | C12: ABRACADEIRA DE LATAO PARA FIXACAO DE CABO PARA-RAIO, DIMENSOES 32 X 24 X 24 MM | D12: UN | E12: CR | F12: 2.6
A13: MATERIAL | B13: 412 | C13: ABRACADEIRA DE NYLON PARA AMARRACAO DE CABOS, COMPRIMENTO DE *230* X *7,6* MM | D13: UN | E13: CR | F13: 0.92
A14: MATERIAL | B14: 414 | C14: ABRACADEIRA DE NYLON PARA AMARRACAO DE CABOS, COMPRIMENTO DE 100 X 2,5 MM | D14: UN | E14: CR | F14: 0.05
A15: MATERIAL | B15: 410 | C15: ABRACADEIRA DE NYLON PARA AMARRACAO DE CABOS, COMPRIMENTO DE 150 X *3,6* MM | D15: UN | E15: CR | F15: 0.14
A16: MATERIAL | B16: 411 | C16: ABRACADEIRA DE NYLON PARA AMARRACAO DE CABOS, COMPRIMENTO DE 200 X *4,6* MM | D16: UN | E16: C | F16: 0.18
A17: MATERIAL | B17: 408 | C17: ABRACADEIRA DE NYLON PARA AMARRACAO DE CABOS, COMPRIMENTO DE 390 X *4,6* MM | D17: UN | E17: CR | F17: 0.89
A18: MATERIAL | B18: 39131 | C18: ABRACADEIRA EM ACO PARA AMARRACAO DE ELETRODUTOS, TIPO D, COM 1 1/2" E CUNHA DE FIXACAO | D18: UN | E18: CR | F18: 3.93
A19: MATERIAL | B19: 394 | C19: ABRACADEIRA EM ACO PARA AMARRACAO DE ELETRODUTOS, TIPO D, COM 1 1/2" E PARAFUSO DE FIXACAO | D19: UN | E19: CR | F19: 3.98
A20: MATERIAL | B20: 39130 | C20: ABRACADEIRA EM ACO PARA AMARRACAO DE ELETRODUTOS, TIPO D, COM 1 1/4" E CUNHA DE FIXACAO | D20: UN | E20: CR | F20: 3.58
A21: MATERIAL | B21: 395 | C21: ABRACADEIRA EM ACO PARA AMARRACAO DE ELETRODUTOS, TIPO D, COM 1 1/4" E PARAFUSO DE FIXACAO | D21: UN | E21: CR | F21: 3.83
A22: MATERIAL | B22: 39129 | C22: ABRACADEIRA EM ACO PARA AMARRACAO DE ELETRODUTOS, TIPO D, COM 1" E CUNHA DE FIXACAO | D22: UN | E22: CR | F22: 2.21
A23: MATERIAL | B23: 393 | C23: ABRACADEIRA EM ACO PARA AMARRACAO DE ELETRODUTOS, TIPO D, COM 1" E PARAFUSO DE FIXACAO | D23: UN | E23: C | F23: 2.31
A24: MATERIAL | B24: 39127 | C24: ABRACADEIRA EM ACO PARA AMARRACAO DE ELETRODUTOS, TIPO D, COM 1/2" E CUNHA DE FIXACAO | D24: UN | E24: CR | F24: 1.89
A25: MATERIAL | B25: 392 | C25: ABRACADEIRA EM ACO PARA AMARRACAO DE ELETRODUTOS, TIPO D, COM 1/2" E PARAFUSO DE FIXACAO | D25: UN | E25: CR | F25: 1.94
A26: MATERIAL | B26: 39133 | C26: ABRACADEIRA EM ACO PARA AMARRACAO DE ELETRODUTOS, TIPO D, COM 2 1/2" E CUNHA DE FIXACAO | D26: UN | E26: CR | F26: 5.16
A27: MATERIAL | B27: 397 | C27: ABRACADEIRA EM ACO PARA AMARRACAO DE ELETRODUTOS, TIPO D, COM 2 1/2" E PARAFUSO DE FIXACAO | D27: UN | E27: CR | F27: 5.7
A28: MATERIAL | B28: 39132 | C28: ABRACADEIRA EM ACO PARA AMARRACAO DE ELETRODUTOS, TIPO D, COM 2" E CUNHA DE FIXACAO | D28: UN | E28: CR | F28: 4.12
A29: MATERIAL | B29: 396 | C29: ABRACADEIRA EM ACO PARA AMARRACAO DE ELETRODUTOS, TIPO D, COM 2" E PARAFUSO DE FIXACAO | D29: UN | E29: CR | F29: 4.42
A30: MATERIAL | B30: 39135 | C30: ABRACADEIRA EM ACO PARA AMARRACAO DE ELETRODUTOS, TIPO D, COM 3 1/2" E CUNHA DE FIXACAO | D30: UN | E30: CR | F30: 8.25
A31: MATERIAL | B31: 39134 | C31: ABRACADEIRA EM ACO PARA AMARRACAO DE ELETRODUTOS, TIPO D, COM 3" E CUNHA DE FIXACAO | D31: UN | E31: CR | F31: 6.88
A32: MATERIAL | B32: 398 | C32: ABRACADEIRA EM ACO PARA AMARRACAO DE ELETRODUTOS, TIPO D, COM 3" E PARAFUSO DE FIXACAO | D32: UN | E32: CR | F32: 6.34
A33: MATERIAL | B33: 39128 | C33: ABRACADEIRA EM ACO PARA AMARRACAO DE ELETRODUTOS, TIPO D, COM 3/4" E CUNHA DE FIXACAO | D33: UN | E33: CR | F33: 2.06
A34: MATERIAL | B34: 400 | C34: ABRACADEIRA EM ACO PARA AMARRACAO DE ELETRODUTOS, TIPO D, COM 3/4" E PARAFUSO DE FIXACAO | D34: UN | E34: CR | F34: 2.01
A35: MATERIAL | B35: 39125 | C35: ABRACADEIRA EM ACO PARA AMARRACAO DE ELETRODUTOS, TIPO D, COM 3/8" E PARAFUSO DE FIXACAO | D35: UN | E35: CR | F35: 2.06
A36: MATERIAL | B36: 39126 | C36: ABRACADEIRA EM ACO PARA AMARRACAO DE ELETRODUTOS, TIPO D, COM 4" E CUNHA DE FIXACAO | D36: UN | E36: CR | F36: 9.28
A37: MATERIAL | B37: 399 | C37: ABRACADEIRA EM ACO PARA AMARRACAO DE ELETRODUTOS, TIPO D, COM 4" E PARAFUSO DE FIXACAO | D37: UN | E37: CR | F37: 8.18
A38: MATERIAL | B38: 39158 | C38: ABRACADEIRA EM ACO PARA AMARRACAO DE ELETRODUTOS, TIPO ECONOMICA (GOTA), COM 8" | D38: UN | E38: CR | F38: 21.96
A39: MATERIAL | B39: 39141 | C39: ABRACADEIRA EM ACO PARA AMARRACAO DE ELETRODUTOS, TIPO U SIMPLES, COM 1 1/2" | D39: UN | E39: CR | F39: 1.59
A40: MATERIAL | B40: 39140 | C40: ABRACADEIRA EM ACO PARA AMARRACAO DE ELETRODUTOS, TIPO U SIMPLES, COM 1 1/4" | D40: UN | E40: CR | F40: 1.44
A41: MATERIAL | B41: 39139 | C41: ABRACADEIRA EM ACO PARA AMARRACAO DE ELETRODUTOS, TIPO U SIMPLES, COM 1" | D41: UN | E41: CR | F41: 1.2
A42: MATERIAL | B42: 39137 | C42: ABRACADEIRA EM ACO PARA AMARRACAO DE ELETRODUTOS, TIPO U SIMPLES, COM 1/2" | D42: UN | E42: CR | F42: 0.83
A43: MATERIAL | B43: 39143 | C43: ABRACADEIRA EM ACO PARA AMARRACAO DE ELETRODUTOS, TIPO U SIMPLES, COM 2 1/2" | D43: UN | E43: CR | F43: 3.29
A44: MATERIAL | B44: 39142 | C44: ABRACADEIRA EM ACO PARA AMARRACAO DE ELETRODUTOS, TIPO U SIMPLES, COM 2" | D44: UN | E44: CR | F44: 2.35
A45: MATERIAL | B45: 39144 | C45: ABRACADEIRA EM ACO PARA AMARRACAO DE ELETRODUTOS, TIPO U SIMPLES, COM 3" | D45: UN | E45: CR | F45: 3.83
A46: MATERIAL | B46: 39138 | C46: ABRACADEIRA EM ACO PARA AMARRACAO DE ELETRODUTOS, TIPO U SIMPLES, COM 3/4" | D46: UN | E46: CR | F46: 0.88
A47: MATERIAL | B47: 39136 | C47: ABRACADEIRA EM ACO PARA AMARRACAO DE ELETRODUTOS, TIPO U SIMPLES, COM 3/8" | D47: UN | E47: CR | F47: 0.58
A48: MATERIAL | B48: 39145 | C48: ABRACADEIRA EM ACO PARA AMARRACAO DE ELETRODUTOS, TIPO U SIMPLES, COM 4" | D48: UN | E48: CR | F48: 6.31
A49: MATERIAL | B49: 12615 | C49: ABRACADEIRA PVC, PARA CALHA PLUVIAL, DIAMETRO ENTRE *80 E 100* MM, PARA DRENAGEM PLUVIAL PREDIAL | D49: UN | E49: CR | F49: 11.32
A50: MATERIAL | B50: 11927 | C50: ABRACADEIRA, GALVANIZADA/ZINCADA, ROSCA SEM FIM, PARAFUSO INOX, LARGURA FITA *12,6 A *14 MM, D = 2" A 2 1/2" | D50: UN | E50: CR | F50: 7.77
A51: MATERIAL | B51: 11928 | C51: ABRACADEIRA, GALVANIZADA/ZINCADA, ROSCA SEM FIM, PARAFUSO INOX, LARGURA FITA *12,6 A *14 MM, D = 3" A 3 3/4" | D51: UN | E51: CR | F51: 8.9
A52: MATERIAL | B52: 11929 | C52: ABRACADEIRA, GALVANIZADA/ZINCADA, ROSCA SEM FIM, PARAFUSO INOX, LARGURA FITA *12,6 A *14 MM, D = 4" A 4 3/4" | D52: UN | E52: CR | F52: 13.77
A53: MATERIAL | B53: 36801 | C53: ACABAMENTO DE METAL CROMADO PARA REGISTRO PEQUENO, DE PAREDE, 1/2" OU 3/4" | D53: UN | E53: CR | F53: 34
A54: MATERIAL | B54: 36246 | C54: ACABAMENTO SIMPLES/CONVENCIONAL PARA FORRO PVC, TIPO "U" OU "C", COR BRANCA, COMPRIMENTO 6 M | D54: M | E54: CR | F54: 3.71
A55: MATERIAL | B55: 37600 | C55: ACESSORIO DE LIGACAO NAO ELETRICO PARA CARGAS EXPLOSIVAS, TUBO DE 6 M | D55: UN | E55: CR
A56: MATERIAL | B56: 37599 | C56: ACESSORIO INICIADOR NAO ELETRICO, TUBO DE 6 M, TEMPO DE RETARDO DE *160* MS | D56: UN | E56: CR
A57: MATERIAL | B57: 1 | C57: ACETILENO - RECARGA DE GAS PARA CILINDRO (NAO INCLUI TROCA/MANUTENCAO DO CILINDRO) | D57: KG | E57: C | F57: 177.5
A58: MATERIAL | B58: 3 | C58: ACIDO CLORIDRICO / ACIDO MURIATICO, DILUICAO 10% A 12% PARA USO EM LIMPEZA | D58: L | E58: CR | F58: 14.33
A59: MATERIAL | B59: 43054 | C59: ACO CA-25, 10,0 MM, OU 12,5 MM, OU 16,0 MM, OU 20,0 MM, OU 25,0 MM, VERGALHAO | D59: KG | E59: CR | F59: 7.56
A60: MATERIAL | B60: 42402 | C60: ACO CA-25, 16,0 MM, BARRA DE TRANSFERENCIA | D60: KG | E60: CR | F60: 7.23
A61: MATERIAL | B61: 42403 | C61: ACO CA-25, 20,0 MM, BARRA DE TRANSFERENCIA | D61: KG | E61: CR | F61: 9.27
A62: MATERIAL | B62: 42404 | C62: ACO CA-25, 25,0 MM, BARRA DE TRANSFERENCIA | D62: KG | E62: CR | F62: 9.22
A63: MATERIAL | B63: 42405 | C63: ACO CA-25, 32,0 MM, BARRA DE TRANSFERENCIA | D63: KG | E63: CR | F63: 9.82
A64: MATERIAL | B64: 34341 | C64: ACO CA-25, 32,0 MM, VERGALHAO | D64: KG | E64: CR | F64: 8.53
A65: MATERIAL | B65: 43053 | C65: ACO CA-25, 6,3 MM OU 8,0 MM, VERGALHAO | D65: KG | E65: CR | F65: 6.76
A66: MATERIAL | B66: 43058 | C66: ACO CA-50, 10,0 MM, OU 12,5 MM, OU 16,0 MM, OU 20,0 MM, DOBRADO E CORTADO | D66: KG | E66: CR | F66: 7.01
A67: MATERIAL | B67: 34 | C67: ACO CA-50, 10,0 MM, VERGALHAO | D67: KG | E67: CR | F67: 7.04
A68: MATERIAL | B68: 43055 | C68: ACO CA-50, 12,5 MM OU 16,0 MM, VERGALHAO | D68: KG | E68: C | F68: 6.1
A69: MATERIAL | B69: 43056 | C69: ACO CA-50, 20,0 MM OU 25,0 MM, VERGALHAO | D69: KG | E69: CR | F69: 7.03
A70: MATERIAL | B70: 43057 | C70: ACO CA-50, 32,0 MM, VERGALHAO | D70: KG | E70: CR | F70: 7.73
A71: MATERIAL | B71: 34449 | C71: ACO CA-50, 6,3 MM, DOBRADO E CORTADO | D71: KG | E71: CR | F71: 8.26
A72: MATERIAL | B72: 32 | C72: ACO CA-50, 6,3 MM, VERGALHAO | D72: KG | E72: CR | F72: 7.43
A73: MATERIAL | B73: 33 | C73: ACO CA-50, 8,0 MM, VERGALHAO | D73: KG | E73: CR | F73: 7.47
A74: MATERIAL | B74: 43061 | C74: ACO CA-60, 4,2 MM OU 5,0 MM, DOBRADO E CORTADO | D74: KG | E74: CR | F74: 6.98
A75: MATERIAL | B75: 43059 | C75: ACO CA-60, 4,2 MM, OU 5,0 MM, OU 6,0 MM, OU 7,0 MM, VERGALHAO | D75: KG | E75: CR | F75: 6.66
A76: MATERIAL | B76: 43062 | C76: ACO CA-60, 6,0 MM OU 7,0 MM, DOBRADO E CORTADO | D76: KG | E76: CR | F76: 7.38
A77: MATERIAL | B77: 43060 | C77: ACO CA-60, 8,0 MM OU 9,5 MM, VERGALHAO | D77: KG | E77: CR | F77: 5.8
A78: MATERIAL | B78: 40410 | C78: ACOPLAMENTO RIGIDO EM FERRO FUNDIDO PARA SISTEMA DE TUBULACAO RANHURADA, DN 50 MM (2") | D78: UN | E78: C | F78: 40
A79: MATERIAL | B79: 40411 | C79: ACOPLAMENTO RIGIDO EM FERRO FUNDIDO PARA SISTEMA DE TUBULACAO RANHURADA, DN 65 MM (2 1/2") | D79: UN | E79: CR | F79: 43.41
A80: MATERIAL | B80: 40412 | C80: ACOPLAMENTO RIGIDO EM FERRO FUNDIDO PARA SISTEMA DE TUBULACAO RANHURADA, DN 80 MM (3") | D80: UN | E80: CR | F80: 48.72
A81: MATERIAL | B81: 44254 | C81: ADAPTADOR CPVC, ROSCAVEL, COM FLANGES E ANEL DE VEDACAO, 15 MM, CAIXA D'AGUA PARA AGUA QUENTE | D81: UN | E81: CR | F81: 28.25
A82: MATERIAL | B82: 44255 | C82: ADAPTADOR CPVC, ROSCAVEL, COM FLANGES E ANEL DE VEDACAO, 22 MM, CAIXA D'AGUA PARA AGUA QUENTE | D82: UN | E82: CR | F82: 31.31
A83: MATERIAL | B83: 44256 | C83: ADAPTADOR CPVC, ROSCAVEL, COM FLANGES E ANEL DE VEDACAO, 28 MM, CAIXA D'AGUA PARA AGUA QUENTE | D83: UN | E83: CR | F83: 35.37
A84: MATERIAL | B84: 44257 | C84: ADAPTADOR CPVC, ROSCAVEL, COM FLANGES E ANEL DE VEDACAO, 35 MM, CAIXA D'AGUA PARA AGUA QUENTE | D84: UN | E84: CR | F84: 55.95
A85: MATERIAL | B85: 44258 | C85: ADAPTADOR CPVC, ROSCAVEL, COM FLANGES E ANEL DE VEDACAO, 42 MM, CAIXA D'AGUA PARA AGUA QUENTE | D85: UN | E85: CR | F85: 63.94
A86: MATERIAL | B86: 44259 | C86: ADAPTADOR CPVC, ROSCAVEL, COM FLANGES E ANEL DE VEDACAO, 54 MM, CAIXA D'AGUA PARA AGUA QUENTE | D86: UN | E86: CR | F86: 87.77
A87: MATERIAL | B87: 37997 | C87: ADAPTADOR CPVC, SOLDAVEL, 15 MM, PARA AGUA QUENTE | D87: UN | E87: CR | F87: 16.83
A88: MATERIAL | B88: 37998 | C88: ADAPTADOR CPVC, SOLDAVEL, 22 MM, PARA AGUA QUENTE | D88: UN | E88: CR | F88: 22.53
A89: MATERIAL | B89: 55 | C89: ADAPTADOR DE COMPRESSAO EM POLIPROPILENO (PP), PARA TUBO EM PEAD, 20 MM X 1/2", PARA LIGACAO PREDIAL DE AGUA (NTS 179) | D89: UN | E89: C
A90: MATERIAL | B90: 61 | C90: ADAPTADOR DE COMPRESSAO EM POLIPROPILENO (PP), PARA TUBO EM PEAD, 20 MM X 3/4", PARA LIGACAO PREDIAL DE AGUA (NTS 179) | D90: UN | E90: CR
A91: MATERIAL | B91: 62 | C91: ADAPTADOR DE COMPRESSAO EM POLIPROPILENO (PP), PARA TUBO EM PEAD, 32 MM X 1", PARA LIGACAO PREDIAL DE AGUA (NTS 179) | D91: UN | E91: CR
A92: MATERIAL | B92: 10899 | C92: ADAPTADOR EM LATAO, ENGATE RAPIDO 2 1/2" X ROSCA INTERNA 5 FIOS 2 1/2", PARA INSTALACAO PREDIAL DE COMBATE A INCENDIO | D92: UN | E92: CR | F92: 126.6
A93: MATERIAL | B93: 10900 | C93: ADAPTADOR EM LATAO, ENGATE RAPIDO1 1/2" X ROSCA INTERNA 5 FIOS 2 1/2", PARA INSTALACAO PREDIAL DE COMBATE A INCENDIO | D93: UN | E93: CR | F93: 99.08
A94: MATERIAL | B94: 47 | C94: ADAPTADOR PVC PBA, BOLSA/ROSCA, JE, DN 100 / DE 110 MM | D94: UN | E94: CR | F94: 64.36
A95: MATERIAL | B95: 48 | C95: ADAPTADOR PVC PBA, BOLSA/ROSCA, JE, DN 50 / DE 60 MM | D95: UN | E95: CR | F95: 16.79
A96: MATERIAL | B96: 46 | C96: ADAPTADOR PVC PBA, BOLSA/ROSCA, JE, DN 75 / DE 85 MM | D96: UN | E96: CR | F96: 37.64
A97: MATERIAL | B97: 52 | C97: ADAPTADOR PVC PBA, PONTA/ROSCA, JE, DN 50 / DE 60 MM | D97: UN | E97: CR | F97: 12.75
A98: MATERIAL | B98: 43 | C98: ADAPTADOR PVC PBA, PONTA/ROSCA, JE, DN 75 / DE 85 MM | D98: UN | E98: CR | F98: 43.04
A99: MATERIAL | B99: 103 | C99: ADAPTADOR PVC SOLDAVEL CURTO COM BOLSA E ROSCA, 110 MM X 4", PARA AGUA FRIA | D99: UN | E99: CR | F99: 40.72
A100: MATERIAL | B100: 107 | C100: ADAPTADOR PVC SOLDAVEL CURTO COM BOLSA E ROSCA, 20 MM X 1/2", PARA AGUA FRIA | D100: UN | E100: CR | F100: 0.76
A101: MATERIAL | B101: 65 | C101: ADAPTADOR PVC SOLDAVEL CURTO COM BOLSA E ROSCA, 25 MM X 3/4", PARA AGUA FRIA | D101: UN | E101: CR | F101: 0.84
A102: MATERIAL | B102: 108 | C102: ADAPTADOR PVC SOLDAVEL CURTO COM BOLSA E ROSCA, 32 MM X 1", PARA AGUA FRIA | D102: UN | E102: CR | F102: 1.69
A103: MATERIAL | B103: 110 | C103: ADAPTADOR PVC SOLDAVEL CURTO COM BOLSA E ROSCA, 40 MM X 1 1/2", PARA AGUA FRIA | D103: UN | E103: CR | F103: 5.86
A104: MATERIAL | B104: 109 | C104: ADAPTADOR PVC SOLDAVEL CURTO COM BOLSA E ROSCA, 40 MM X 1 1/4", PARA AGUA FRIA | D104: UN | E104: CR | F104: 3.49
A105: MATERIAL | B105: 111 | C105: ADAPTADOR PVC SOLDAVEL CURTO COM BOLSA E ROSCA, 50 MM X 1 1/4", PARA AGUA FRIA | D105: UN | E105: CR | F105: 7.93
A106: MATERIAL | B106: 112 | C106: ADAPTADOR PVC SOLDAVEL CURTO COM BOLSA E ROSCA, 50 MM X1 1/2", PARA AGUA FRIA | D106: UN | E106: CR | F106: 4.2
A107: MATERIAL | B107: 113 | C107: ADAPTADOR PVC SOLDAVEL CURTO COM BOLSA E ROSCA, 60 MM X 2", PARA AGUA FRIA | D107: UN | E107: CR | F107: 10.52
A108: MATERIAL | B108: 104 | C108: ADAPTADOR PVC SOLDAVEL CURTO COM BOLSA E ROSCA, 75 MM X 2 1/2", PARA AGUA FRIA | D108: UN | E108: CR | F108: 18.3
A109: MATERIAL | B109: 102 | C109: ADAPTADOR PVC SOLDAVEL CURTO COM BOLSA E ROSCA, 85 MM X 3", PARA AGUA FRIA | D109: UN | E109: CR | F109: 25.23
A110: MATERIAL | B110: 95 | C110: ADAPTADOR PVC SOLDAVEL, COM FLANGE E ANEL DE VEDACAO, 20 MM X 1/2", PARA CAIXA D'AGUA | D110: UN | E110: CR | F110: 10.66
A111: MATERIAL | B111: 96 | C111: ADAPTADOR PVC SOLDAVEL, COM FLANGE E ANEL DE VEDACAO, 25 MM X 3/4", PARA CAIXA D'AGUA | D111: UN | E111: CR | F111: 11.6
A112: MATERIAL | B112: 97 | C112: ADAPTADOR PVC SOLDAVEL, COM FLANGE E ANEL DE VEDACAO, 32 MM X 1", PARA CAIXA D'AGUA | D112: UN | E112: CR | F112: 17.45
A113: MATERIAL | B113: 98 | C113: ADAPTADOR PVC SOLDAVEL, COM FLANGE E ANEL DE VEDACAO, 40 MM X 1 1/4", PARA CAIXA D'AGUA | D113: UN | E113: CR | F113: 26.12
A114: MATERIAL | B114: 99 | C114: ADAPTADOR PVC SOLDAVEL, COM FLANGE E ANEL DE VEDACAO, 50 MM X 1 1/2", PARA CAIXA D'AGUA | D114: UN | E114: CR | F114: 24.69
A115: MATERIAL | B115: 60 | C115: ADAPTADOR PVC, COM REGISTRO, PARA PEAD, 20 MM X 3/4", PARA LIGACAO PREDIAL DE AGUA | D115: UN | E115: CR
A116: MATERIAL | B116: 72 | C116: ADAPTADOR PVC, ROSCAVEL, COM FLANGES E ANEL DE VEDACAO, 1 1/2", PARA CAIXA D'AGUA | D116: UN | E116: CR | F116: 47.35
A117: MATERIAL | B117: 71 | C117: ADAPTADOR PVC, ROSCAVEL, COM FLANGES E ANEL DE VEDACAO, 1", PARA CAIXA D'AGUA | D117: UN | E117: CR | F117: 29.24
A118: MATERIAL | B118: 67 | C118: ADAPTADOR PVC, ROSCAVEL, COM FLANGES E ANEL DE VEDACAO, 1/2", PARA CAIXA D'AGUA | D118: UN | E118: CR | F118: 15.31
A119: MATERIAL | B119: 73 | C119: ADAPTADOR PVC, ROSCAVEL, COM FLANGES E ANEL DE VEDACAO, 3/4", PARA CAIXA D'AGUA | D119: UN | E119: CR | F119: 14.65
A120: MATERIAL | B120: 100 | C120: ADAPTADOR PVC, SOLDAVEL, COM FLANGES E ANEL DE VEDACAO, 60 MM X 2", PARA CAIXA D'AGUA | D120: UN | E120: CR | F120: 43.14
A121: MATERIAL | B121: 75 | C121: ADAPTADOR PVC, SOLDAVEL, COM FLANGES LIVRES, 110 MM X 4", PARA CAIXA D'AGUA | D121: UN | E121: CR | F121: 251.49
A122: MATERIAL | B122: 83 | C122: ADAPTADOR PVC, SOLDAVEL, COM FLANGES LIVRES, 75 MM X 2 1/2", PARA CAIXA D'AGUA | D122: UN | E122: CR | F122: 201.06
A123: MATERIAL | B123: 74 | C123: ADAPTADOR PVC, SOLDAVEL, COM FLANGES LIVRES, 85 MM X 3", PARA CAIXA D'AGUA | D123: UN | E123: CR | F123: 287.46
A124: MATERIAL | B124: 106 | C124: ADAPTADOR PVC, SOLDAVEL, LONGO, COM FLANGE LIVRE, 110 MM X 4", PARA CAIXA D'AGUA | D124: UN | E124: CR | F124: 363.5
A125: MATERIAL | B125: 88 | C125: ADAPTADOR PVC, SOLDAVEL, LONGO, COM FLANGE LIVRE, 32 MM X 1", PARA CAIXA D'AGUA | D125: UN | E125: CR | F125: 10.21
A126: MATERIAL | B126: 82 | C126: ADAPTADOR PVC, SOLDAVEL, LONGO, COM FLANGE LIVRE, 75 MM X 2 1/2", PARA CAIXA D'AGUA | D126: UN | E126: CR | F126: 191.29
A127: MATERIAL | B127: 105 | C127: ADAPTADOR PVC, SOLDAVEL, LONGO, COM FLANGE LIVRE, 85 MM X 3", PARA CAIXA D'AGUA | D127: UN | E127: CR | F127: 271.06
A128: MATERIAL | B128: 39719 | C128: ADESIVO / COLA DE CONTATO LIQUIDO, A BASE DE RESINAS, PARA COLAGEM DE ESPUMA PARA ISOLAMENTO TERMICO FLEXIVEL | D128: L | E128: CR | F128: 173.33
A129: MATERIAL | B129: 3410 | C129: ADESIVO / COLA PARA EPS (ISOPOR) E OUTROS MATERIAIS | D129: KG | E129: CR | F129: 38.99
A130: MATERIAL | B130: 4791 | C130: ADESIVO ACRILICO DE BASE AQUOSA / COLA DE CONTATO | D130: KG | E130: CR | F130: 48.51
A131: MATERIAL | B131: 157 | C131: ADESIVO ESTRUTURAL A BASE DE RESINA EPOXI PARA INJECAO EM TRINCAS, BICOMPONENTE, BAIXA VISCOSIDADE | D131: KG | E131: CR | F131: 157.36
A132: MATERIAL | B132: 156 | C132: ADESIVO ESTRUTURAL A BASE DE RESINA EPOXI, BICOMPONENTE, FLUIDO | D132: KG | E132: CR | F132: 56.03
A133: MATERIAL | B133: 131 | C133: ADESIVO ESTRUTURAL A BASE DE RESINA EPOXI, BICOMPONENTE, PASTOSO (TIXOTROPICO) | D133: KG | E133: CR | F133: 47.92
A134: MATERIAL | B134: 21114 | C134: ADESIVO PARA TUBOS CPVC, *75* G | D134: UN | E134: CR | F134: 34.17
A135: MATERIAL | B135: 119 | C135: ADESIVO PLASTICO PARA PVC, BISNAGA COM 75 GR | D135: UN | E135: C | F135: 8.66
A136: MATERIAL | B136: 122 | C136: ADESIVO PLASTICO PARA PVC, FRASCO COM *850* GR | D136: UN | E136: CR | F136: 66.63
A137: MATERIAL | B137: 20080 | C137: ADESIVO PLASTICO PARA PVC, FRASCO COM 175 GR | D137: UN | E137: CR | F137: 21.74
A138: MATERIAL | B138: 124 | C138: ADITIVO ACELERADOR DE PEGA E ENDURECIMENTO PARA ARGAMASSAS E CONCRETOS, LIQUIDO E ISENTO DE CLORETOS | D138: L | E138: CR | F138: 18.48
A139: MATERIAL | B139: 7334 | C139: ADITIVO ADESIVO LIQUIDO PARA ARGAMASSAS DE REVESTIMENTOS CIMENTICIOS | D139: L | E139: CR | F139: 15.98
A140: MATERIAL | B140: 45146 | C140: ADITIVO IMPERMEABILIZANTE CRISTALIZANTE PARA CONCRETO | D140: KG | E140: CR | F140: 35.43
A141: MATERIAL | B141: 123 | C141: ADITIVO IMPERMEABILIZANTE DE PEGA NORMAL PARA ARGAMASSAS E CONCRETOS SEM ARMACAO, LIQUIDO E ISENTO DE CLORETOS | D141: L | E141: C | F141: 7.56
A142: MATERIAL | B142: 127 | C142: ADITIVO IMPERMEABILIZANTE DE PEGA ULTRARRAPIDA, LIQUIDO E ISENTO DE CLORETOS | D142: L | E142: CR | F142: 18.05
A143: MATERIAL | B143: 133 | C143: ADITIVO LIQUIDO INCORPORADOR DE AR PARA CONCRETO E ARGAMASSA, LIQUIDO E ISENTO DE CLORETOS | D143: L | E143: CR | F143: 7.49
A144: MATERIAL | B144: 43617 | C144: ADITIVO PLASTIFICANTE E ESTABILIZADOR PARA ARGAMASSAS DE ASSENTAMENTO E REBOCO, LIQUIDO E ISENTO DE CLORETOS | D144: L | E144: CR | F144: 8.37
A145: MATERIAL | B145: 132 | C145: ADITIVO PLASTIFICANTE RETARDADOR DE PEGA E REDUTOR DE AGUA PARA CONCRETO, LIQUIDO E ISENTO DE CLORETOS | D145: L | E145: CR | F145: 7.77
A146: MATERIAL | B146: 43618 | C146: ADITIVO SUPERPLASTIFICANTE DE PEGA NORMAL PARA CONCRETO, LIQUIDO E ISENTO DE CLORETOS | D146: KG | E146: CR | F146: 19.56
A147: MATERIAL | B147: 37476 | C147: ADUELA/ GALERIA PRE-MOLDADA DE CONCRETO ARMADO, SECAO QUADRADA INTERNA DE 1,50 X 1,50 M (L X A), MISULA DE 20 X 20 CM, C = 1,00 M, ESPESSURA MIN = 15 CM, TB-45 E FCK DO CONCRETO = 30 MPA | D147: UN | E147: CR | F147: 4326.05
A148: MATERIAL | B148: 37478 | C148: ADUELA/ GALERIA PRE-MOLDADA DE CONCRETO ARMADO, SECAO RETANGULAR INTERNA DE 2,00 X 2,00 M (L X A), MISULA DE 20 X 20 CM, C = 1,00 M, ESPESSURA MIN = 15 CM, TB-45 E FCK DO CONCRETO = 30 MPA | D148: UN | E148: CR | F148: 5418.48
A149: MATERIAL | B149: 37477 | C149: ADUELA/ GALERIA PRE-MOLDADA DE CONCRETO ARMADO, SECAO RETANGULAR INTERNA DE 2,50 X 2,50 M (L X A), MISULA DE 20 X 20 CM, C = 1,00 M, ESPESSURA MIN = 15 CM, TB-45 E FCK DO CONCRETO = 30 MPA | D149: UN | E149: CR | F149: 7341.17
A150: MATERIAL | B150: 37479 | C150: ADUELA/ GALERIA PRE-MOLDADA DE CONCRETO ARMADO, SECAO RETANGULAR INTERNA DE 3,00 X 3,00 M (L X A), MISULA DE 20 X 20 CM, C = 1.00 M, ESPESSURA MIN = 20 CM, TB-45 E FCK DO CONCRETO = 30 MPA | D150: UN | E150: CR | F150: 8706.72
A151: MATERIAL | B151: 4319 | C151: AFASTADOR PARA TELHA DE FIBROCIMENTO CANALETE 90 OU KALHETAO | D151: UN | E151: CR | F151: 1.67
A152: MATERIAL | B152: 42409 | C152: AGENTE DE CURA, PROTETOR DA EVAPORACAO DA AGUA DE HIDRATACAO DO CONCRETO | D152: KG | E152: CR | F152: 12.32
A153: MATERIAL | B153: 40553 | C153: AGREGADO RECICLADO, TIPO RACHAO RECICLADO CINZA, CLASSE A | D153: M3 | E153: C
A154: MAO DE OBRA | B154: 6114 | C154: AJUDANTE DE ARMADOR (HORISTA) | D154: H | E154: CR | F154: 17.24
A155: MAO DE OBRA | B155: 40912 | C155: AJUDANTE DE ARMADOR (MENSALISTA) | D155: MES | E155: CR | F155: 3012.89
A156: MAO DE OBRA | B156: 247 | C156: AJUDANTE DE ELETRICISTA (HORISTA) | D156: H | E156: CR | F156: 17.24
A157: MAO DE OBRA | B157: 40919 | C157: AJUDANTE DE ELETRICISTA (MENSALISTA) | D157: MES | E157: CR | F157: 3012.89
A158: MAO DE OBRA | B158: 44499 | C158: AJUDANTE DE ESTRUTURAS METALICAS (HORISTA) | D158: H | E158: CR | F158: 17.24
A159: MAO DE OBRA | B159: 40984 | C159: AJUDANTE DE ESTRUTURAS METALICAS (MENSALISTA) | D159: MES | E159: CR | F159: 3012.89
A160: MAO DE OBRA | B160: 248 | C160: AJUDANTE DE OPERACAO EM GERAL (HORISTA) | D160: H | E160: CR | F160: 18.15
A161: MAO DE OBRA | B161: 41086 | C161: AJUDANTE DE OPERACAO EM GERAL (MENSALISTA) | D161: MES | E161: CR | F161: 3171.81
A162: MAO DE OBRA | B162: 34466 | C162: AJUDANTE DE PINTOR (HORISTA) | D162: H | E162: CR | F162: 17.24
A163: MAO DE OBRA | B163: 41083 | C163: AJUDANTE DE PINTOR (MENSALISTA) | D163: MES | E163: CR | F163: 3012.89
A164: MAO DE OBRA | B164: 252 | C164: AJUDANTE DE SERRALHEIRO (HORISTA) | D164: H | E164: CR | F164: 17.24
A165: MAO DE OBRA | B165: 40909 | C165: AJUDANTE DE SERRALHEIRO (MENSALISTA) | D165: MES | E165: CR | F165: 3012.89
A166: MAO DE OBRA | B166: 242 | C166: AJUDANTE ESPECIALIZADO (HORISTA) | D166: H | E166: CR | F166: 18.15
A167: MAO DE OBRA | B167: 41085 | C167: AJUDANTE ESPECIALIZADO (MENSALISTA) | D167: MES | E167: CR | F167: 3171.81
A168: MATERIAL | B168: 427 | C168: ALCA PREFORMADA DE CONTRA POSTE, EM ACO GALVANIZADO, PARA CABO 3/16", COMPRIMENTO *860* MM | D168: UN | E168: CR | F168: 13.1
A169: MATERIAL | B169: 417 | C169: ALCA PREFORMADA DE DISTRIBUICAO, EM ACO GALVANIZADO, PARA CABO DE ALUMINIO DIAMETRO 16 A 25 MM | D169: UN | E169: CR | F169: 6.17
A170: MATERIAL | B170: 11273 | C170: ALCA PREFORMADA DE DISTRIBUICAO, EM ACO GALVANIZADO, PARA CONDUTORES DE ALUMINIO AWG 1/0 (CAA 6/1 OU CA 7 FIOS) | D170: UN | E170: CR | F170: 19.16
A171: MATERIAL | B171: 11272 | C171: ALCA PREFORMADA DE DISTRIBUICAO, EM ACO GALVANIZADO, PARA CONDUTORES DE ALUMINIO AWG 2 (CAA 6/1 OU CA 7 FIOS) | D171: UN | E171: CR | F171: 11.56
A172: MATERIAL | B172: 11275 | C172: ALCA PREFORMADA DE SERVICO, EM ACO GALVANIZADO, PARA CONDUTORES DE ALUMINIO AWG 4 (CAA 6/1) | D172: UN | E172: CR | F172: 4.64
A173: MATERIAL | B173: 11274 | C173: ALCA PREFORMADA DE SERVICO, EM ACO GALVANIZADO, PARA CONDUTORES DE ALUMINIO AWG 6 (CAA 6/1) | D173: UN | E173: CR | F173: 3.54
A174: MATERIAL | B174: 45208 | C174: ALICATE AMPERIMETRO, TENSAO AC/DC, CAPACIDADE MAXIMA 1000 A | D174: UN | E174: CR | F174: 250.62
A175: MATERIAL | B175: 45250 | C175: ALICATE BICO LONGO (MEIA CANA) 6", COM ISOLAMENTO ATE 1000 V | D175: UN | E175: CR | F175: 27.32
A176: MATERIAL | B176: 38470 | C176: ALICATE DE CORTE DIAGONAL 6" COM ISOLAMENTO | D176: UN | E176: CR | F176: 27.96
A177: MATERIAL | B177: 38547 | C177: ALICATE DE CRIMPAR RJ11, RJ12 E RJ45, COM CATRACA | D177: UN | E177: CR | F177: 185.65
A178: MATERIAL | B178: 38467 | C178: ALICATE DE PRESSAO 11" PARA SOLDA, TIPO C | D178: UN | E178: CR | F178: 222.58
A179: MATERIAL | B179: 38468 | C179: ALICATE DE PRESSAO 11" PARA SOLDA, TIPO U | D179: UN | E179: CR | F179: 277.85
A180: MATERIAL | B180: 38469 | C180: ALICATE DE PRESSAO PARA SOLDA DE CHAPA 18" | D180: UN | E180: CR | F180: 177.27
A181: MATERIAL | B181: 45197 | C181: ALICATE DESENCAPADOR AUTOMATICO 8" | D181: UN | E181: CR | F181: 141.38
A182: MATERIAL | B182: 38471 | C182: ALICATE PARA ANEIS DE PISTAO, CAPACIDADE *50* A 100 MM | D182: UN | E182: CR | F182: 189.59
A183: MATERIAL | B183: 45206 | C183: ALICATE PROFISSIONAL 8", UNIVERSAL, COM ISOLAMENTO ATE 1000 V | D183: UN | E183: CR | F183: 37.46
A184: ENCARGOS COMPLEMENTARES | B184: 37370 | C184: ALIMENTACAO - HORISTA (COLETADO CAIXA - ENCARGOS COMPLEMENTARES) | D184: H | E184: C | F184: 5
A185: ENCARGOS COMPLEMENTARES | B185: 40862 | C185: ALIMENTACAO - MENSALISTA (COLETADO CAIXA - ENCARGOS COMPLEMENTARES) | D185: MES | E185: C | F185: 826.39
A186: EQUIPAMENTO (AQUISIÇÃO) | B186: 10658 | C186: ALISADORA DE CONCRETO COM MOTOR A GASOLINA DE 5,5 HP, PESO COM MOTOR DE 78 KG, 4 PAS | D186: UN | E186: C
A187: MAO DE OBRA | B187: 253 | C187: ALMOXARIFE (HORISTA) | D187: H | E187: C | F187: 29.06
A188: MAO DE OBRA | B188: 40809 | C188: ALMOXARIFE (MENSALISTA) | D188: MES | E188: CR | F188: 5076.6
A189: MATERIAL | B189: 42428 | C189: ALONGADOR COM TRES ALTURAS, EM TUBO DE ACO CARBONO, PINTURA NO PROCESSO ELETROSTATICO - EQUIPAMENTO DE GINASTICA PARA ACADEMIA AO AR LIVRE / ACADEMIA DA TERCEIRA IDADE - ATI | D189: UN | E189: C
A190: MATERIAL | B190: 301 | C190: ANEL BORRACHA PARA TUBO ESGOTO PREDIAL, DN 100 MM (NBR 5688) | D190: UN | E190: C | F190: 3
A191: MATERIAL | B191: 296 | C191: ANEL BORRACHA PARA TUBO ESGOTO PREDIAL, DN 50 MM (NBR 5688) | D191: UN | E191: CR | F191: 1.69
A192: MATERIAL | B192: 297 | C192: ANEL BORRACHA PARA TUBO ESGOTO PREDIAL, DN 75 MM (NBR 5688) | D192: UN | E192: CR | F192: 2.49
A193: MATERIAL | B193: 299 | C193: ANEL BORRACHA, DN 100 MM, PARA TUBO SERIE REFORCADA ESGOTO PREDIAL | D193: UN | E193: CR | F193: 3.52
A194: MATERIAL | B194: 300 | C194: ANEL BORRACHA, DN 150 MM, PARA TUBO SERIE REFORCADA ESGOTO PREDIAL | D194: UN | E194: CR | F194: 12.18
A195: MATERIAL | B195: 20085 | C195: ANEL BORRACHA, DN 50 MM, PARA TUBO SERIE REFORCADA ESGOTO PREDIAL | D195: UN | E195: CR | F195: 2.22
A196: MATERIAL | B196: 298 | C196: ANEL BORRACHA, DN 75 MM, PARA TUBO SERIE REFORCADA ESGOTO PREDIAL | D196: UN | E196: CR | F196: 2.7
A197: MATERIAL | B197: 311 | C197: ANEL BORRACHA, PARA TUBO PVC DEFOFO, DN 100 MM (NBR 7665) | D197: UN | E197: CR | F197: 10.04
A198: MATERIAL | B198: 318 | C198: ANEL BORRACHA, PARA TUBO PVC DEFOFO, DN 150 MM (NBR 7665) | D198: UN | E198: CR | F198: 20.22
A199: MATERIAL | B199: 319 | C199: ANEL BORRACHA, PARA TUBO PVC DEFOFO, DN 200 MM (NBR 7665) | D199: UN | E199: CR | F199: 31.71
A200: MATERIAL | B200: 303 | C200: ANEL BORRACHA, PARA TUBO PVC, REDE COLETOR ESGOTO, DN 100 MM (NBR 7362) | D200: UN | E200: CR | F200: 3.32
A201: MATERIAL | B201: 305 | C201: ANEL BORRACHA, PARA TUBO PVC, REDE COLETOR ESGOTO, DN 150 MM (NBR 7362) | D201: UN | E201: CR | F201: 10.45
... 4664 more rows
